Workbook

Sheet Cifras Historicas
A1: MODELO DE VALORACIÓN DE EMPRESAS
A6: Última actualización Mayo 2022
A7: Elaborado por: Jeimmy Johanna Bautista Raba - Stella Botía Galvis GAF-83 | G7: Fuente. Basado en modelo visto en asignatura Gestión del Valor
A9: ESTADOS FINANCIEROS CIFRAS HISTORICAS
A11: COMPAÑÍA VS LTDA
A12: ESTADO DE SITUACIÓN FINANCIERA
A13: Pesos Colombianos
A14: a 31 de Diciembre
A15: ACTIVO | F15: 2017 | G15: 2018 | H15: 2019 | I15: 2020 | J15: 2021 | K15: =F15 -> 2017 | L15: =K15+1 -> 2018 | M15: =L15+1 -> 2019 | N15: =M15+1 -> 2020 | O15: =N15+1 -> 2021
A16: Activo Corriente | K16: ANÁLISIS VERTICAL
A17: Efectivo y equivalentes de efectivo | F17: 4355275642 | G17: 5822986465 | H17: 546039649 | I17: 1167076873 | J17: 220921225 | K17: =F17/F$31 -> 0.1900465737 | L17: =G17/G$31 -> 0.2477983627 | M17: =H17/H$31 -> 0.01700254343 | N17: =I17/I$31 -> 0.03330390351 | O17: =J17/J$31 -> 0.006720401189
A18: Activos financieros | F18: 0 | G18: 0 | H18: 0 | I18: 0 | J18: 0 | K18: 0 | L18: 0 | M18: 0 | N18: 0 | O18: 0
A19: Deudores comerciales y otros | F19: 5725064714 | G19: 7731045570 | H19: 10234154333 | I19: 15486728698 | J19: 12452754179 | K19: 0.2498186159 | L19: 0.3289962025 | M19: 0.3186703637 | N19: 0.4419319157 | O19: 0.3788115153
A20: Inventarios | F20: 0 | G20: 0 | H20: 164290700 | I20: 0 | J20: 0 | K20: 0 | L20: 0 | M20: 0.005115672035 | N20: 0 | O20: 0
A21: Pagos anticipados y otras cuentas por cobrar | F21: 926175054 | G21: 656692693 | H21: =2094812359+1121465650+727537902+7632380540 -> 11576196451 | I21: =23073745180-I19+1082846887 -> 8669863369 | J21: =9394045296 -> 9394045296 | K21: 0.04041452484 | L21: 0.02794568991 | M21: 0.360458775 | N21: 0.2474046909 | O21: 0.2857659022
A22: TOTAL ACTIVO CORRIENTE | F22: =SUM(F17:F21) -> 11006515410 | G22: 14210724728 | H22: 22520681133 | I22: 25323668940 | J22: 22067720700 | K22: 0.4802797144 | L22: 0.6047402551 | M22: 0.7012473542 | N22: 0.7226405101 | O22: 0.6712978187
A23: Activo No Corriente
A24: Activos financieros | F24: 0 | G24: 0 | H24: 0 | I24: 0 | J24: 0 | K24: =F24/F$31 -> 0 | L24: =G24/G$31 -> 0 | M24: =H24/H$31 -> 0 | N24: =I24/I$31 -> 0 | O24: =J24/J$31 -> 0
A25: Deudores | F25: 0 | G25: 0 | H25: 0 | I25: 0 | J25: 0 | K25: 0 | L25: 0 | M25: 0 | N25: 0 | O25: 0
A26: Propiedades, planta y equipo | F26: 11910370479 | G26: 9288165263 | H26: 9594493348 | I26: 9719576747 | J26: 10551295268 | K26: 0.5197202856 | L26: 0.3952597449 | M26: 0.2987526458 | N26: 0.2773594899 | O26: 0.3209693286
A27: Inventarios | F27: 0 | G27: 0 | H27: 0 | I27: 0 | J27: 145047130 | K27: 0 | L27: 0 | M27: 0 | N27: 0 | O27: 0.004412318938
A28: Pagos anticipados y otras cuentas por cobrar | F28: 0 | G28: 0 | H28: 0 | I28: 0 | J28: 109156636 | K28: 0 | L28: 0 | M28: 0 | N28: 0 | O28: 0.003320533762
A29: TOTAL ACTIVO NO CORRIENTE | F29: =SUM(F24:F28) -> 11910370479 | G29: 9288165263 | H29: 9594493348 | I29: 9719576747 | J29: 10805499034 | K29: 0.5197202856 | L29: 0.3952597449 | M29: 0.2987526458 | N29: 0.2773594899 | O29: 0.3287021813
A31: TOTAL ACTIVO | F31: =F22+F29 -> 22916885889 | G31: 23498889991 | H31: 32115174481 | I31: 35043245687 | J31: 32873219734 | K31: =F31/F$31 -> 1 | L31: =G31/G$31 -> 1 | M31: =H31/H$31 -> 1 | N31: =I31/I$31 -> 1 | O31: =J31/J$31 -> 1
A33: Pasivo Corriente
A34: Obligaciones financieras | F34: 408734110 | G34: 526145096 | H34: 208868995 | I34: 96658002 | J34: 365420012 | K34: =F34/F$46 -> 0.0450256242 | L34: =G34/G$46 -> 0.05085802231 | M34: =H34/H$46 -> 0.01315829578 | N34: =I34/I$46 -> 0.006825863553 | O34: =J34/J$46 -> 0.03136634764
A35: Proveedores | F35: 580386860 | G35: 83953100 | H35: 366465683 | I35: 671557747 | J35: 0 | K35: 0.06393467051 | L35: 0.008115040253 | M35: 0.02308654691 | N35: 0.04742454276 | O35: 0
A36: Cuentas por pagar Varios | F36: 22912438 | G36: 28112354 | H36: 1347336496 | I36: 1216784731 | J36: 1183288600 | K36: 0.00252400472 | L36: 0.002717384877 | M36: 0.08487929064 | N36: 0.08592776982 | O36: 0.1015692638
A37: Impuestos corrientes por pagar | F37: 629839083 | G37: 936020423 | H37: 1955820787 | I37: 3034237509 | J37: 1988914847 | K37: 0.06938226383 | L37: 0.09047722372 | M37: 0.1232124874 | N37: 0.2142739431 | O37: 0.1707213411
A38: Otros pasivos | F38: 303559341 | G38: 671139768 | H38: =104978442+473410360+524740042 -> 1103128844 | I38: 206618542 | J38: 693847185 | K38: 0.03343970683 | L38: 0.06487343806 | M38: 0.06949473575 | N38: 0.0145911352 | O38: 0.05955736221
A39: TOTAL PASIVO CORRIENTE | F39: =SUM(F34:F38) -> 1945431832 | G39: 2245370741 | H39: 4981620805 | I39: 5225856531 | J39: 4231470644 | K39: 0.2143062701 | L39: 0.2170411092 | M39: 0.3138313565 | N39: 0.3690432545 | O39: 0.3632143147
A40: Pasivo No Corriente
A41: Obligaciones financieras | F41: 2750785706 | G41: 2500000000 | H41: 2855673315 | I41: 4029229857 | J41: 3155897854 | K41: =F41/F$46 -> 0.3030230177 | L41: =G41/G$46 -> 0.2416539786 | M41: =H41/H$46 -> 0.1799012541 | N41: =I41/I$46 -> 0.2845390207 | O41: =J41/J$46 -> 0.2708909911
A42: Cuentas por pagar Varios | F42: 1446246300 | G42: 0 | H42: 1540582555 | I42: 789272626 | J42: 797056878 | K42: 0.1593166335 | L42: 0 | M42: 0.09705337518 | N42: 0.05573741584 | O42: 0.06841651334
A43: Otros pasivos | F43: 2935347237 | G43: 5600000000 | H43: 6495683128 | I43: 4116193896 | J43: =3463616977+2023386 -> 3465640363 | K43: 0.3233540787 | L43: 0.5413049121 | M43: 0.4092140143 | N43: 0.290680309 | O43: 0.2974781809
A44: TOTAL PASIVO NO CORRIENTE | F44: =SUM(F41:F43) -> 7132379243 | G44: 8100000000 | H44: 10891938998 | I44: 8934696379 | J44: 7418595095 | K44: 0.7856937299 | L44: 0.7829588908 | M44: 0.6861686435 | N44: 0.6309567455 | O44: 0.6367856853
A46: TOTAL PASIVO | F46: =F39+F44 -> 9077811075 | G46: 10345370741 | H46: 15873559803 | I46: 14160552910 | J46: 11650065739 | K46: =+F46/F56 -> 0.3961188758 | L46: =+G46/G56 -> 0.4402493371 | M46: 0.4942697668 | N46: 0.4040879386 | O46: 0.3543938146
A48: Patrimonio
A49: Capital suscrito y pagado | F49: 4000000000 | G49: 4000000000 | H49: 4000000000 | I49: 4000000000 | J49: 4000000000 | K49: =F49/F$54 -> 0.2890366628 | L49: =G49/G$54 -> 0.3041011249 | M49: 0.246280932 | N49: 0.1915461786 | O49: 0.1884734004
A50: Reservas | F50: 1110584793 | G50: 1510584793 | H50: 1510584793 | I50: 1510584793 | J50: 2400000000 | K50: 0.08024993057 | L50: 0.1148426337 | M50: 0.09300705767 | N50: 0.07233668613 | O50: 0.1130840402
A51: Resultados de Ejercicios Anteriores | F51: 3976114511 | G51: 4292094996 | H51: 5937865590 | I51: 9530144694 | J51: 10821809856 | K51: 0.2873107173 | L51: 0.3263077291 | M51: 0.3655957679 | N51: 0.4563656994 | O51: 0.5099058254
A52: Resultados del Ejercicio | F52: 1753585876 | G52: 2721325951 | H52: 3592279105 | I52: 4641078100 | J52: 2800458949 | K52: 0.1267126524 | L52: 0.2068895707 | M52: 0.2211774615 | N52: 0.2222451936 | O52: 0.1319530052
A53: Ganancias Acumuladas adopción Pymes | F53: 2998789634 | G53: 629513510 | H53: 1200885190 | I53: 1200885190 | J53: 1200885190 | K53: 0.216690037 | L53: 0.04785894163 | M53: 0.07393878095 | N53: 0.05750624227 | O53: 0.0565837288
A54: TOTAL PATRIMONIO | F54: =SUM(F49:F53) -> 13839074814 | G54: =SUM(G49:G53) -> 13153519250 | H54: 16241614678 | I54: 20882692777 | J54: 21223153995 | K54: 1 | L54: 1 | M54: 1 | N54: 1 | O54: 1
A56: TOTAL PASIVO Y PATRIMONIO | F56: =F46+F54 -> 22916885889 | G56: 23498889991 | H56: 32115174481 | I56: 35043245687 | J56: 32873219734 | K56: =+F54/F56 -> 0.6038811242 | L56: =+G54/G56 -> 0.5597506629 | M56: 0.5057302332 | N56: 0.5959120614 | O56: 0.6456061854
A58: VALIDACIÓN (Pasivo y Patrimonio - Activo) | F58: =F56-F31 -> 0 | G58: =G56-G31 -> 0 | H58: =H56-H31 -> 0 | I58: =I56-I31 -> 0 | J58: =J56-J31 -> 0
A60: =A11 -> COMPAÑÍA VS LTDA
A61: ESTADO DE RESULTADO
A62: Pesos Colombianos
A63: a 31 de Diciembre
A64: CUENTAS DE RESULTADO | F64: =F15 -> 2017 | G64: 2018 | H64: 2019 | I64: 2020 | J64: 2021 | K64: 2017 | L64: 2018 | M64: 2019 | N64: 2020 | O64: 2021 | P64: Promedio Estructural | R64: Cuentas | S64: Estructuras | U64: Cuentas | V64: Estructuras
A65: Operacional | K65: ANÁLISIS VERTICAL - BASE EN VENTAS | R65: Estructura Promedio | U65: Simulación
A66: Ventas, Ingresos de actividades ordinarias | F66: 56268982215 | G66: 80131113112 | H66: 92026384100 | I66: 90604040420 | J66: 61578566195 | K66: =+F66/$F$66 -> 1 | L66: =+G66/$G$66 -> 1 | M66: =+H66/H$66 -> 1 | N66: =+I66/$I$66 -> 1 | O66: =+J66/$J$66 -> 1 | P66: =+AVERAGE(K66:O66) -> 1 | R66: Ventas | S66: =+P66 -> 1 | U66: Ventas | V66: 1
A67: Costo de Ventas | F67: 46042758141 | G67: 67750145748 | H67: 76372779650 | I67: 77804621136 | J67: 54413593743 | K67: =+F67/$F$66 -> 0.8182617906 | L67: =+G67/$G$66 -> 0.8454911347 | M67: =+H67/H$66 -> 0.8299009072 | N67: =+I67/$I$66 -> 0.8587323565 | O67: =+J67/$J$66 -> 0.8836450263 | P67: =+AVERAGE(K67:O67) -> 0.847206243 | R67: Costos | S67: =+P67 -> 0.847206243 | U67: Costos | V67: =+Z72 -> 0.82
A68: UTILIDAD BRUTA | F68: =F66-F67 -> 10226224074 | G68: 12380967364 | H68: 15653604450 | I68: 12799419284 | J68: =J66-J67 -> 7164972452 | K68: 0.1817382094 | L68: 0.1545088653 | M68: 0.1700990928 | N68: 0.1412676435 | O68: 0.1163549737 | P68: 0.152793757 | R68: Gastos | S68: =+P69+P70 -> 0.09238212308 | U68: Gastos | V68: =+Z73 -> 0.09
A69: Gastos de administración | F69: 0 | G69: 0 | H69: 8851263892 | I69: 5383826386 | J69: 3355500547 | K69: 0 | L69: 0 | M69: 0.09618180676 | N69: 0.05942148232 | O69: 0.05449137183 | P69: 0.04201893218 | R69: Total Erogación | S69: =+S67+S68 -> 0.9395883661 | U69: Total Erogación | V69: =+V67+V68 -> 0.91 | Y69: Rangos Estructurales
A70: Gastos de ventas y distribución | F70: 7098905205 | G70: 7489704766 | H70: 313612789 | I70: 1064657231 | J70: 1048629364 | K70: 0.126160185 | L70: 0.09346812337 | M70: 0.003407857345 | N70: 0.01175065953 | O70: 0.01702912927 | P70: 0.0503631909 | R70: Total operación | S70: =+S66-S69 -> 0.06041163388 | U70: Total operación | V70: =+V66-V69 -> 0.09 | Y70: Gestión Costos y Gastos
A71: UTILIDAD OPERACIONAL | F71: =F68-F69-F70 -> 3127318869 | G71: 4891262598 | H71: =H68-H69-H70 -> 6488727769 | I71: =I68-I69-I70 -> 6350935667 | J71: =J68-J69-J70 -> 2760842541 | K71: 0.05557802444 | L71: 0.06104074195 | M71: 0.07050942871 | N71: 0.07009550167 | O71: 0.04483447264 | P71: 0.06041163388 | R71: Ingresos no ope | S71: =+$P$73 -> 0.01421908513 | U71: Ingresos no ope | V71: =+$P$73 -> 0.01421908513 | Y71: Promedio | Z71: Rango Objetivo | AA71: Gestión
A72: No Operacional | R72: Gastos no ope | S72: =+$P$74+$P$75 -> 0.01143605334 | U72: Gastos no ope | V72: =+$P$74+$P$75 -> 0.01143605334 | X72: Costos | Y72: =+S67 -> 0.847206243 | Z72: 0.82 | AA72: =+Y72-Z72 -> 0.02720624304
A73: Otros ingresos | F73: 244288944 | G73: 192784316 | H73: 82383557 | I73: 1658821003 | J73: =2773537339+6392079 -> 2779929418 | K73: =+F73/$F$66 -> 0.004341449488 | L73: =+G73/$G$66 -> 0.002405860951 | M73: =+H73/H$66 -> 0.0008952167121 | N73: =+I73/$I$66 -> 0.0183084661 | O73: =+J73/$J$66 -> 0.04514443239 | P73: =+AVERAGE(K73:O73) -> 0.01421908513 | R73: Impuestos (Tx) | S73: =+$P$78 -> 0.02302223785 | U73: Impuestos (Tx) | V73: =+$P$78 -> 0.02302223785 | X73: Gastos | Y73: =+S68 -> 0.09238212308 | Z73: 0.09 | AA73: =+Y73-Z73 -> 0.00238212308
A74: Gasto no operacional | F74: 0 | G74: 0 | H74: 962059833 | I74: 259504531 | J74: 92569034 | K74: 0 | L74: 0 | M74: 0.01045417401 | N74: 0.002864160691 | O74: 0.001503267122 | P74: 0.002964320365 | R74: Margen Neto | S74: =+S70+S71-S72-S73 -> 0.04017242783 | U74: Margen Neto | V74: =+V70+V71-V72-V73 -> 0.06976079394
A75: Gasto Financiero | F75: 528963937 | G75: 818412963 | H75: 457359388 | I75: 681428611 | J75: 631413481 | K75: 0.009400630972 | L75: 0.01021342312 | M75: 0.004969872417 | N75: 0.007520951691 | O75: 0.01025378667 | P75: 0.008471732973 | R75: Magen en ML | S75: =+$J$66*S74 -> 2473760506 | U75: Magen en ML | V75: =+$J$66*V74 -> 4295769668
A76: Resultados Netos | U76: Recursos a favor después de aplicar la gestión en los costos y gastos | V76: =+V75-S75 -> 1822009162
A77: UTILIDAD ANTES DE IMPUESTOS | F77: =F71+F73-F74-F75 -> 2842643876 | G77: 4265633951 | H77: 5151692105 | I77: 7068823528 | J77: 4816789444 | K77: =+F77/$F$66 -> 0.05051884296 | L77: =+G77/$G$66 -> 0.05323317979 | M77: =+H77/H$66 -> 0.05598059899 | N77: =+I77/$I$66 -> 0.0780188554 | O77: =+J77/$J$66 -> 0.07822185123 | P77: =+AVERAGE(K77:O77) -> 0.06319466567
A78: Gasto por impuesto | F78: 1089058000 | G78: 1544308000 | H78: 1559413000 | I78: 2427745428 | J78: 2016330495 | K78: 0.01935449971 | L78: 0.01927226442 | M78: 0.01694528167 | N78: 0.02679511219 | O78: 0.03274403124 | P78: 0.02302223785
A79: UTILIDAD NETA | F79: =F77-F78 -> 1753585876 | G79: 2721325951 | H79: 3592279105 | I79: 4641078100 | J79: 2800458949 | K79: 0.03116434325 | L79: 0.03396091537 | M79: 0.03903531732 | N79: 0.05122374321 | O79: 0.04547782 | P79: 0.04017242783
A83: Detalles de Depreciación y Amortización | F83: 2017 | G83: 2018 | H83: 2019 | I83: 2020 | J83: =+I83+1 -> 2021
A84: Depreciaciones | F84: 589601720 | G84: 827825000 | H84: 527765968 | I84: 546876124 | J84: 136883865
A85: Amortizaciones | G85: 739260000
A88: DETALLE DE ACTIVOS FIJOS | F88: 2016 | G88: 2017 | H88: 2018 | I88: 2019 | J88: 2020 | K88: 2021
A89: Terrenos | F89: 1788000000 | G89: 1788000000 | H89: 1788000000 | I89: 2366949952 | J89: 2366949952 | K89: 2366949952
A90: Edificios | F90: 7713320687 | G90: 7713320687 | H90: 5344044563 | I90: 7124482555 | J90: 7124482555 | K90: 7124482555
A91: Equipo de Oficina | F91: 356024346 | G91: 382144365 | H91: 388957229 | I91: 391788322 | J91: 391788322 | K91: 403189232
A92: Equipo de computo | F92: 2569273878 | G92: 2572807760 | H92: 2576164759 | I92: 2618250483 | J92: 2619883104 | K92: 2745785789
A93: Flota y Equipo de Transporte | F93: 166180608 | G93: 221220606 | H93: 221220606 | I93: 2048349461 | J93: 2196308743 | K93: 2320811939
A94: Armamento | F94: 669929422 | G94: 681898222 | H94: 702821299 | I94: 878950660 | J94: 878950660 | K94: 1547341079
A95: Semovientes | F95: 45226800 | G95: 45226800 | H95: 45226800 | I95: 63502200 | J95: 63502200 | K95: 63502200
A96: Intangibles | F96: 1792508723 | G96: 2465709822 | H96: 1849685916 | I96: 0 | J96: 0 | K96: 0
A97: Depreiación acumulada (-) | F97: 3370356063 | G97: 3959957783 | H97: 3627955909 | I97: 5897780285 | J97: 5922288790 | K97: 6020767479
A98: Total Activo fijo | F98: =SUM(F89:F96)-F97 -> 11730108401 | G98: =SUM(G89:G96)-G97 -> 11910370479 | H98: 9288165263 | I98: 9594493348 | J98: 9719576746 | K98: 10551295267

Sheet Analisis Financiero
A1: MODELO DE VALORACIÓN DE EMPRESAS | Y1: AUMENTO DE SALARIO MÍNIMO 2018-2022 COLOMBIA | AD1: Año | AE1: Incremento SMLV | AF1: Año | AG1: Inflación | AH1: Variación
Y2: Año | Z2: Valor | AA2: Variación % | AD2: 2015 | AE2: 0.046 | AF2: 2014 | AG2: 0.0366 | AH2: =+AE2-AG2 -> 0.0094
Y3: 2015 | Z3: 644350 | AD3: 2016 | AE3: 0.07 | AF3: 2015 | AG3: 0.0677 | AH3: 0.0023
Y4: 2016 | Z4: 689455 | AA4: =+(Z4/Z3)-1 -> 0.07000077598 | AD4: 2017 | AE4: 0.07 | AF4: 2016 | AG4: 0.0575 | AH4: 0.0125
Y5: 2017 | Z5: 737717 | AA5: =+(Z5/Z4)-1 -> 0.07000021756 | AD5: 2018 | AE5: 0.059 | AF5: 2017 | AG5: 0.0409 | AH5: 0.0181
A6: ='Cifras Historicas'!A6 -> Última actualización Mayo 2022 | Y6: 2018 | Z6: 781242 | AA6: 0.05899958927 | AD6: 2019 | AE6: 0.06 | AF6: 2018 | AG6: 0.0318 | AH6: 0.0282
Y7: 2019 | Z7: 828116 | AA7: 0.05999933439 | AD7: 2020 | AE7: 0.06 | AF7: 2019 | AG7: 0.038 | AH7: 0.022
Y8: 2020 | Z8: 877803 | AA8: 0.0600000483 | AD8: 2021 | AE8: 0.035 | AF8: 2020 | AG8: 0.0161 | AH8: 0.0189
A9: ESTADOS FINANCIEROS PROYECTADOS | Y9: 2021 | Z9: 908526 | AA9: 0.03499988038 | AD9: 2022 | AE9: 0.1007 | AF9: 2021 | AG9: 0.0562 | AH9: 0.0445
Y10: 2022 | Z10: 1000000 | AA10: =+(Z10/Z9)-1 -> 0.100683965 | AD10: 2023py | AE10: =+AG10+AVERAGE(AH4:AH8) -> 0.08794 | AF10: 2022py | AG10: 0.068 | AH10: 0.01994 | AI10: Estimación de proyección
A11: =+'Cifras Historicas'!A60:J60 -> COMPAÑÍA VS LTDA | AD11: 2024py | AE11: =+AG11+AVERAGE(AH5:AH9) -> 0.06734 | AF11: 2023py | AG11: 0.041 | AH11: 0.02634 | AI11: Estimación de proyección
A12: ANÁLISIS FINANCIERO | AD12: 2025py | AE12: =+AG12+AVERAGE(AH6:AH10) -> 0.061708 | AF12: 2024py | AG12: 0.035 | AH12: 0.026708 | AI12: Estimación de proyección
A13: Pesos Colombianos | AD13: 2026py | AE13: =+AG13+AVERAGE(AH7:AH11) -> 0.059636 | AF13: 2025py | AG13: 0.0333 | AH13: 0.026336 | AI13: Estimación de proyección
A14: a 31 de Diciembre | R14: TASAS DE DEUDA PROYECCIÓN PROMEDIO MOVIL (N5) | AF14: 2026py | AG14: 0.0333 | AI14: Estimación de proyección
R15: TASAS DE DEUDA | S15: =F24 -> 2017 | T15: =G24 -> 2018 | U15: 2019 | V15: 2020 | W15: 2021 | X15: =K24 -> 2022 | Y15: =L24 -> 2023 | Z15: =M24 -> 2024 | AA15: =N24 -> 2025 | AB15: =O24 -> 2026
R16: TASA Kd E.A. | S16: 0.1132 | T16: 0.1018 | U16: 0.1002 | V16: 0.0724 | W16: 0.0806 | X16: =+AVERAGE(S16:W16) -> 0.09364 | Y16: =+AVERAGE(T16:X16) -> 0.089728 | Z16: =+AVERAGE(U16:Y16) -> 0.0873136 | AA16: =+AVERAGE(V16:Z16) -> 0.08473632 | AB16: =+AVERAGE(W16:AA16) -> 0.087203584
A17: CIFRAS FUNDAMENTALES DE PROYECCIÓN
A19: =+A11 -> COMPAÑÍA VS LTDA
A20: CIFRAS DE PROYECCIÓN
A22: PLANES, POLITICAS Y EXPECTATIVAS
F23: CIFRAS HISTÓRICAS | K23: CIFRAS PROYECTADAS
A24: VARIABLES | F24: ='Cifras Historicas'!F15 -> 2017 | G24: ='Cifras Historicas'!G15 -> 2018 | H24: ='Cifras Historicas'!H15 -> 2019 | I24: ='Cifras Historicas'!I15 -> 2020 | J24: ='Cifras Historicas'!J15 -> 2021 | K24: =J24+1 -> 2022 | L24: 2023 | M24: 2024 | N24: 2025 | O24: 2026
A25: PIB | F25: 0.014 | G25: 0.026 | H25: 0.032 | I25: -0.07 | J25: 0.106 | K25: 0.047 | L25: 0.029 | M25: 0.029 | N25: 0.026 | O25: 0.025
A26: Inflación | F26: 0.0409 | G26: 0.0318 | H26: 0.038 | I26: 0.0161 | J26: 0.0562 | K26: 0.068 | L26: 0.041 | M26: 0.035 | N26: 0.0333 | O26: 0.0333
A27: Crecimiento Real Empresa -Incremento del SMMLV | F27: 0.07 | G27: 0.059 | H27: 0.06 | I27: 0.06 | J27: 0.035 | K27: =+AE9 -> 0.1007 | L27: =+AE10 -> 0.08794 | M27: =+AE11 -> 0.06734 | N27: =+AE12 -> 0.061708 | O27: =+AE13 -> 0.059636
A28: Tasa de Crecimiento Modelo | G28: =+G27 -> 0.059 | H28: =+H27 -> 0.06 | I28: 0.06 | J28: 0.035 | K28: =+K27 -> 0.1007 | L28: 0.08794 | M28: 0.06734 | N28: 0.061708 | O28: 0.059636
A29: Tasa de Crecimiento | G29: =G27 -> 0.059 | H29: =H27 -> 0.06 | I29: =I27 -> 0.06 | J29: =J27 -> 0.035 | K29: =+K27 -> 0.1007 | L29: =+L27 -> 0.08794 | M29: =+M27 -> 0.06734 | N29: =+N27 -> 0.061708 | O29: =+O27 -> 0.059636
G30: Crecimiento Historico | K30: Crecimiento Proyectado
A33: ESTADOS FINANCIEROS PROYECTADOS
A35: =+A19 -> COMPAÑÍA VS LTDA
A36: PROYECCIÓN DE ESTADOS FINANCIERO
A38: ACTIVO | F38: =F24 -> 2017 | G38: 2018 | H38: 2019 | I38: 2020 | J38: 2021 | K38: 2022 | L38: 2023 | M38: 2024 | N38: 2025 | O38: 2026
A39: Activo Corriente
A40: Efectivo y equivalentes de efectivo | F40: ='Cifras Historicas'!F17 -> 4355275642 | G40: ='Cifras Historicas'!G17 -> 5822986465 | H40: ='Cifras Historicas'!H17 -> 546039649 | I40: ='Cifras Historicas'!I17 -> 1167076873 | J40: ='Cifras Historicas'!J17 -> 220921225 | K40: =J40*(1+K$29) -> 243167992.4 | L40: =K40*(1+L$29) -> 264552185.6 | M40: =L40*(1+M$29) -> 282367129.8 | N40: =M40*(1+N$29) -> 299791440.6 | O40: =N40*(1+O$29) -> 317669803
A41: Activos financieros | F41: ='Cifras Historicas'!F18 -> 0 | G41: ='Cifras Historicas'!G18 -> 0 | H41: ='Cifras Historicas'!H18 -> 0 | I41: ='Cifras Historicas'!I18 -> 0 | J41: ='Cifras Historicas'!J18 -> 0 | K41: =J41*(1+K$29) -> 0 | L41: 0 | M41: 0 | N41: 0 | O41: 0
A42: Deudores comerciales y otros | F42: ='Cifras Historicas'!F19 -> 5725064714 | G42: ='Cifras Historicas'!G19 -> 7731045570 | H42: ='Cifras Historicas'!H19 -> 10234154333 | I42: ='Cifras Historicas'!I19 -> 15486728698 | J42: ='Cifras Historicas'!J19 -> 12452754179 | K42: =J42*(1+K$29) -> 1.370674652e+10 | L42: 1.491211781e+10 | M42: 1.591629983e+10 | N42: 1.689846286e+10 | O42: 1.790621959e+10
A43: Inventarios | F43: ='Cifras Historicas'!F20 -> 0 | G43: ='Cifras Historicas'!G20 -> 0 | H43: ='Cifras Historicas'!H20 -> 164290700 | I43: ='Cifras Historicas'!I20 -> 0 | J43: ='Cifras Historicas'!J20 -> 0 | K43: =J43*(1+K$29) -> 0 | L43: 0 | M43: 0 | N43: 0 | O43: 0
A44: Pagos anticipados y otras cuentas por cobrar | F44: ='Cifras Historicas'!F21 -> 926175054 | G44: ='Cifras Historicas'!G21 -> 656692693 | H44: ='Cifras Historicas'!H21 -> 11576196451 | I44: ='Cifras Historicas'!I21 -> 8669863369 | J44: ='Cifras Historicas'!J21 -> 9394045296 | K44: =J44*(1+K$29) -> 1.034002566e+10 | L44: 1.124932751e+10 | M44: 1.200685723e+10 | N44: 1.274777637e+10 | O44: 1.350800277e+10
A45: TOTAL ACTIVO CORRIENTE | F45: ='Cifras Historicas'!F22 -> 11006515410 | G45: ='Cifras Historicas'!G22 -> 14210724728 | H45: ='Cifras Historicas'!H22 -> 22520681133 | I45: ='Cifras Historicas'!I22 -> 25323668940 | J45: ='Cifras Historicas'!J22 -> 22067720700 | K45: =SUM(K40:K44) -> 2.428994017e+10 | L45: 2.642599751e+10 | M45: 2.820552419e+10 | N45: 2.994603067e+10 | O45: 3.173189216e+10
A46: Activo No Corriente
A47: Activos financieros | F47: ='Cifras Historicas'!F24 -> 0 | G47: ='Cifras Historicas'!G24 -> 0 | H47: ='Cifras Historicas'!H24 -> 0 | I47: ='Cifras Historicas'!I24 -> 0 | J47: ='Cifras Historicas'!J24 -> 0 | K47: =J47*(1+K$29) -> 0 | L47: =K47*(1+L$29) -> 0 | M47: =L47*(1+M$29) -> 0 | N47: =M47*(1+N$29) -> 0 | O47: =N47*(1+O$29) -> 0
A48: Deudores | F48: ='Cifras Historicas'!F25 -> 0 | G48: ='Cifras Historicas'!G25 -> 0 | H48: ='Cifras Historicas'!H25 -> 0 | I48: ='Cifras Historicas'!I25 -> 0 | J48: ='Cifras Historicas'!J25 -> 0 | K48: 0 | L48: 0 | M48: 0 | N48: 0 | O48: 0
A49: Propiedades, planta y equipo | F49: ='Cifras Historicas'!F26 -> 11910370479 | G49: ='Cifras Historicas'!G26 -> 9288165263 | H49: ='Cifras Historicas'!H26 -> 9594493348 | I49: ='Cifras Historicas'!I26 -> 9719576747 | J49: ='Cifras Historicas'!J26 -> 10551295268 | K49: =J49*(1+K29) -> 1.16138107e+10 | L49: =K49*(1+L29) -> 1.263512921e+10 | M49: =L49*(1+M29) -> 1.348597882e+10 | N49: =M49*(1+N29) -> 1.43181716e+10 | O49: =N49*(1+O29) -> 1.517205008e+10
A50: Inventarios | F50: ='Cifras Historicas'!F27 -> 0 | G50: ='Cifras Historicas'!G27 -> 0 | H50: ='Cifras Historicas'!H27 -> 0 | I50: ='Cifras Historicas'!I27 -> 0 | J50: ='Cifras Historicas'!J27 -> 145047130 | K50: 159653376 | L50: 173693293.9 | M50: 185389800.3 | N50: 196829834.1 | O50: 208567978.1
A51: Pagos anticipados y otras cuentas por cobrar | F51: ='Cifras Historicas'!F28 -> 0 | G51: ='Cifras Historicas'!G28 -> 0 | H51: ='Cifras Historicas'!H28 -> 0 | I51: ='Cifras Historicas'!I28 -> 0 | J51: ='Cifras Historicas'!J28 -> 109156636 | K51: 120148709.2 | L51: 130714586.7 | M51: 139516907 | N51: 148126216.3 | O51: 156959871.3
A52: TOTAL ACTIVO NO CORRIENTE | F52: ='Cifras Historicas'!F29 -> 11910370479 | G52: ='Cifras Historicas'!G29 -> 9288165263 | H52: ='Cifras Historicas'!H29 -> 9594493348 | I52: ='Cifras Historicas'!I29 -> 9719576747 | J52: ='Cifras Historicas'!J29 -> 10805499034 | K52: =SUM(K47:K51) -> 1.189361279e+10 | L52: 1.29395371e+10 | M52: 1.381088552e+10 | N52: 1.466312765e+10 | O52: 1.553757793e+10
A54: TOTAL ACTIVO | F54: =F45+F52 -> 22916885889 | G54: 23498889991 | H54: 32115174481 | I54: 35043245687 | J54: 32873219734 | K54: =K45+K52 -> 3.618355296e+10 | L54: 3.936553461e+10 | M54: 4.201640971e+10 | N54: 4.460915832e+10 | O54: 4.726947009e+10
A56: Pasivo Corriente
A57: Obligaciones financieras | F57: ='Cifras Historicas'!F34 -> 408734110 | G57: ='Cifras Historicas'!G34 -> 526145096 | H57: ='Cifras Historicas'!H34 -> 208868995 | I57: ='Cifras Historicas'!I34 -> 96658002 | J57: ='Cifras Historicas'!J34 -> 365420012 | K57: =+AVERAGE(G57:J57) -> 299273026.2 | L57: =+AVERAGE(H57:K57) -> 242555008.8 | M57: 250976512.3 | N57: 289556139.8 | O57: 270590171.8
A58: Proveedores | F58: ='Cifras Historicas'!F35 -> 580386860 | G58: ='Cifras Historicas'!G35 -> 83953100 | H58: ='Cifras Historicas'!H35 -> 366465683 | I58: ='Cifras Historicas'!I35 -> 671557747 | J58: ='Cifras Historicas'!J35 -> 0 | K58: =J58*(1+K$29) -> 0 | L58: =K58*(1+L$29) -> 0 | M58: =L58*(1+M$29) -> 0 | N58: =M58*(1+N$29) -> 0 | O58: =N58*(1+O$29) -> 0
A59: Cuentas por pagar Varios | F59: ='Cifras Historicas'!F36 -> 22912438 | G59: ='Cifras Historicas'!G36 -> 28112354 | H59: ='Cifras Historicas'!H36 -> 1347336496 | I59: ='Cifras Historicas'!I36 -> 1216784731 | J59: ='Cifras Historicas'!J36 -> 1183288600 | K59: =J59*(1+K$29) -> 1302445762 | L59: 1416982842 | M59: 1512402467 | N59: 1605729798 | O59: 1701489101
A60: Impuestos corrientes por pagar | F60: ='Cifras Historicas'!F37 -> 629839083 | G60: ='Cifras Historicas'!G37 -> 936020423 | H60: ='Cifras Historicas'!H37 -> 1955820787 | I60: ='Cifras Historicas'!I37 -> 3034237509 | J60: ='Cifras Historicas'!J37 -> 1988914847 | K60: =J60*(1+K$29) -> 2189198572 | L60: 2381716695 | M60: 2542101497 | N60: 2698969496 | O60: 2859925241
A61: Otros pasivos | F61: ='Cifras Historicas'!F38 -> 303559341 | G61: ='Cifras Historicas'!G38 -> 671139768 | H61: ='Cifras Historicas'!H38 -> 1103128844 | I61: ='Cifras Historicas'!I38 -> 206618542 | J61: ='Cifras Historicas'!J38 -> 693847185 | K61: =J61*(1+K$29) -> 763717596.5 | L61: 830878922 | M61: 886830308.6 | N61: 941554833.3 | O61: 997705397.3
A62: TOTAL PASIVO CORRIENTE | F62: ='Cifras Historicas'!F39 -> 1945431832 | G62: ='Cifras Historicas'!G39 -> 2245370741 | H62: ='Cifras Historicas'!H39 -> 4981620805 | I62: ='Cifras Historicas'!I39 -> 5225856531 | J62: ='Cifras Historicas'!J39 -> 4231470644 | K62: =SUM(K57:K61) -> 4554634957 | L62: 4872133468 | M62: 5192310785 | N62: 5535810267 | O62: 5829709910
A63: Pasivo No Corriente
A64: Obligaciones financieras | F64: ='Cifras Historicas'!F41 -> 2750785706 | G64: ='Cifras Historicas'!G41 -> 2500000000 | H64: ='Cifras Historicas'!H41 -> 2855673315 | I64: ='Cifras Historicas'!I41 -> 4029229857 | J64: ='Cifras Historicas'!J41 -> 3155897854 | K64: =+AVERAGE(G64:J64) -> 3135200256 | L64: =+AVERAGE(H64:K64) -> 3294000321 | M64: 3403582072 | N64: 3247170126 | O64: 3269988194
A65: Cuentas por pagar Varios | F65: ='Cifras Historicas'!F42 -> 1446246300 | G65: ='Cifras Historicas'!G42 -> 0 | H65: ='Cifras Historicas'!H42 -> 1540582555 | I65: ='Cifras Historicas'!I42 -> 789272626 | J65: ='Cifras Historicas'!J42 -> 797056878 | K65: =J65*(1+K$29) -> 877320505.6 | L65: =K65*(1+L$29) -> 954472070.9 | M65: =L65*(1+M$29) -> 1018746220 | N65: =M65*(1+N$29) -> 1081611012 | O65: =N65*(1+O$29) -> 1146113966
A66: Otros pasivos | F66: ='Cifras Historicas'!F43 -> 2935347237 | G66: ='Cifras Historicas'!G43 -> 5600000000 | H66: ='Cifras Historicas'!H43 -> 6495683128 | I66: ='Cifras Historicas'!I43 -> 4116193896 | J66: ='Cifras Historicas'!J43 -> 3465640363 | K66: 3814630348 | L66: 4150088940 | M66: 4429555930 | N66: 4702894967 | O66: 4983356811
A67: TOTAL PASIVO NO CORRIENTE | F67: ='Cifras Historicas'!F44 -> 7132379243 | G67: ='Cifras Historicas'!G44 -> 8100000000 | H67: ='Cifras Historicas'!H44 -> 10891938998 | I67: ='Cifras Historicas'!I44 -> 8934696379 | J67: ='Cifras Historicas'!J44 -> 7418595095 | K67: =SUM(K64:K66) -> 7827151110 | L67: 8398561332 | M67: 8851884222 | N67: 9031676105 | O67: 9399458971
A69: TOTAL PASIVO | F69: =F62+F67 -> 9077811075 | G69: 10345370741 | H69: 15873559803 | I69: 14160552910 | J69: 11650065739 | K69: =K62+K67 -> 1.238178607e+10 | L69: 1.32706948e+10 | M69: 1.404419501e+10 | N69: 1.456748637e+10 | O69: 1.522916888e+10
A71: Patrimonio
A72: Capital suscrito y pagado | F72: ='Cifras Historicas'!F49 -> 4000000000 | G72: ='Cifras Historicas'!G49 -> 4000000000 | H72: ='Cifras Historicas'!H49 -> 4000000000 | I72: ='Cifras Historicas'!I49 -> 4000000000 | J72: ='Cifras Historicas'!J49 -> 4000000000 | K72: =J72 -> 4000000000 | L72: =K72 -> 4000000000 | M72: 4000000000 | N72: 4000000000 | O72: 4000000000
A73: Reservas | F73: ='Cifras Historicas'!F50 -> 1110584793 | G73: ='Cifras Historicas'!G50 -> 1510584793 | H73: ='Cifras Historicas'!H50 -> 1510584793 | I73: ='Cifras Historicas'!I50 -> 1510584793 | J73: ='Cifras Historicas'!J50 -> 2400000000 | K73: =+J73 -> 2400000000 | L73: =+K73 -> 2400000000 | M73: =+L73 -> 2400000000 | N73: =+M73 -> 2400000000 | O73: 2400000000
A74: Resultados de Ejercicios Anteriores | F74: ='Cifras Historicas'!F51 -> 3976114511 | G74: ='Cifras Historicas'!G51 -> 4292094996 | H74: ='Cifras Historicas'!H51 -> 5937865590 | I74: ='Cifras Historicas'!I51 -> 9530144694 | J74: ='Cifras Historicas'!J51 -> 10821809856 | K74: =+K54-K69-K72-K73-K75-K76 -> 1.347801352e+10 | L74: =+L54-L69-L72-L73-L75-L76 -> 1.55316374e+10 | M74: 1.720952985e+10 | N74: 1.908387877e+10 | O74: 2.088231546e+10
A75: Resultados del Ejercicio | F75: ='Cifras Historicas'!F52 -> 1753585876 | G75: ='Cifras Historicas'!G52 -> 2721325951 | H75: ='Cifras Historicas'!H52 -> 3592279105 | I75: ='Cifras Historicas'!I52 -> 4641078100 | J75: ='Cifras Historicas'!J52 -> 2800458949 | K75: =K99 -> 2722868189 | L75: 2962317218 | M75: 3161799659 | N75: 3356907993 | O75: 3557100558
A76: Ganancias Acumuladas adopción Pymes | F76: ='Cifras Historicas'!F53 -> 2998789634 | G76: ='Cifras Historicas'!G53 -> 629513510 | H76: ='Cifras Historicas'!H53 -> 1200885190 | I76: ='Cifras Historicas'!I53 -> 1200885190 | J76: ='Cifras Historicas'!J53 -> 1200885190 | K76: =+J76 -> 1200885190 | L76: =+K76 -> 1200885190 | M76: 1200885190 | N76: 1200885190 | O76: 1200885190
A77: TOTAL PATRIMONIO | F77: ='Cifras Historicas'!F54 -> 13839074814 | G77: ='Cifras Historicas'!G54 -> 13153519250 | H77: ='Cifras Historicas'!H54 -> 16241614678 | I77: ='Cifras Historicas'!I54 -> 20882692777 | J77: ='Cifras Historicas'!J54 -> 21223153995 | K77: =SUM(K72:K76) -> 2.380176689e+10 | L77: =SUM(L72:L76) -> 2.609483981e+10 | M77: 2.79722147e+10 | N77: 3.004167195e+10 | O77: 3.20403012e+10
A79: 0 TOTAL PASIVO Y PATRIMONIO | F79: =F69+F77 -> 22916885889 | G79: 23498889991 | H79: 32115174481 | I79: 35043245687 | J79: 32873219734 | K79: =K69+K77 -> 3.618355296e+10 | L79: 3.936553461e+10 | M79: 4.201640971e+10 | N79: 4.460915832e+10 | O79: 4.726947009e+10
A81: CONTROL (Pasivo y Patrimonio - Activo) | F81: =F54-F79 -> 0 | G81: 0 | H81: 0 | I81: 0 | J81: 0 | K81: 0 | L81: 0 | M81: 0 | N81: 0 | O81: 0 | R81: =+Q80/12 -> 0
A84: CUENTAS DE RESULTADO | F84: ='Cifras Historicas'!F64 -> 2017 | G84: ='Cifras Historicas'!G64 -> 2018 | H84: ='Cifras Historicas'!H64 -> 2019 | I84: ='Cifras Historicas'!I64 -> 2020 | J84: ='Cifras Historicas'!J64 -> 2021 | K84: =K38 -> 2022 | L84: =L38 -> 2023 | M84: =M38 -> 2024 | N84: =N38 -> 2025 | O84: =O38 -> 2026
A85: Operacional
A86: Ventas, Ingresos de actividades ordinarias | F86: =+'Cifras Historicas'!F66 -> 56268982215 | G86: =+'Cifras Historicas'!G66 -> 80131113112 | H86: =+'Cifras Historicas'!H66 -> 92026384100 | I86: =+'Cifras Historicas'!I66 -> 90604040420 | J86: =+'Cifras Historicas'!J66 -> 61578566195 | K86: =J86*(1+K$29) -> 6.777952781e+10 | L86: =K86*(1+L$29) -> 7.374005949e+10 | M86: =L86*(1+M$29) -> 7.870571509e+10 | N86: =M86*(1+N$29) -> 8.356248736e+10 | O86: =N86*(1+O$29) -> 8.854581986e+10
A87: Costo de Ventas | F87: =+'Cifras Historicas'!F67 -> 46042758141 | G87: =+'Cifras Historicas'!G67 -> 67750145748 | H87: =+'Cifras Historicas'!H67 -> 76372779650 | I87: =+'Cifras Historicas'!I67 -> 77804621136 | J87: =+'Cifras Historicas'!J67 -> 54413593743 | K87: =K86*'Cifras Historicas'!$P$67 -> 5.742323911e+10 | L87: =L86*'Cifras Historicas'!$P$67 -> 6.247303876e+10 | M87: =M86*'Cifras Historicas'!$P$67 -> 6.667997319e+10 | N87: =N86*'Cifras Historicas'!$P$67 -> 7.079466097e+10 | O87: =O86*'Cifras Historicas'!$P$67 -> 7.501657138e+10
A88: UTILIDAD BRUTA | F88: =+'Cifras Historicas'!F68 -> 10226224074 | G88: =+'Cifras Historicas'!G68 -> 12380967364 | H88: =+'Cifras Historicas'!H68 -> 15653604450 | I88: =+'Cifras Historicas'!I68 -> 12799419284 | J88: =+'Cifras Historicas'!J68 -> 7164972452 | K88: =K86-K87 -> 1.03562887e+10 | L88: 1.126702073e+10 | M88: 1.20257419e+10 | N88: 1.276782638e+10 | O88: 1.352924848e+10
A89: Gastos de administración | F89: =+'Cifras Historicas'!F69 -> 0 | G89: =+'Cifras Historicas'!G69 -> 0 | H89: =+'Cifras Historicas'!H69 -> 8851263892 | I89: =+'Cifras Historicas'!I69 -> 5383826386 | J89: =+'Cifras Historicas'!J69 -> 3355500547 | K89: =K86*'Cifras Historicas'!$P$69 -> 2848023382 | L89: =L86*'Cifras Historicas'!$P$69 -> 3098478559 | M89: =M86*'Cifras Historicas'!$P$69 -> 3307130105 | N89: =N86*'Cifras Historicas'!$P$69 -> 3511206489 | O89: =O86*'Cifras Historicas'!$P$69 -> 3720600799
A90: Gastos de ventas y distribución | F90: =+'Cifras Historicas'!F70 -> 7098905205 | G90: =+'Cifras Historicas'!G70 -> 7489704766 | H90: =+'Cifras Historicas'!H70 -> 313612789 | I90: =+'Cifras Historicas'!I70 -> 1064657231 | J90: =+'Cifras Historicas'!J70 -> 1048629364 | K90: =K86*'Cifras Historicas'!$P$70 -> 3413593298 | L90: =L86*'Cifras Historicas'!$P$70 -> 3713784693 | M90: =M86*'Cifras Historicas'!$P$70 -> 3963870954 | N90: =N86*'Cifras Historicas'!$P$70 -> 4208473503 | O90: =O86*'Cifras Historicas'!$P$70 -> 4459450029
A91: UTILIDAD OPERACIONAL | F91: =+'Cifras Historicas'!F71 -> 3127318869 | G91: =+'Cifras Historicas'!G71 -> 4891262598 | H91: =+'Cifras Historicas'!H71 -> 6488727769 | I91: =+'Cifras Historicas'!I71 -> 6350935667 | J91: =+'Cifras Historicas'!J71 -> 2760842541 | K91: =K88-K89-K90 -> 4094672019 | L91: 4454757476 | M91: 4754740845 | N91: 5048146393 | O91: 5349197651
A92: No Operacional
A93: Otros ingresos | F93: =+'Cifras Historicas'!F73 -> 244288944 | G93: =+'Cifras Historicas'!G73 -> 192784316 | H93: =+'Cifras Historicas'!H73 -> 82383557 | I93: =+'Cifras Historicas'!I73 -> 1658821003 | J93: =+'Cifras Historicas'!J73 -> 2779929418 | K93: =K86*'Cifras Historicas'!$P$73 -> 963762875.9 | L93: =L86*'Cifras Historicas'!$P$73 -> 1048516183 | M93: =M86*'Cifras Historicas'!$P$73 -> 1119123263 | N93: =N86*'Cifras Historicas'!$P$73 -> 1188182121 | O93: =O86*'Cifras Historicas'!$P$73 -> 1259040550
A94: Gasto no operacional | F94: =+'Cifras Historicas'!F74 -> 0 | G94: =+'Cifras Historicas'!G74 -> 0 | H94: =+'Cifras Historicas'!H74 -> 962059833 | I94: =+'Cifras Historicas'!I74 -> 259504531 | J94: =+'Cifras Historicas'!J74 -> 92569034 | K94: =K86*'Cifras Historicas'!$P$74 -> 200920234.6 | L94: =L86*'Cifras Historicas'!$P$74 -> 218589160 | M94: =M86*'Cifras Historicas'!$P$74 -> 233308954.1 | N94: =N86*'Cifras Historicas'!$P$74 -> 247705983 | O94: =O86*'Cifras Historicas'!$P$74 -> 262478177
A95: Gasto Financiero | F95: =+'Cifras Historicas'!F75 -> 528963937 | G95: =+'Cifras Historicas'!G75 -> 818412963 | H95: =+'Cifras Historicas'!H75 -> 457359388 | I95: =+'Cifras Historicas'!I75 -> 681428611 | J95: =+'Cifras Historicas'!J75 -> 631413481 | K95: =K86*'Cifras Historicas'!$P$75 -> 574210060.6 | L95: =L86*'Cifras Historicas'!$P$75 -> 624706093.4 | M95: =M86*'Cifras Historicas'!$P$75 -> 666773801.7 | N95: =N86*'Cifras Historicas'!$P$75 -> 707919079.4 | O95: =O86*'Cifras Historicas'!$P$75 -> 750136541.7
A96: Resultados Netos
A97: UTILIDAD ANTES DE IMPUESTOS | F97: =F91+F93-F94-F95 -> 2842643876 | G97: 4265633951 | H97: 5151692105 | I97: 7068823528 | J97: 4816789444 | K97: =K91+K93-K94-K95 -> 4283304600 | L97: 4659978406 | M97: 4973781352 | N97: 5280703452 | O97: 5595623483
A98: Gasto por impuesto | F98: =+'Cifras Historicas'!F78 -> 1089058000 | G98: =+'Cifras Historicas'!G78 -> 1544308000 | H98: =+'Cifras Historicas'!H78 -> 1559413000 | I98: =+'Cifras Historicas'!I78 -> 2427745428 | J98: =+'Cifras Historicas'!J78 -> 2016330495 | K98: =K86*'Cifras Historicas'!$P$78 -> 1560436410 | L98: =L86*'Cifras Historicas'!$P$78 -> 1697661188 | M98: =M86*'Cifras Historicas'!$P$78 -> 1811981693 | N98: =N86*'Cifras Historicas'!$P$78 -> 1923795459 | O98: =O86*'Cifras Historicas'!$P$78 -> 2038522925
A99: UTILIDAD NETA | F99: =F97-F98 -> 1753585876 | G99: 2721325951 | H99: 3592279105 | I99: 4641078100 | J99: 2800458949 | K99: =K97-K98 -> 2722868189 | L99: 2962317218 | M99: 3161799659 | N99: 3356907993 | O99: 3557100558
A103: Detalles de Depreciación y Amortización | F103: =F84 -> 2017 | G103: 2018 | H103: 2019 | I103: 2020 | J103: 2021 | K103: =K84 -> 2022 | L103: 2023 | M103: 2024 | N103: 2025 | O103: 2026
A104: Depreciaciones | F104: =+'Cifras Historicas'!F84 -> 589601720 | G104: =+'Cifras Historicas'!G84 -> 827825000 | H104: =+'Cifras Historicas'!H84 -> 527765968 | I104: =+'Cifras Historicas'!I84 -> 546876124 | J104: =+'Cifras Historicas'!J84 -> 136883865 | K104: =AVERAGE(I104:J104) -> 341879994.5 | L104: =AVERAGE(J104:K104) -> 239381929.8 | M104: =AVERAGE(K104:L104) -> 290630962.1 | N104: =AVERAGE(L104:M104) -> 265006445.9 | O104: =AVERAGE(M104:N104) -> 277818704
A105: Amortizaciones | F105: =+'Cifras Historicas'!F85 -> 0 | G105: =+'Cifras Historicas'!G85 -> 739260000 | H105: =+'Cifras Historicas'!H85 -> 0 | I105: =+'Cifras Historicas'!I85 -> 0 | J105: =+'Cifras Historicas'!J85 -> 0 | K105: 0 | L105: 0 | M105: 0 | N105: 0 | O105: 0
A109: INDUCTORES DE VALOR Y RAZONES FINANCIERAS
A111: =+A11 -> COMPAÑÍA VS LTDA
A112: PROYECCIÓN DE INDUCTORES DE VALOR
A115: Inductores de Rentabilidad | F115: =F103 -> 2017 | G115: 2018 | H115: 2019 | I115: 2020 | J115: 2021 | K115: 2022 | L115: 2023 | M115: 2024 | N115: 2025 | O115: 2026
A116: ROA | F116: =F99/F54 -> 0.07651937896 | G116: =G99/G54 -> 0.1158065744 | H116: 0.1118561292 | I116: 0.1324385915 | J116: 0.08518967633 | K116: =K99/K54 -> 0.07525154294 | L116: 0.07525154294 | M116: 0.07525154294 | N116: 0.07525154294 | O116: 0.07525154294
A117: UODI | F117: =F91*(1-(F98/F97)) -> 1929197760 | G117: 3120455246 | H117: 4524595164 | I117: 4169744558 | J117: 1605140995 | K117: =K91*(1-(K98/K97)) -> 2602955715 | L117: 2831859640 | M117: 3022557069 | N117: 3209073020 | O117: 3400449299
A118: Activos Netos de Operación | F118: =F45+F49-F58 -> 22336499029 | G118: 23414936891 | H118: 31748708798 | I118: 34371687940 | J118: 32619015968 | K118: =K45+K49-K58 -> 3.590375088e+10 | L118: 3.906112673e+10 | M118: 4.1691503e+10 | N118: 4.426420227e+10 | O118: 4.690394224e+10
A119: RAN | F119: =F117/F118 -> 0.08636974656 | G119: =G117/G118 -> 0.1332677197 | H119: 0.14251273 | I119: 0.1213133485 | J119: 0.04920874978 | K119: =K117/K118 -> 0.07249815552 | L119: 0.07249815552 | M119: 0.07249815552 | N119: 0.07249815552 | O119: 0.07249815552
A120: Distancia Rentabilidad | F120: =F119-F116 -> 0.009850367595 | G120: =G119-G116 -> 0.01746114534 | H120: 0.03065660079 | I120: -0.01112524297 | J120: -0.03598092654 | K120: =K119-K116 -> -0.002753387415 | L120: -0.002753387415 | M120: -0.002753387415 | N120: -0.002753387415 | O120: -0.002753387415
A122: Inductores de Operativos y Financieros | F122: =F115 -> 2017 | G122: 2018 | H122: 2019 | I122: 2020 | J122: 2021 | K122: 2022 | L122: 2023 | M122: 2024 | N122: 2025 | O122: 2026
A123: EBITDA Modelo General | F123: =F99+F98+F95+F104+F105 -> 3961209533 | G123: =G99+G98+G95+G104+G105 -> 6651131914 | H123: =H99+H98+H95+H104+H105 -> 6136817461 | I123: 8297128263 | J123: 5585086790 | K123: =K99+K98+K95+K104+K105 -> 5199394655 | L123: 5524066429 | M123: 5931186116 | N123: 6253628977 | O123: 6623578728
A124: EBITDA Operacional | F124: =F91+F104+F105 -> 3716920589 | G124: =G91+G104+G105 -> 6458347598 | H124: 7016493737 | I124: 6897811791 | J124: 2897726406 | K124: =K91+K104+K105 -> 4436552013 | L124: 4694139406 | M124: 5045371807 | N124: 5313152839 | O124: 5627016355
A125: Margen EBITDA Modelo General | F125: =F123/F86 -> 0.07039774627 | G125: =G123/G86 -> 0.08300311397 | H125: 0.06668541333 | I125: 0.09157569822 | J125: 0.09069855203 | K125: =K123/K86 -> 0.07671039948 | L125: 0.07491269288 | M125: 0.07535902709 | N125: 0.07483775525 | O125: 0.0748039686
A126: Margen EBITDA Operacional | F126: =F124/F86 -> 0.06605629679 | G126: =G124/G86 -> 0.08059725302 | H126: 0.07624437063 | I126: 0.07613139281 | J126: 0.04705738677 | K126: =K124/K86 -> 0.06545563471 | L126: 0.06365792812 | M126: 0.06410426233 | N126: 0.06358299049 | O126: 0.06354920384
A127: KTNO | F127: =F42+F43-F58-F59 -> 5121765416 | G127: =G42+G43-G58-G59 -> 7618980116 | H127: 8684642854 | I127: 13598386220 | J127: 11269465579 | K127: 1.240430076e+10 | L127: 1.349513497e+10 | M127: 1.440389736e+10 | N127: 1.529273306e+10 | O127: 1.620473049e+10
A128: Variación de KTNO | G128: =G127-F127 -> 2497214700 | H128: =H127-G127 -> 1065662738 | I128: =I127-H127 -> 4913743366 | J128: =J127-I127 -> -2328920641 | K128: =K127-J127 -> 1134835184 | L128: =L127-K127 -> 1090834209 | M128: =M127-L127 -> 908762389 | N128: =N127-M127 -> 888835698.3 | O128: =O127-N127 -> 911997428.7
A129: Productividad del Capital de trabajo PKT | F129: =F127/F86 -> 0.09102289067 | G129: =G127/G86 -> 0.09508142119 | H129: 0.09437122776 | I129: 0.1500858699 | J129: 0.1830095482 | K129: =K127/K86 -> 0.1830095482 | L129: 0.1830095482 | M129: 0.1830095482 | N129: 0.1830095482 | O129: 0.1830095482
A130: Rotación del Activo Fijo | F130: =F86/F49 -> 4.72436876 | G130: 8.62722732 | H130: 9.591583501 | I130: 9.321809249 | J130: 5.836114395 | K130: =K86/K49 -> 5.836114395 | L130: 5.836114395 | M130: 5.836114395 | N130: 5.836114395 | O130: 5.836114395
A131: Palanca de Crecimiento PDC *** | F131: =F126/F129 -> 0.7257108218 | G131: =G126/G129 -> 0.8476656324 | H131: 0.8079196641 | I131: 0.5072522342 | J131: 0.2571307739 | K131: =K126/K129 -> 0.3576624026 | L131: 0.3478393818 | M131: 0.3502782393 | N131: 0.3474299079 | O131: 0.3472452911
A135: Razones financieras
A137: ANALISIS DE RAZONES FINANCIERAS
A138: R/I | F138: =+F122 -> 2017 | G138: =+G122 -> 2018 | H138: 2019 | I138: 2020 | J138: 2021 | K138: 2022 | L138: 2023 | M138: 2024 | N138: 2025 | O138: 2026
A140: Margen Bruto | F140: =+F88/F86 -> 0.1817382094 | G140: =+G88/G86 -> 0.1545088653 | H140: 0.1700990928 | I140: 0.1412676435 | J140: 0.1163549737 | K140: =+K88/K86 -> 0.152793757 | L140: 0.152793757 | M140: 0.152793757 | N140: 0.152793757 | O140: 0.152793757 | P140: Utilidad Bruta / Ventas
A141: Margen Operacional | F141: =+F91/F86 -> 0.05557802444 | G141: =+G91/G86 -> 0.06104074195 | H141: 0.07050942871 | I141: 0.07009550167 | J141: 0.04483447264 | K141: =+K91/K86 -> 0.06041163388 | L141: 0.06041163388 | M141: 0.06041163388 | N141: 0.06041163388 | O141: 0.06041163388 | P141: Utilidad Operacional / Ventas
A142: Margen Neto | F142: =+F99/F86 -> 0.03116434325 | G142: =+G99/G86 -> 0.03396091537 | H142: 0.03903531732 | I142: 0.05122374321 | J142: 0.04547782 | K142: =+K99/K86 -> 0.04017242783 | L142: 0.04017242783 | M142: 0.04017242783 | N142: 0.04017242783 | O142: 0.04017242783 | P142: Utilidad Neta / Ventas
A143: ROE | F143: =+F99/F77 -> 0.1267126524 | G143: =+G99/G77 -> 0.2068895707 | H143: 0.2211774615 | I143: 0.2222451936 | J143: 0.1319530052 | K143: =+K99/K77 -> 0.1143977336 | L143: 0.1135211881 | M143: 0.1130335832 | N143: 0.1117417166 | O143: 0.111019573 | P143: Utilidad Neta / Patrimonio
A146: ANALISIS DE RAZONES FINANCIERAS
A147: Liquidez | F147: =F138 -> 2017 | G147: =G138 -> 2018 | H147: =H138 -> 2019 | I147: =I138 -> 2020 | J147: =J138 -> 2021 | K147: =K138 -> 2022 | L147: 2023 | M147: 2024 | N147: 2025 | O147: 2026
A148: Capital de Trabajo | F148: =+(F45-F62) -> 9061083578 | G148: =+(G45-G62) -> 11965353987 | H148: 17539060328 | I148: 20097812409 | J148: 17836250056 | K148: =+(K45-K62) -> 1.973530522e+10 | L148: 2.155386405e+10 | M148: 2.30132134e+10 | N148: 2.441022041e+10 | O148: 2.590218225e+10 | P148: Activo Corriente - Pasivo Corriente
A149: Razon Corriente | F149: =+(F45/F62) -> 5.657620704 | G149: =+(G45/G62) -> 6.32889904 | H149: 4.52075379 | I149: 4.845840828 | J149: 5.2151421 | K149: =+(K45/K62) -> 5.333015797 | L149: 5.423906732 | M149: 5.432171793 | N149: 5.409511747 | O149: 5.443133989 | P149: Activo Corriente / Pasivo Corriente
A150: Prueba Acida | F150: =+(F45-F43)/F62 -> 5.657620704 | G150: =+(G45-G43)/G62 -> 6.32889904 | H150: 4.487774423 | I150: 4.845840828 | J150: 5.2151421 | K150: =+(K45-K43)/K62 -> 5.333015797 | L150: 5.423906732 | M150: 5.432171793 | N150: 5.409511747 | O150: 5.443133989 | P150: (Activo Corriente - Inventarios) / Pasivo Corriente
A153: ANALISIS DE RAZONES FINANCIERAS
A154: Endeudamiento | F154: =F147 -> 2017 | G154: =G147 -> 2018 | H154: =H147 -> 2019 | I154: =I147 -> 2020 | J154: =J147 -> 2021 | K154: =K147 -> 2022 | L154: 2023 | M154: 2024 | N154: 2025 | O154: 2026
A155: Nivel de Endeudamiento | F155: =+F69/F54 -> 0.3961188758 | G155: =+G69/G54 -> 0.4402493371 | H155: 0.4942697668 | I155: 0.4040879386 | J155: 0.3543938146 | K155: =+K69/K54 -> 0.3421937608 | L155: 0.337114558 | M155: 0.3342549995 | N155: 0.3265581984 | O155: 0.3221776943 | P155: Total Pasivo / Total Activo
A156: Concentracion de Endeudamiento a Corto Plazo | F156: =+F62/F69 -> 0.2143062701 | G156: =+G62/G69 -> 0.2170411092 | H156: 0.3138313565 | I156: 0.3690432545 | J156: 0.3632143147 | K156: =+K62/K69 -> 0.3678495923 | L156: 0.3671347688 | M156: 0.3697122393 | N156: 0.3800113572 | O156: 0.3827989535 | P156: Pasivo Corriente / Pasivo Total
A157: Concentracion de Endeudamiento a Largo Plazo | F157: =+F67/F69 -> 0.7856937299 | G157: =+G67/G69 -> 0.7829588908 | H157: 0.6861686435 | I157: 0.6309567455 | J157: 0.6367856853 | K157: =+K67/K69 -> 0.6321504077 | L157: 0.6328652312 | M157: 0.6302877607 | N157: 0.6199886428 | O157: 0.6172010465 | P157: Pasivo No Corriente / Pasivo Total
A159: RAZONES DE ACTIVIDAD
A160: Actividad | F160: =F154 -> 2017 | G160: =G154 -> 2018 | H160: =H154 -> 2019 | I160: =I154 -> 2020 | J160: =J154 -> 2021 | K160: =K154 -> 2022 | L160: 2023 | M160: 2024 | N160: 2025 | O160: 2026
A161: Rotacion del Patrimonio | F161: =+F86/F77 -> 4.065949709 | G161: =+G86/G77 -> 6.091990409 | H161: 5.666085911 | I161: 4.338714427 | J161: 2.90148044 | K161: =+K86/K77 -> 2.847667911 | L161: 2.82584833 | M161: 2.813710531 | N161: 2.781552488 | O161: 2.763576388 | P161: Ventas / Patrimonio
A162: Rotacion del Activo | F162: =+F86/F54 -> 2.455350281 | G162: =+G86/G54 -> 3.40999567 | H162: 2.865510949 | I162: 2.585492258 | J162: 1.873213719 | K162: =+K86/K54 -> 1.873213719 | L162: 1.873213719 | M162: 1.873213719 | N162: 1.873213719 | O162: 1.873213719 | P162: Ventas / Activo Total
A163: Rotacion de Cartera | F163: =+F86/F42 -> 9.828532082 | G163: =+G86/G42 -> 10.36484812 | H163: 8.992084847 | I163: 5.850431178 | J163: 4.94497565 | K163: =+K86/K42 -> 4.94497565 | L163: 4.94497565 | M163: 4.94497565 | N163: 4.94497565 | O163: 4.94497565 | P163: Ventas / Cuentas Por Cobrar Clientes
A164: Periodo de Cobro | F164: =+(F42/F86)*365 -> 37.13677657 | G164: =+(G42/G86)*365 -> 35.21518076 | H164: 40.591254 | I164: 62.388564 | J164: 73.8122947 | K164: =+(K42/K86)*365 -> 73.8122947 | L164: 73.8122947 | M164: 73.8122947 | N164: 73.8122947 | O164: 73.8122947 | P164: (Cuentas Por Cobrar Clientes / Ventas ) * 365
A165: Rotacion de Inventarios | F165: =+(F43/F87)*365 -> 0 | G165: =+(G43/G87)*365 -> 0 | H165: 0.7851764172 | I165: 0 | J165: 0 | K165: =+(K43/K87)*365 -> 0 | L165: 0 | M165: 0 | N165: 0 | O165: 0 | P165: (Inventarios / Costo de Ventas) * 365
A166: Ciclo Operacional | F166: =F164+F165 -> 37.13677657 | G166: 35.21518076 | H166: 41.37643042 | I166: 62.388564 | J166: 73.8122947 | K166: =K164+K165 -> 73.8122947 | L166: 73.8122947 | M166: 73.8122947 | N166: 73.8122947 | O166: 73.8122947 | P166: Periodo de Cobro + Rotacion de Inventarios
A167: Periodo de Pago a Proveedores | F167: =+((F58+F59)/F87)*365 -> 4.782603229 | G167: =+((G58+G59)/G87)*365 -> 0.6037461655 | H167: 8.19058568 | I167: 8.858664105 | J167: 7.93736104 | K167: 8.278751086 | L167: 8.278751086 | M167: 8.278751086 | N167: 8.278751086 | O167: 8.278751086 | P167: (Cuentas por pagar Proveedores / Costo de Ventas) * 365

Sheet Valoración Sin Estrategia FLC P
A1: MODELOS DE VALORACIÓN INICIAL - FCLD bajo Modelo de Anualidad Perpetua
A3: =+'Cifras Historicas'!A11:O11 -> COMPAÑÍA VS LTDA
A4: VALORACIÓN INICIAL
A5: Pesos Colombianos
A6: a 31 de Diciembre
A7: COSTO DE CAPITAL
A8: CALCULO DEL COSTO DE LOS RECURSOS PROPIOS | I8: TASAS HISTORICAS
A9: CONCEPTO | F9: ='Analisis Financiero'!J24 -> 2021 | I9: Años | J9: Rentabilidad acciones USA S&P | K9: Rentabilidad Bonos del Tesoro USA | L9: Inflación USA | M9: Inflación Colombia | N9: RIESGO PAÍS
A10: Tasa libre de riesgo nominal en dólares KL USA | F10: =+AVERAGE(K10:K19) -> 0.0259186884 | G10: Kl | I10: 2012 | J10: 0.1589058524 | K10: 0.02971571978 | L10: 0.0206934 | M10: 0.0244 | N10: 0.0112
A11: Inflación en USA | F11: =+AVERAGE(L10:L19) -> 0.02140929 | I11: 2013 | J11: 0.3214508586 | K11: -0.09104568794 | L11: 0.0146483 | M11: 0.0194 | N11: 0.0166
A12: Tasa libre de riesgo real en dólares | F12: =+((1+F10)/(1+F11))-1 -> 0.004414878979 | I12: 2014 | J12: 0.1352442165 | K12: 0.1074618045 | L12: 0.0162222 | M12: 0.0366 | N12: 0.0196
I13: 2015 | J13: 0.01378891641 | K13: 0.01284299671 | L13: 0.0011863 | M13: 0.0677 | N13: 0.0321
A14: Inflación COLOMBIA | F14: =+AVERAGE(M10:M19) -> 0.03886 | I14: 2016 | J14: 0.1177308087 | K14: 0.006905504699 | L14: 0.0126158 | M14: 0.0575 | N14: 0.0227
A15: Tasa libre de riesgo nominal en $COL | F15: =+((1+F14)*(1+F12))-1 -> 0.04344644118 | I15: 2017 | J15: 0.2160548143 | K15: 0.02801716271 | L15: 0.0213011 | M15: 0.0409 | N15: 0.0174
I16: 2018 | J16: -0.04226869289 | K16: -0.0001669238571 | L16: 0.0244258 | M16: 0.0318 | N16: 0.0231
A17: Riesgo país Colombia | F17: =+AVERAGE(N10:N19) -> 0.02149 | G17: RP | I17: 2019 | J17: 0.3221 | K17: 0.09635630742 | L17: 0.0229 | M17: 0.038 | N17: 0.0161
I18: 2020 | J18: 0.1801 | K18: 0.1133 | L18: 0.012 | M18: 0.0161 | N18: 0.0209
I19: 2021 | J19: 0.2847 | K19: -0.0442 | L19: 0.0681 | M19: 0.0562 | N19: 0.0352
A20: Rentabilidad Mercado en dólares Km USA | F20: =+AVERAGE(J10:J19) -> 0.1707806774 | G20: Km
A21: Inflación en USA | F21: =+AVERAGE(L10:L19) -> 0.02140929
A22: Rentabilidad del Mercado real en dólares Km USA | F22: =+((1+F20)/(1+F21))-1 -> 0.1462404825
A24: Inflación COLOMBIA | F24: =+F14 -> 0.03886
A25: Rentabilidad del Mercado en $COL | F25: =+((1+F24)*(1+F22))-1 -> 0.1907833877
A27: Prima de riesgo del mercado (Km - KL) | F27: =+F25-F15 -> 0.1473369465
A30: Beta Desapalancada BU Sectorial | F30: 0.7741172457 | G30: Fuente: Damodaran 2021 Total Market
F32: ='Analisis Financiero'!K24 -> 2022 | G32: ='Analisis Financiero'!L24 -> 2023 | H32: ='Analisis Financiero'!M24 -> 2024 | I32: ='Analisis Financiero'!N24 -> 2025 | J32: ='Analisis Financiero'!O24 -> 2026
A33: Deuda D | F33: =+'Analisis Financiero'!J57+'Analisis Financiero'!J64 -> 3521317866 | G33: =+'Analisis Financiero'!K57+'Analisis Financiero'!K64 -> 3434473283 | H33: =+'Analisis Financiero'!L57+'Analisis Financiero'!L64 -> 3536555329 | I33: =+'Analisis Financiero'!M57+'Analisis Financiero'!M64 -> 3654558584 | J33: =+'Analisis Financiero'!N57+'Analisis Financiero'!N64 -> 3536726266
A34: Patrimonio K | F34: =+'Analisis Financiero'!J77-'Analisis Financiero'!J76 -> 20022268805 | G34: =+'Analisis Financiero'!K77-'Analisis Financiero'!K76 -> 2.26008817e+10 | H34: =+'Analisis Financiero'!L77-'Analisis Financiero'!L76 -> 2.489395462e+10 | I34: =+'Analisis Financiero'!M77-'Analisis Financiero'!M76 -> 2.677132951e+10 | J34: =+'Analisis Financiero'!N77-'Analisis Financiero'!N76 -> 2.884078676e+10
A35: Beta Apalancada BL = BU * ( 1 + (1-t) * D/P) | F35: =+$F$30*(1+(1-('Analisis Financiero'!K98/'Analisis Financiero'!K97))*('Valoración Sin Estrategia FLC P'!F33/'Valoración Sin Estrategia FLC P'!F34)) -> 0.8606631149 | G35: =+$F$30*(1+(1-('Analisis Financiero'!L98/'Analisis Financiero'!L97))*('Valoración Sin Estrategia FLC P'!G33/'Valoración Sin Estrategia FLC P'!G34)) -> 0.8488978829 | H35: =+$F$30*(1+(1-('Analisis Financiero'!M98/'Analisis Financiero'!M97))*('Valoración Sin Estrategia FLC P'!H33/'Valoración Sin Estrategia FLC P'!H34)) -> 0.8440275133 | I35: =+$F$30*(1+(1-('Analisis Financiero'!N98/'Analisis Financiero'!N97))*('Valoración Sin Estrategia FLC P'!I33/'Valoración Sin Estrategia FLC P'!I34)) -> 0.8412940577 | J35: =+$F$30*(1+(1-('Analisis Financiero'!O98/'Analisis Financiero'!O97))*('Valoración Sin Estrategia FLC P'!J33/'Valoración Sin Estrategia FLC P'!J34)) -> 0.8344632814 | K35: **
A37: Costo del Patrimonio Ke = Kl + (Km - KL)*B + RP | F37: =+$F$15+($F$25-$F$15)*F35+$F$17 -> 0.1917439165 | G37: =+$F$15+($F$25-$F$15)*G35+$F$17 -> 0.1900104631 | H37: 0.1892928777 | I37: 0.1888901387 | J37: 0.187883713
A40: Estructura Deuda D/(D+ K) | F40: =+F33/(F33+F34) -> 0.1495659058 | G40: =+G33/(G33+G34) -> 0.1319157463 | H40: 0.1243929615 | I40: 0.1201134564 | J40: 0.1092340311
A41: Estructura Patrimonio K/(D+ K) | F41: =+F34/(F33+F34) -> 0.8504340942 | G41: =+G34/(G33+G34) -> 0.8680842537 | H41: 0.8756070385 | I41: 0.8798865436 | J41: 0.8907659689
A42: Total Estructura de Capital D+K | F42: =+F40+F41 -> 1 | G42: =+G40+G41 -> 1 | H42: 1 | I42: 1 | J42: 1
A44: Costo Despues de Impuestos (Escudo Fiscal) Kd*(1- tx) | F44: =+'Analisis Financiero'!X16*(1-'Analisis Financiero'!K98/'Analisis Financiero'!K97) -> 0.05952632397 | G44: =+'Analisis Financiero'!Y16*(1-'Analisis Financiero'!L98/'Analisis Financiero'!L97) -> 0.05703949164 | H44: =+'Analisis Financiero'!Z16*(1-'Analisis Financiero'!M98/'Analisis Financiero'!M97) -> 0.05550467365 | I44: =+'Analisis Financiero'!AA16*(1-'Analisis Financiero'!N98/'Analisis Financiero'!N97) -> 0.05386631393 | J44: =+'Analisis Financiero'!AB16*(1-'Analisis Financiero'!O98/'Analisis Financiero'!O97) -> 0.05543473721
A46: Aporte Costo de la Deuda Estructura deuda * Costo | F46: =+F40*F44 -> 0.008903108562 | G46: =+G40*G44 -> 0.007524407106 | H46: 0.006904390732 | I46: 0.006470069151 | J46: 0.00605535981
A47: Aporte Costo Patrimonio Estructura Patromonio * Costo | F47: =+F41*F37 -> 0.1630655639 | G47: =+G41*G37 -> 0.1649450911 | H47: 0.1657461761 | I47: 0.1662018913 | J47: 0.1673604177
A49: COSTO DE CAPITAL - WACC | F49: =+SUM(F46:F47) -> 0.1719686725 | G49: =+SUM(G46:G47) -> 0.1724694982 | H49: 0.1726505668 | I49: 0.1726719604 | J49: 0.1734157775
A51: FLUJO DE CAJA PROYECTADO
F54: =F32 -> 2022 | G54: =G32 -> 2023 | H54: =H32 -> 2024 | I54: =I32 -> 2025 | J54: =J32 -> 2026
B55: UTILIDAD DEL EJERCICIO | F55: =+'Analisis Financiero'!K99 -> 2722868189 | G55: =+'Analisis Financiero'!L99 -> 2962317218 | H55: =+'Analisis Financiero'!M99 -> 3161799659 | I55: =+'Analisis Financiero'!N99 -> 3356907993 | J55: =+'Analisis Financiero'!O99 -> 3557100558
B56: (+) Impuestos CAUSADOS | F56: =+'Analisis Financiero'!K98 -> 1560436410 | G56: =+'Analisis Financiero'!L98 -> 1697661188 | H56: =+'Analisis Financiero'!M98 -> 1811981693 | I56: =+'Analisis Financiero'!N98 -> 1923795459 | J56: =+'Analisis Financiero'!O98 -> 2038522925
B57: (+) Gastos financiero | F57: =+'Analisis Financiero'!K95 -> 574210060.6 | G57: =+'Analisis Financiero'!L95 -> 624706093.4 | H57: =+'Analisis Financiero'!M95 -> 666773801.7 | I57: =+'Analisis Financiero'!N95 -> 707919079.4 | J57: =+'Analisis Financiero'!O95 -> 750136541.7
B58: EBIT | F58: =+SUM(F55:F57) -> 4857514660 | G58: =+SUM(G55:G57) -> 5284684499 | H58: 5640555154 | I58: 5988622531 | J58: 6345760024
B60: (-) Impuestos AJUSTADOS Impuestos operacionales | F60: =+F58*('Analisis Financiero'!K98/'Analisis Financiero'!K97) -> 1769624962 | G60: =+G58*('Analisis Financiero'!L98/'Analisis Financiero'!L97) -> 1925245781 | H60: =+H58*('Analisis Financiero'!M98/'Analisis Financiero'!M97) -> 2054891832 | I60: =+I58*('Analisis Financiero'!N98/'Analisis Financiero'!N97) -> 2181695097 | J60: =+J58*('Analisis Financiero'!O98/'Analisis Financiero'!O97) -> 2311802666
B61: UODI RODI NOPAT NOPLAT EBIT (1 - tx) | F61: =+F58-F60 -> 3087889698 | G61: =+G58-G60 -> 3359438718 | H61: 3585663321 | I61: 3806927434 | J61: 4033957358
B63: (+) Depreciación | F63: =+'Analisis Financiero'!K104 -> 341879994.5 | G63: =+'Analisis Financiero'!L104 -> 239381929.8 | H63: =+'Analisis Financiero'!M104 -> 290630962.1 | I63: =+'Analisis Financiero'!N104 -> 265006445.9 | J63: =+'Analisis Financiero'!O104 -> 277818704
B64: (+) Amortizacion | F64: =+'Analisis Financiero'!K105 -> 0 | G64: =+'Analisis Financiero'!L105 -> 0 | H64: =+'Analisis Financiero'!M105 -> 0 | I64: =+'Analisis Financiero'!N105 -> 0 | J64: =+'Analisis Financiero'!O105 -> 0
B65: (+) Provisiones | F65: 0 | G65: 0 | H65: 0 | I65: 0 | J65: 0
B66: 1 Flujo operativo o flujo bruto | F66: =+F61+F63+F64+F65 -> 3429769693 | G66: =+G61+G63+G64+G65 -> 3598820648 | H66: 3876294284 | I66: 4071933880 | J66: 4311776062
B68: (-) Variación del capital de trabajo | F68: =+F74-E74 -> 1134835184 | G68: =+G74-F74 -> 1090834209 | H68: 908762389 | I68: 888835698.3 | J68: 911997428.7
B69: (-) Inversión en activos | F69: =+'Analisis Financiero'!K49-'Analisis Financiero'!J49 -> 1062515433 | G69: =+'Analisis Financiero'!L49-'Analisis Financiero'!K49 -> 1021318513 | H69: =+'Analisis Financiero'!M49-'Analisis Financiero'!L49 -> 850849601.3 | I69: =+'Analisis Financiero'!N49-'Analisis Financiero'!M49 -> 832192780.8 | J69: =+'Analisis Financiero'!O49-'Analisis Financiero'!N49 -> 853878481.3
B70: 2 Financiación de inversiones | F70: =+F68+F69 -> 2197350617 | G70: =+G68+G69 -> 2112152722 | H70: 1759611990 | I70: 1721028479 | J70: 1765875910
B72: (1 - 2) FCLO | F72: =+F66-F70 -> 1232419075 | G72: =+G66-G70 -> 1486667926 | H72: 2116682293 | I72: 2350905401 | J72: 2545900152
A73: Anexo KTNO
A74: Calculo KTNO | E74: =+'Analisis Financiero'!J127 -> 11269465579 | F74: =+'Analisis Financiero'!K127 -> 1.240430076e+10 | G74: =+'Analisis Financiero'!L127 -> 1.349513497e+10 | H74: =+'Analisis Financiero'!M127 -> 1.440389736e+10 | I74: =+'Analisis Financiero'!N127 -> 1.529273306e+10 | J74: =+'Analisis Financiero'!O127 -> 1.620473049e+10
A75: MÉTODO FLUJO DE CAJA DESCONTADO FCLD - Modelo de Anualidad Perpetua
J79: =J54 -> 2026
E80: FCLOn | F80: Ultimo FCLO conocido | J80: =+J72 -> 2545900152
E81: WACC n | F81: Ultimo costo de capital conocido | J81: =+J49 -> 0.1734157775
E82: g | F82: Gradiente a perpetuidad | H82: =CHOOSE('Analisis Financiero'!$F$30,AVERAGE('Analisis Financiero'!K25:O25),AVERAGE('Analisis Financiero'!S25:W25),AVERAGE('Analisis Financiero'!Y25:AC25),AVERAGE('Analisis Financiero'!K25:O25)) ->  | I82: =CHOOSE('Analisis Financiero'!$F$30,AVERAGE('Analisis Financiero'!K26:O26),AVERAGE('Analisis Financiero'!S26:W26),AVERAGE('Analisis Financiero'!Y26:AC26),AVERAGE('Analisis Financiero'!K26:O26)) ->  | J82: =+H82+I82 -> 
E84: M1 | F84: MODELO ANUALIDAD PERPETUA
F85: FCLO (último valor conocido) | J85: =+J80 -> 2545900152 | K85: Representa una serie de pagos Futuros Constantes y perpetuos
F86: WACC (último valor conocido) | J86: =+J81 -> 0.1734157775
F87: VALOR TERMINAL (FCLO / WACC) | J87: =+J85/J86 -> 1.468090268e+10
E89: M2 | F89: MODELO CRECIMIENTO CONSTANTE
F90: FCLO (último valor conocido) | J90: =+J80 -> 2545900152 | K90: Representa pagos perpetuos con un grado de crecimiento constante
F91: WACC (último valor conocido) | J91: =+J81 -> 0.1734157775
F92: Tasa de crecimiento - perpetuidad g | J92: =+J82 -> 
F93: VALOR TERMINAL FCLO*(1+g) / (WAAC - g) | J93: =+J90*(1+J92)/(J91-J92) -> 
A96: VALOR PRESENTE FLUJOS DE CAJA PROYECTADOS | F96: =F54 -> 2022 | G96: =G54 -> 2023 | H96: =H54 -> 2024 | I96: =I54 -> 2025 | J96: =J54 -> 2026 | K96: MÉTODO FLUJO DE CAJA LIBRE DESCONTADO
A97: Costo de Capital - WACC | F97: =+F49 -> 0.1719686725 | G97: =+G49 -> 0.1724694982 | H97: 0.1726505668 | I97: 0.1726719604 | J97: 0.1734157775
A98: Tasa Acumulada | F98: =+F97 -> 0.1719686725 | G98: =+((1+F98)*(1+G97))-1 -> 0.3740975213 | H98: =+((1+G98)*(1+H97))-1 -> 0.6113362372 | I98: 0.8895688242 | J98: 1.217249871
A100: FCL | F100: =+F72 -> 1232419075 | G100: =+G72 -> 1486667926 | H100: 2116682293 | I100: 2350905401 | J100: 2545900152
A101: Valor Terminal | J101: =+J87 -> 1.468090268e+10
A103: Valor presente Flujos de caja Proyectados | F103: =+F100/(1+F98) -> 1051580221 | G103: =+G100/(1+G98) -> 1081923155 | H103: 1313619246 | I103: 1244149126 | J103: 1148224287
A104: Valor Terminal | J104: =+J101/(1+J98) -> 6621221573
A106: (+) VALOR PRESENTE DE LOS FLUJOS | F106: =+SUM(F103:J103) -> 5839496035
A107: (+) VALOR PRESENTE DEL VALOR TERMINAL | F107: =+J104 -> 6621221573
A108: (=)VALOR DE LAS OPERACIONES O DE MERCADO | F108: =+F106+F107 -> 1.246071761e+10
A110: Valor de mercado de la empresa | F110: =+F108 -> 1.246071761e+10
A111: (Menos) Deuda operacional (Pasivo Corriente - Oblig.Finan CP) | F111: =+('Analisis Financiero'!J62-'Analisis Financiero'!J57) -> 3866050632
A112: (Más) Activo corriente (Disp. Inver, Clientes, Invet.) | F112: =+'Analisis Financiero'!J40+'Analisis Financiero'!J42+'Analisis Financiero'!J43 -> 12673675404
A113: (Menos) Deuda financiera CP + LP | F113: =+'Analisis Financiero'!J57+'Analisis Financiero'!J64 -> 3521317866
A114: VALOR DE MERCADO DEL PATRIMONIO | F114: =+F110-F111+F112-F113 -> 1.774702451e+10
A116: Patrimonio contable | F116: =+'Analisis Financiero'!J77 -> 21223153995
A118: Numero de Acciones | F118: 400000 | G118: Valor
A119: Valor en Libros por acción | F119: =+F116/F118 -> 53057.88499
A120: Valor de Mercado de la Acción | F120: =+F114/F118 -> 44367.56129
A121: P/BV | F121: =+F120/F119 -> 0.8362105142
A122: DATO DAMODARAN | D122: Total Market | E122: 1.904612717
A125: MÉTODOS CONTABLES O DE BALANCE
A128: VALOR PATRIMONIAL O VALOR EN LIBROS | F128: =F96 -> 2022 | G128: =G96 -> 2023 | H128: =H96 -> 2024 | I128: =I96 -> 2025 | J128: =J96 -> 2026 | K128: MÉTODOS CONTABLES O DEL BALANCE
A129: Activos Totales | F129: =+'Analisis Financiero'!K54 -> 3.618355296e+10 | G129: =+'Analisis Financiero'!L54 -> 3.936553461e+10 | H129: =+'Analisis Financiero'!M54 -> 4.201640971e+10 | I129: =+'Analisis Financiero'!N54 -> 4.460915832e+10 | J129: =+'Analisis Financiero'!O54 -> 4.726947009e+10
A130: Pasivos Totales | F130: =+'Analisis Financiero'!K69 -> 1.238178607e+10 | G130: =+'Analisis Financiero'!L69 -> 1.32706948e+10 | H130: =+'Analisis Financiero'!M69 -> 1.404419501e+10 | I130: =+'Analisis Financiero'!N69 -> 1.456748637e+10 | J130: =+'Analisis Financiero'!O69 -> 1.522916888e+10
A131: Patrimonio A - P = Pat | F131: =+F129-F130 -> 2.380176689e+10 | G131: =+G129-G130 -> 2.609483981e+10 | H131: 2.79722147e+10 | I131: 3.004167195e+10 | J131: 3.20403012e+10
A132: Valor en Libros Acción | F132: =+F131/$F$118 -> 59504.41724 | G132: =+G131/$F$118 -> 65237.09952 | H132: 69930.53676 | I132: 75104.17987 | J132: 80100.75301
A133: P/BV | F133: =+F132/$F$119 -> 1.121499985 | G133: =+G132/$F$119 -> 1.229545798 | H133: =+H132/$F$119 -> 1.318004605 | I133: =+I132/$F$119 -> 1.415514016 | J133: 1.509686129
A138: VALOR SUSTANCIAL NETO | F138: =F128 -> 2022 | G138: 2023 | H138: 2024 | I138: 2025 | J138: 2026
A139: Activos totales | F139: =+F129 -> 3.618355296e+10 | G139: =+G129 -> 3.936553461e+10 | H139: 4.201640971e+10 | I139: 4.460915832e+10 | J139: 4.726947009e+10
A140: Pasivo Exigible Deudas Financiacion con terceros FIN CP + FIN LP + PROVE | F140: =+'Analisis Financiero'!K57+'Analisis Financiero'!K59+'Analisis Financiero'!K64 -> 4736919045 | G140: =+'Analisis Financiero'!L57+'Analisis Financiero'!L59+'Analisis Financiero'!L64 -> 4953538172 | H140: =+'Analisis Financiero'!M57+'Analisis Financiero'!M59+'Analisis Financiero'!M64 -> 5166961051 | I140: =+'Analisis Financiero'!N57+'Analisis Financiero'!N59+'Analisis Financiero'!N64 -> 5142456064 | J140: =+'Analisis Financiero'!O57+'Analisis Financiero'!O59+'Analisis Financiero'!O64 -> 5242067466 | L140: **
A141: Patrimonio Act - financiacion con terceros = Pat | F141: =+F139-F140 -> 3.144663392e+10 | G141: =+G139-G140 -> 3.441199644e+10 | H141: 3.684944866e+10 | I141: 3.946670226e+10 | J141: 4.202740262e+10
A142: Valor de la Acción | F142: =+F141/$F$118 -> 78616.58479 | G142: =+G141/$F$118 -> 86029.99109 | H142: 92123.62164 | I142: 98666.75564 | J142: 105068.5065
A143: P/BV | F143: =+F142/$F$119 -> 1.481713506 | G143: =+G142/$F$119 -> 1.621436495 | H143: 1.736285223 | I143: 1.859605894 | J143: 1.98026187
A153: RESUMEN RESULTADOS DE VALORACIÓN
A155: Método | F155: Valor Empresa Ultimo Conocido | G155: Ultimo Patrimonio Real | H155: Valor Creado Proyectado 5 Años | I155: P/BV | J155: P/BV Sector (Damodaran) | K155: Diferencia
A156: Patrimonial | F156: =+J131 -> 3.20403012e+10 | G156: =+'Analisis Financiero'!J77 -> 21223153995 | H156: =+F156-G156 -> 1.081714721e+10 | I156: =+F156/G156 -> 1.509686129 | J156: 1.9 | K156: =+I156-J156 -> -0.3903138708
A157: Sustancial Neto | F157: =+J141 -> 4.202740262e+10 | G157: =+G156 -> 21223153995 | H157: =+F157-G157 -> 2.080424862e+10 | I157: =+F157/G157 -> 1.98026187 | J157: 1.9 | K157: =+I157-J157 -> 0.08026187007 | L157: =+AVERAGE(F156:F158) -> 3.060490945e+10 | N157: =+L157/G158 -> 1.442052838
A158: FCLD valor residual perpetuo | F158: =+F114 -> 1.774702451e+10 | G158: =+G157 -> 21223153995 | H158: =+F158-G158 -> -3476129481 | I158: =+F158/G158 -> 0.8362105142 | J158: 1.9 | K158: =+I158-J158 -> -1.063789486 | N158: Valor Medio

Sheet Valoración Sin Estrategia FLC C
A1: MODELOS DE VALORACIÓN INICIAL - FCLD con el Modelo De Crecimiento Constante
A3: =+'Valoración Sin Estrategia FLC P'!A3:Q3 -> COMPAÑÍA VS LTDA
A4: =+'Cifras Historicas'!A11:O11 -> COMPAÑÍA VS LTDA
A5: Pesos Colombianos
A6: a 31 de Diciembre
A7: COSTO DE CAPITAL
A8: CALCULO DEL COSTO DE LOS RECURSOS PROPIOS | I8: TASAS HISTORICAS
A9: CONCEPTO | F9: ='Analisis Financiero'!J24 -> 2021 | I9: Años | J9: Rentabilidad acciones USA S&P | K9: Rentabilidad Bonos del Tesoro USA | L9: Inflación USA | M9: Inflación Colombia | N9: RIESGO PAÍS
A10: Tasa libre de riesgo nominal en dólares KL USA | F10: =+AVERAGE(K10:K19) -> 0.0259186884 | G10: Kl | I10: 2012 | J10: 0.1589058524 | K10: 0.02971571978 | L10: 0.0206934 | M10: 0.0244 | N10: 0.0112
A11: Inflación en USA | F11: =+AVERAGE(L10:L19) -> 0.02140929 | I11: 2013 | J11: 0.3214508586 | K11: -0.09104568794 | L11: 0.0146483 | M11: 0.0194 | N11: 0.0166
A12: Tasa libre de riesgo real en dólares | F12: =+((1+F10)/(1+F11))-1 -> 0.004414878979 | I12: 2014 | J12: 0.1352442165 | K12: 0.1074618045 | L12: 0.0162222 | M12: 0.0366 | N12: 0.0196
I13: 2015 | J13: 0.01378891641 | K13: 0.01284299671 | L13: 0.0011863 | M13: 0.0677 | N13: 0.0321
A14: Inflación COLOMBIA | F14: =+AVERAGE(M10:M19) -> 0.03886 | I14: 2016 | J14: 0.1177308087 | K14: 0.006905504699 | L14: 0.0126158 | M14: 0.0575 | N14: 0.0227
A15: Tasa libre de riesgo nominal en $COL | F15: =+((1+F14)*(1+F12))-1 -> 0.04344644118 | I15: 2017 | J15: 0.2160548143 | K15: 0.02801716271 | L15: 0.0213011 | M15: 0.0409 | N15: 0.0174
I16: 2018 | J16: -0.04226869289 | K16: -0.0001669238571 | L16: 0.0244258 | M16: 0.0318 | N16: 0.0231
A17: Riesgo país Colombia | F17: =+AVERAGE(N10:N19) -> 0.02149 | G17: RP | I17: 2019 | J17: 0.3221 | K17: 0.09635630742 | L17: 0.0229 | M17: 0.038 | N17: 0.0161
I18: 2020 | J18: 0.1801 | K18: 0.1133 | L18: 0.012 | M18: 0.0161 | N18: 0.0209
I19: 2021 | J19: 0.2847 | K19: -0.0442 | L19: 0.0681 | M19: 0.0562 | N19: 0.0352
A20: Rentabilidad Mercado en dólares Km USA | F20: =+AVERAGE(J10:J19) -> 0.1707806774 | G20: Km
A21: Inflación en USA | F21: =+AVERAGE(L10:L19) -> 0.02140929
A22: Rentabilidad del Mercado real en dólares Km USA | F22: =+((1+F20)/(1+F21))-1 -> 0.1462404825
A24: Inflación COLOMBIA | F24: =+F14 -> 0.03886
A25: Rentabilidad del Mercado en $COL | F25: =+((1+F24)*(1+F22))-1 -> 0.1907833877
A27: Prima de riesgo del mercado (Km - KL) | F27: =+F25-F15 -> 0.1473369465
A30: Beta Desapalancada BU Sectorial | F30: 0.7741172457 | G30: Fuente: Damodaran 2021 Total Market
F32: ='Analisis Financiero'!K24 -> 2022 | G32: ='Analisis Financiero'!L24 -> 2023 | H32: ='Analisis Financiero'!M24 -> 2024 | I32: ='Analisis Financiero'!N24 -> 2025 | J32: ='Analisis Financiero'!O24 -> 2026
A33: Deuda D | F33: =+'Analisis Financiero'!J57+'Analisis Financiero'!J64 -> 3521317866 | G33: =+'Analisis Financiero'!K57+'Analisis Financiero'!K64 -> 3434473283 | H33: =+'Analisis Financiero'!L57+'Analisis Financiero'!L64 -> 3536555329 | I33: =+'Analisis Financiero'!M57+'Analisis Financiero'!M64 -> 3654558584 | J33: =+'Analisis Financiero'!N57+'Analisis Financiero'!N64 -> 3536726266
A34: Patrimonio K | F34: =+'Analisis Financiero'!J77-'Analisis Financiero'!J76 -> 20022268805 | G34: =+'Analisis Financiero'!K77-'Analisis Financiero'!K76 -> 2.26008817e+10 | H34: =+'Analisis Financiero'!L77-'Analisis Financiero'!L76 -> 2.489395462e+10 | I34: =+'Analisis Financiero'!M77-'Analisis Financiero'!M76 -> 2.677132951e+10 | J34: =+'Analisis Financiero'!N77-'Analisis Financiero'!N76 -> 2.884078676e+10
A35: Beta Apalancada BL = BU * ( 1 + (1-t) * D/P) | F35: =+$F$30*(1+(1-('Analisis Financiero'!K98/'Analisis Financiero'!K97))*('Valoración Sin Estrategia FLC C'!F33/'Valoración Sin Estrategia FLC C'!F34)) -> 0.8606631149 | G35: =+$F$30*(1+(1-('Analisis Financiero'!L98/'Analisis Financiero'!L97))*('Valoración Sin Estrategia FLC C'!G33/'Valoración Sin Estrategia FLC C'!G34)) -> 0.8488978829 | H35: =+$F$30*(1+(1-('Analisis Financiero'!M98/'Analisis Financiero'!M97))*('Valoración Sin Estrategia FLC C'!H33/'Valoración Sin Estrategia FLC C'!H34)) -> 0.8440275133 | I35: =+$F$30*(1+(1-('Analisis Financiero'!N98/'Analisis Financiero'!N97))*('Valoración Sin Estrategia FLC C'!I33/'Valoración Sin Estrategia FLC C'!I34)) -> 0.8412940577 | J35: =+$F$30*(1+(1-('Analisis Financiero'!O98/'Analisis Financiero'!O97))*('Valoración Sin Estrategia FLC C'!J33/'Valoración Sin Estrategia FLC C'!J34)) -> 0.8344632814
A37: Costo del Patrimonio Ke = Kl + (Km - KL)*B + RP | F37: =+$F$15+($F$25-$F$15)*F35+$F$17 -> 0.1917439165 | G37: =+$F$15+($F$25-$F$15)*G35+$F$17 -> 0.1900104631 | H37: 0.1892928777 | I37: 0.1888901387 | J37: 0.187883713
A40: Estructura Deuda D/(D+ K) | F40: =+F33/(F33+F34) -> 0.1495659058 | G40: =+G33/(G33+G34) -> 0.1319157463 | H40: 0.1243929615 | I40: 0.1201134564 | J40: 0.1092340311
A41: Estructura Patrimonio K/(D+ K) | F41: =+F34/(F33+F34) -> 0.8504340942 | G41: =+G34/(G33+G34) -> 0.8680842537 | H41: 0.8756070385 | I41: 0.8798865436 | J41: 0.8907659689
A42: Total Estructura de Capital D+K | F42: =+F40+F41 -> 1 | G42: =+G40+G41 -> 1 | H42: 1 | I42: 1 | J42: 1
A44: Costo Despues de Impuestos (Escudo Fiscal) Kd*(1- tx) | F44: =+'Analisis Financiero'!X16*(1-'Analisis Financiero'!K98/'Analisis Financiero'!K97) -> 0.05952632397 | G44: =+'Analisis Financiero'!Y16*(1-'Analisis Financiero'!L98/'Analisis Financiero'!L97) -> 0.05703949164 | H44: =+'Analisis Financiero'!Z16*(1-'Analisis Financiero'!M98/'Analisis Financiero'!M97) -> 0.05550467365 | I44: =+'Analisis Financiero'!AA16*(1-'Analisis Financiero'!N98/'Analisis Financiero'!N97) -> 0.05386631393 | J44: =+'Analisis Financiero'!AB16*(1-'Analisis Financiero'!O98/'Analisis Financiero'!O97) -> 0.05543473721
A46: Aporte Costo de la Deuda Estructura deuda * Costo | F46: =+F40*F44 -> 0.008903108562 | G46: =+G40*G44 -> 0.007524407106 | H46: 0.006904390732 | I46: 0.006470069151 | J46: 0.00605535981
A47: Aporte Costo Patrimonio Estructura Patromonio * Costo | F47: =+F41*F37 -> 0.1630655639 | G47: =+G41*G37 -> 0.1649450911 | H47: 0.1657461761 | I47: 0.1662018913 | J47: 0.1673604177
A49: COSTO DE CAPITAL - WACC | F49: =+SUM(F46:F47) -> 0.1719686725 | G49: =+SUM(G46:G47) -> 0.1724694982 | H49: 0.1726505668 | I49: 0.1726719604 | J49: 0.1734157775
A51: FLUJO DE CAJA PROYECTADO
F54: =F32 -> 2022 | G54: =G32 -> 2023 | H54: =H32 -> 2024 | I54: =I32 -> 2025 | J54: =J32 -> 2026
B55: UTILIDAD DEL EJERCICIO | F55: =+'Analisis Financiero'!K99 -> 2722868189 | G55: =+'Analisis Financiero'!L99 -> 2962317218 | H55: =+'Analisis Financiero'!M99 -> 3161799659 | I55: =+'Analisis Financiero'!N99 -> 3356907993 | J55: =+'Analisis Financiero'!O99 -> 3557100558
B56: (+) Impuestos CAUSADOS | F56: =+'Analisis Financiero'!K98 -> 1560436410 | G56: =+'Analisis Financiero'!L98 -> 1697661188 | H56: =+'Analisis Financiero'!M98 -> 1811981693 | I56: =+'Analisis Financiero'!N98 -> 1923795459 | J56: =+'Analisis Financiero'!O98 -> 2038522925
B57: (+) Gastos financiero | F57: =+'Analisis Financiero'!K95 -> 574210060.6 | G57: =+'Analisis Financiero'!L95 -> 624706093.4 | H57: =+'Analisis Financiero'!M95 -> 666773801.7 | I57: =+'Analisis Financiero'!N95 -> 707919079.4 | J57: =+'Analisis Financiero'!O95 -> 750136541.7
B58: EBIT | F58: =+SUM(F55:F57) -> 4857514660 | G58: =+SUM(G55:G57) -> 5284684499 | H58: 5640555154 | I58: 5988622531 | J58: 6345760024
B60: (-) Impuestos AJUSTADOS Impuestos operacionales | F60: =+F58*('Analisis Financiero'!K98/'Analisis Financiero'!K97) -> 1769624962 | G60: =+G58*('Analisis Financiero'!L98/'Analisis Financiero'!L97) -> 1925245781 | H60: =+H58*('Analisis Financiero'!M98/'Analisis Financiero'!M97) -> 2054891832 | I60: =+I58*('Analisis Financiero'!N98/'Analisis Financiero'!N97) -> 2181695097 | J60: =+J58*('Analisis Financiero'!O98/'Analisis Financiero'!O97) -> 2311802666
B61: UODI RODI NOPAT NOPLAT EBIT (1 - tx) | F61: =+F58-F60 -> 3087889698 | G61: =+G58-G60 -> 3359438718 | H61: 3585663321 | I61: 3806927434 | J61: 4033957358
B63: (+) Depreciación | F63: =+'Analisis Financiero'!K104 -> 341879994.5 | G63: =+'Analisis Financiero'!L104 -> 239381929.8 | H63: =+'Analisis Financiero'!M104 -> 290630962.1 | I63: =+'Analisis Financiero'!N104 -> 265006445.9 | J63: =+'Analisis Financiero'!O104 -> 277818704
B64: (+) Amortizacion | F64: =+'Analisis Financiero'!K105 -> 0 | G64: =+'Analisis Financiero'!L105 -> 0 | H64: =+'Analisis Financiero'!M105 -> 0 | I64: =+'Analisis Financiero'!N105 -> 0 | J64: =+'Analisis Financiero'!O105 -> 0
B65: (+) Provisiones | F65: 0 | G65: 0 | H65: 0 | I65: 0 | J65: 0
B66: 1 Flujo operativo o flujo bruto | F66: =+F61+F63+F64+F65 -> 3429769693 | G66: =+G61+G63+G64+G65 -> 3598820648 | H66: 3876294284 | I66: 4071933880 | J66: 4311776062
B68: (-) Variación del capital de trabajo | F68: =+F74-E74 -> 1134835184 | G68: =+G74-F74 -> 1090834209 | H68: 908762389 | I68: 888835698.3 | J68: 911997428.7
B69: (-) Inversión en activos | F69: =+'Analisis Financiero'!K49-'Analisis Financiero'!J49 -> 1062515433 | G69: =+'Analisis Financiero'!L49-'Analisis Financiero'!K49 -> 1021318513 | H69: =+'Analisis Financiero'!M49-'Analisis Financiero'!L49 -> 850849601.3 | I69: =+'Analisis Financiero'!N49-'Analisis Financiero'!M49 -> 832192780.8 | J69: =+'Analisis Financiero'!O49-'Analisis Financiero'!N49 -> 853878481.3
B70: 2 Financiación de inversiones | F70: =+F68+F69 -> 2197350617 | G70: =+G68+G69 -> 2112152722 | H70: 1759611990 | I70: 1721028479 | J70: 1765875910
B72: (1 - 2) FCLO | F72: =+F66-F70 -> 1232419075 | G72: =+G66-G70 -> 1486667926 | H72: 2116682293 | I72: 2350905401 | J72: 2545900152
A73: Anexo KTNO
A74: Calculo KTNO | E74: =+'Analisis Financiero'!J127 -> 11269465579 | F74: =+'Analisis Financiero'!K127 -> 1.240430076e+10 | G74: =+'Analisis Financiero'!L127 -> 1.349513497e+10 | H74: =+'Analisis Financiero'!M127 -> 1.440389736e+10 | I74: =+'Analisis Financiero'!N127 -> 1.529273306e+10 | J74: =+'Analisis Financiero'!O127 -> 1.620473049e+10
A75: MÉTODO FLUJO DE CAJA DESCONTADO FCLD - MODELO CRECIMIENTO CONSTANTE
J79: =J54 -> 2026
E80: FCLOn | F80: Ultimo FCLO conocido | J80: =+J72 -> 2545900152
E81: WACC n | F81: Ultimo costo de capital conocido | J81: =+J49 -> 0.1734157775
E82: g | F82: Gradiente a perpetuidad | H82: =AVERAGE('Analisis Financiero'!K25:O25) -> 0.0312 | I82: =AVERAGE('Analisis Financiero'!K26:O26) -> 0.04212 | J82: =+H82+I82 -> 0.07332
E84: M1 | F84: MODELO ANUALIDAD PERPETUA
F85: FCLO (último valor conocido) | J85: =+J80 -> 2545900152 | K85: Representa una serie de pagos Futuros Constantes y perpetuos
F86: WACC (último valor conocido) | J86: =+J81 -> 0.1734157775
F87: VALOR TERMINAL (FCLO / WACC) | J87: =+J85/J86 -> 1.468090268e+10
E89: M2 | F89: MODELO CRECIMIENTO CONSTANTE
F90: FCLO (último valor conocido) | J90: =+J80 -> 2545900152 | K90: Representa pagos perpetuos con un grado de crecimiento constante
F91: WACC (último valor conocido) | J91: =+J81 -> 0.1734157775
F92: Tasa de crecimiento - perpetuidad g | J92: =+J82 -> 0.07332
F93: VALOR TERMINAL FCLO*(1+g) / (WAAC - g) | J93: =+J90*(1+J92)/(J91-J92) -> 2.729950873e+10
A96: VALOR PRESENTE FLUJOS DE CAJA PROYECTADOS | F96: =F54 -> 2022 | G96: =G54 -> 2023 | H96: =H54 -> 2024 | I96: =I54 -> 2025 | J96: =J54 -> 2026 | K96: MÉTODO FLUJO DE CAJA LIBRE DESCONTADO
A97: Costo de Capital - WACC | F97: =+F49 -> 0.1719686725 | G97: =+G49 -> 0.1724694982 | H97: 0.1726505668 | I97: 0.1726719604 | J97: 0.1734157775
A98: Tasa Acumulada | F98: =+F97 -> 0.1719686725 | G98: =+((1+F98)*(1+G97))-1 -> 0.3740975213 | H98: =+((1+G98)*(1+H97))-1 -> 0.6113362372 | I98: 0.8895688242 | J98: 1.217249871
A100: FCL | F100: =+F72 -> 1232419075 | G100: =+G72 -> 1486667926 | H100: 2116682293 | I100: 2350905401 | J100: 2545900152
A101: Valor Terminal | J101: =+J93 -> 2.729950873e+10
A103: Valor presente Flujos de caja Proyectados | F103: =+F100/(1+F98) -> 1051580221 | G103: =+G100/(1+G98) -> 1081923155 | H103: 1313619246 | I103: 1244149126 | J103: 1148224287
A104: Valor Terminal | J104: =+J101/(1+J98) -> 1.231232848e+10
A106: (+) VALOR PRESENTE DE LOS FLUJOS | F106: =+SUM(F103:J103) -> 5839496035
A107: (+) VALOR PRESENTE DEL VALOR TERMINAL | F107: =+J104 -> 1.231232848e+10
A108: (=)VALOR DE LAS OPERACIONES O DE MERCADO | F108: =+F106+F107 -> 1.815182451e+10
A110: Valor de mercado de la empresa | F110: =+F108 -> 1.815182451e+10
A111: (Menos) Deuda operacional (Pasivo Corriente - Oblig.Finan CP) | F111: =+('Analisis Financiero'!J62-'Analisis Financiero'!J57) -> 3866050632
A112: (Más) Activo corriente (Disp. Inver, Clientes, Invet.) | F112: =+'Analisis Financiero'!J40+'Analisis Financiero'!J42+'Analisis Financiero'!J43 -> 12673675404
A113: (Menos) Deuda financiera CP + LP | F113: =+'Analisis Financiero'!J57+'Analisis Financiero'!J64 -> 3521317866
A114: VALOR DE MERCADO DEL PATRIMONIO | F114: =+F110-F111+F112-F113 -> 2.343813142e+10
A116: Patrimonio contable | F116: =+'Analisis Financiero'!J77 -> 21223153995
A118: Numero de Acciones | F118: 400000 | G118: Valor
A119: Valor en Libros por acción | F119: =+F116/F118 -> 53057.88499
A120: Valor de Mercado de la Acción | F120: =+F114/F118 -> 58595.32855
A121: P/BV | F121: =+F120/F119 -> 1.104366082
A122: DATO DAMODARAN | D122: Total Market | E122: 1.904612717
A125: MÉTODOS CONTABLES O DE BALANCE
A128: VALOR PATRIMONIAL O VALOR EN LIBROS | F128: =F96 -> 2022 | G128: =G96 -> 2023 | H128: =H96 -> 2024 | I128: =I96 -> 2025 | J128: =J96 -> 2026 | K128: MÉTODOS CONTABLES O DEL BALANCE
A129: Activos Totales | F129: =+'Analisis Financiero'!K54 -> 3.618355296e+10 | G129: =+'Analisis Financiero'!L54 -> 3.936553461e+10 | H129: =+'Analisis Financiero'!M54 -> 4.201640971e+10 | I129: =+'Analisis Financiero'!N54 -> 4.460915832e+10 | J129: =+'Analisis Financiero'!O54 -> 4.726947009e+10
A130: Pasivos Totales | F130: =+'Analisis Financiero'!K69 -> 1.238178607e+10 | G130: =+'Analisis Financiero'!L69 -> 1.32706948e+10 | H130: =+'Analisis Financiero'!M69 -> 1.404419501e+10 | I130: =+'Analisis Financiero'!N69 -> 1.456748637e+10 | J130: =+'Analisis Financiero'!O69 -> 1.522916888e+10
A131: Patrimonio A - P = Pat | F131: =+F129-F130 -> 2.380176689e+10 | G131: =+G129-G130 -> 2.609483981e+10 | H131: 2.79722147e+10 | I131: 3.004167195e+10 | J131: 3.20403012e+10
A132: Valor en Libros Acción | F132: =+F131/$F$118 -> 59504.41724 | G132: =+G131/$F$118 -> 65237.09952 | H132: 69930.53676 | I132: 75104.17987 | J132: 80100.75301
A133: P/BV | F133: =+F132/$F$119 -> 1.121499985 | G133: =+G132/$F$119 -> 1.229545798 | H133: =+H132/$F$119 -> 1.318004605 | I133: =+I132/$F$119 -> 1.415514016 | J133: 1.509686129
A138: VALOR SUSTANCIAL NETO | F138: =F128 -> 2022 | G138: 2023 | H138: 2024 | I138: 2025 | J138: 2026
A139: Activos totales | F139: =+F129 -> 3.618355296e+10 | G139: =+G129 -> 3.936553461e+10 | H139: 4.201640971e+10 | I139: 4.460915832e+10 | J139: 4.726947009e+10
A140: Pasivo Exigible Deudas Financiacion con terceros FIN CP + FIN LP + PROVE | F140: =+'Analisis Financiero'!K57+'Analisis Financiero'!K59+'Analisis Financiero'!K64 -> 4736919045 | G140: =+'Analisis Financiero'!L57+'Analisis Financiero'!L59+'Analisis Financiero'!L64 -> 4953538172 | H140: =+'Analisis Financiero'!M57+'Analisis Financiero'!M59+'Analisis Financiero'!M64 -> 5166961051 | I140: =+'Analisis Financiero'!N57+'Analisis Financiero'!N59+'Analisis Financiero'!N64 -> 5142456064 | J140: =+'Analisis Financiero'!O57+'Analisis Financiero'!O59+'Analisis Financiero'!O64 -> 5242067466
A141: Patrimonio Act - financiacion con terceros = Pat | F141: =+F139-F140 -> 3.144663392e+10 | G141: =+G139-G140 -> 3.441199644e+10 | H141: 3.684944866e+10 | I141: 3.946670226e+10 | J141: 4.202740262e+10
A142: Valor de la Acción | F142: =+F141/$F$118 -> 78616.58479 | G142: =+G141/$F$118 -> 86029.99109 | H142: 92123.62164 | I142: 98666.75564 | J142: 105068.5065
A143: P/BV | F143: =+F142/$F$119 -> 1.481713506 | G143: =+G142/$F$119 -> 1.621436495 | H143: 1.736285223 | I143: 1.859605894 | J143: 1.98026187
A153: RESUMEN RESULTADOS DE VALORACIÓN
A155: Método | F155: Valor Empresa Ultimo Conocido | G155: Ultimo Patrimonio Real | H155: Valor Creado Proyectado 5 Años | I155: P/BV | J155: P/BV Sector (Damodaran) | K155: Diferencia
A156: Patrimonial | F156: =+J131 -> 3.20403012e+10 | G156: =+'Analisis Financiero'!J77 -> 21223153995 | H156: =+F156-G156 -> 1.081714721e+10 | I156: =+F156/G156 -> 1.509686129 | J156: 1.9 | K156: =+I156-J156 -> -0.3903138708
A157: Sustancial Neto | F157: =+J141 -> 4.202740262e+10 | G157: =+G156 -> 21223153995 | H157: =+F157-G157 -> 2.080424862e+10 | I157: =+F157/G157 -> 1.98026187 | J157: 1.9 | K157: =+I157-J157 -> 0.08026187007 | L157: =+AVERAGE(F156:F158) -> 3.250194508e+10 | N157: =+L157/G158 -> 1.531438027
A158: FCLD valor residual Crecimiento Constante | F158: =+F114 -> 2.343813142e+10 | G158: =+G157 -> 21223153995 | H158: =+F158-G158 -> 2214977426 | I158: =+F158/G158 -> 1.104366082 | J158: 1.9 | K158: =+I158-J158 -> -0.7956339182 | N158: Valor Medio

Sheet Estrategias Operativas EM
A1: ESCENARIO MODERADO - ESTRATEGÍAS Y TRATAMIENTOS OPERATIVOS
A3: =+'Valoración Sin Estrategia FLC C'!A3:Q3 -> COMPAÑÍA VS LTDA
A4: VALORACIÓN
A5: Pesos Colombianos
A6: a 31 de Diciembre
A7: PROYECCIONES MEJORARAS, TRATAMIENTOS Y ESTRATEGÍAS
A9: ESTRATEGIA 1 MEJORAMIENTO MARGEN EBITDA
A10: COSTOS | E10: ='Analisis Financiero'!K84 -> 2022 | F10: ='Valoración Sin Estrategia FLC P'!G54 -> 2023 | G10: ='Valoración Sin Estrategia FLC P'!H54 -> 2024 | H10: ='Valoración Sin Estrategia FLC P'!I54 -> 2025 | I10: ='Valoración Sin Estrategia FLC P'!J54 -> 2026 | J10: Objetivo
A11: REDUCCIÓN DE COSTOS | E11: 0.002 | F11: 0.0034 | G11: 0.0141 | H11: 0.004128894943 | I11: 0.003557336966 | J11: =+SUM(E11:I11) -> 0.02718623191
A12: REDUCCIÓN DE COSTOS $ Proyección | E12: =+E11*'Analisis Financiero'!K87 -> 114846478.2 | F12: =+F11*'Analisis Financiero'!L87 -> 212408331.8 | G12: =+G11*'Analisis Financiero'!M87 -> 940187622 | H12: =+H11*'Analisis Financiero'!N87 -> 292303717.7 | I12: =+I11*'Analisis Financiero'!O87 -> 266859222.4 | J12: =+SUM(E12:I12) -> 1826605372
A15: GASTOS ADMINISTRATIVOS | E15: =E10 -> 2022 | F15: =F10 -> 2023 | G15: =G10 -> 2024 | H15: =H10 -> 2025 | I15: =I10 -> 2026 | J15: Objetivo
A16: REDUCCIÓN DE GASTOS ADMINISTRATIVOS | E16: 0.0001 | F16: 0.00025 | G16: 0.00055 | H16: 0.00025 | I16: 0.0001 | J16: =+SUM(E16:I16) -> 0.00125
A17: REDUCCIÓN DE GASTOS ADMON $ Proyección | E17: =+E16*'Analisis Financiero'!K89 -> 284802.3382 | F17: =+F16*'Analisis Financiero'!L89 -> 774619.6396 | G17: =+G16*'Analisis Financiero'!M89 -> 1818921.558 | H17: =+H16*'Analisis Financiero'!N89 -> 877801.6223 | I17: =+I16*'Analisis Financiero'!O89 -> 372060.0799 | J17: =+SUM(E17:I17) -> 4128205.238
A20: GASTOS DE VENTAS | E20: =E15 -> 2022 | F20: =F15 -> 2023 | G20: =G15 -> 2024 | H20: =H15 -> 2025 | I20: =I15 -> 2026 | J20: Objetivo
A21: REDUCCIÓN DE GASTOS DE VENTAS | E21: 0.0001 | F21: 0.00025 | G21: 0.0004 | H21: 0.00025 | I21: 0.0001 | J21: =+SUM(E21:I21) -> 0.0011
A22: REDUCCIÓN GASTOS DE VENTAS $ Proyección | E22: =+E21*'Analisis Financiero'!K90 -> 341359.3298 | F22: =+F21*'Analisis Financiero'!L90 -> 928446.1732 | G22: =+G21*'Analisis Financiero'!M90 -> 1585548.382 | H22: =+H21*'Analisis Financiero'!N90 -> 1052118.376 | I22: =+I21*'Analisis Financiero'!O90 -> 445945.0029 | J22: =+SUM(E22:I22) -> 4353417.263
A25: PLAN DE REDUCCIÓN EN PESOS | E25: =E20 -> 2022 | F25: =F20 -> 2023 | G25: =G20 -> 2024 | H25: =H20 -> 2025 | I25: =I20 -> 2026
A26: COSTO DE VENTAS | E26: =+'Analisis Financiero'!K87-'Estrategias Operativas EM'!E12 -> 5.730839263e+10 | F26: =+'Analisis Financiero'!L87-'Estrategias Operativas EM'!F12 -> 6.226063043e+10 | G26: =+'Analisis Financiero'!M87-'Estrategias Operativas EM'!G12 -> 6.573978557e+10 | H26: =+'Analisis Financiero'!N87-'Estrategias Operativas EM'!H12 -> 7.050235726e+10 | I26: =+'Analisis Financiero'!O87-'Estrategias Operativas EM'!I12 -> 7.474971215e+10
A27: GASTOS OPERACIONALES DE ADMINISTRACIÓN | E27: =+'Analisis Financiero'!K89-'Estrategias Operativas EM'!E17 -> 2847738580 | F27: =+'Analisis Financiero'!L89-'Estrategias Operativas EM'!F17 -> 3097703939 | G27: =+'Analisis Financiero'!M89-'Estrategias Operativas EM'!G17 -> 3305311183 | H27: =+'Analisis Financiero'!N89-'Estrategias Operativas EM'!H17 -> 3510328688 | I27: =+'Analisis Financiero'!O89-'Estrategias Operativas EM'!I17 -> 3720228739
A28: GASTOS OPERACIONALES DE VENTAS | E28: =+'Analisis Financiero'!K90-'Estrategias Operativas EM'!E22 -> 3413251939 | F28: =+'Analisis Financiero'!L90-'Estrategias Operativas EM'!F22 -> 3712856247 | G28: =+'Analisis Financiero'!M90-'Estrategias Operativas EM'!G22 -> 3962285406 | H28: =+'Analisis Financiero'!N90-'Estrategias Operativas EM'!H22 -> 4207421385 | I28: =+'Analisis Financiero'!O90-'Estrategias Operativas EM'!I22 -> 4459004084
A31: ESTRATEGIA 2 INCREMENTO EN INGRESOS | E31: =E25 -> 2022 | F31: =F25 -> 2023 | G31: =G25 -> 2024 | H31: =H25 -> 2025 | I31: =I25 -> 2026
A32: Crecimiento Valoración Natural | E32: =+'Analisis Financiero'!K29 -> 0.1007 | F32: =+'Analisis Financiero'!L29 -> 0.08794 | G32: =+'Analisis Financiero'!M29 -> 0.06734 | H32: =+'Analisis Financiero'!N29 -> 0.061708 | I32: =+'Analisis Financiero'!O29 -> 0.059636
A33: INCREMENTO EN INGRESOS | E33: =E25 -> 2022 | F33: =F25 -> 2023 | G33: =G25 -> 2024 | H33: =H25 -> 2025 | I33: =I25 -> 2026 | J33: Objetivo
A34: CRECIMIENTO ADICIONAL DE INGRESOS | E34: 0.0015 | F34: 0.00245 | G34: 0.005 | H34: 0.0073 | I34: 0.009 | J34: =+SUM(E34:I34) -> 0.02525
A35: INCREMENTO DE CRECIMIENTO | E35: =+((1+E32)*(1+E34))-1 -> 0.10235105 | F35: =+((1+F32)*(1+F34))-1 -> 0.090605453 | G35: 0.0726767 | H35: 0.0694584684 | I35: 0.069172724 | J35: =+SUM(E35:I35) -> 0.4042643954
A36: INGRESOS CON TRATAMIENTO | E36: =+'Analisis Financiero'!J86*(1+'Estrategias Operativas EM'!E35) -> 6.78811971e+10 | F36: =E36*(1+'Estrategias Operativas EM'!F35) -> 7.403160372e+10 | G36: =F36*(1+'Estrategias Operativas EM'!G35) -> 7.941197637e+10 | H36: =G36*(1+'Estrategias Operativas EM'!H35) -> 8.492781062e+10 | I36: =H36*(1+'Estrategias Operativas EM'!I35) -> 9.080249863e+10 | J36: **
B39: Gestión Costos y Gastos
B40: Promedio 2021 | C40: Rango Objetivo | D40: Gestión
A41: Costos | B41: 0.847206243 | C41: 0.82 | D41: =+B41-C41 -> 0.02720624304 | E41: =+J11 -> 0.02718623191 | F41: =+D41-E41 -> 2.001112776e-05
A42: Gastos | B42: 0.09238212308 | C42: 0.09 | D42: =+B42-C42 -> 0.00238212308 | E42: =+J16+J21 -> 0.00235 | F42: =+D42-E42 -> 3.212307959e-05

Sheet Estados Finan + Estrategia
A1: MODELO DE VALORACIÓN DE EMPRESAS
A6: ='Cifras Historicas'!A6 -> Última actualización Mayo 2022
A9: ESTADOS FINANCIEROS PROYECTADOS CON ESTRATEGÍAS ESCENARIO MODERADO
A11: =+'Estrategias Operativas EM'!A3:Q3 -> COMPAÑÍA VS LTDA
A12: ANÁLISIS FINANCIERO
A13: Pesos Colombianos
A14: a 31 de Diciembre | R14: TASAS DE DEUDA
R15: TASAS DE DEUDA | S15: =F24 -> 2017 | T15: =G24 -> 2018 | U15: 2019 | V15: 2020 | W15: 2021 | X15: 2022 | Y15: 2023 | Z15: 2024 | AA15: 2025 | AB15: 2026
R16: TASA Kd E.A. | S16: =+'Analisis Financiero'!S16 -> 0.1132 | T16: =+'Analisis Financiero'!T16 -> 0.1018 | U16: =+'Analisis Financiero'!U16 -> 0.1002 | V16: =+'Analisis Financiero'!V16 -> 0.0724 | W16: =+'Analisis Financiero'!W16 -> 0.0806 | X16: =+'Analisis Financiero'!X16 -> 0.09364 | Y16: =+'Analisis Financiero'!Y16 -> 0.089728 | Z16: =+'Analisis Financiero'!Z16 -> 0.0873136 | AA16: =+'Analisis Financiero'!AA16 -> 0.08473632 | AB16: =+'Analisis Financiero'!AB16 -> 0.087203584
A17: CIFRAS FUNDAMENTALES DE PROYECCIÓN
A19: =+A11 -> COMPAÑÍA VS LTDA
A20: CIFRAS DE PROYECCIÓN
A22: PLANES, POLITICAS Y EXPECTATIVAS
F23: CIFRAS HISTÓRICAS | K23: CIFRAS PROYECTADAS
A24: VARIABLE MACROECONÓMICA | F24: ='Analisis Financiero'!F24 -> 2017 | G24: ='Analisis Financiero'!G24 -> 2018 | H24: ='Analisis Financiero'!H24 -> 2019 | I24: ='Analisis Financiero'!I24 -> 2020 | J24: ='Analisis Financiero'!J24 -> 2021 | K24: ='Analisis Financiero'!K24 -> 2022 | L24: ='Analisis Financiero'!L24 -> 2023 | M24: ='Analisis Financiero'!M24 -> 2024 | N24: ='Analisis Financiero'!N24 -> 2025 | O24: ='Analisis Financiero'!O24 -> 2026
A25: Inflación en Colombia | F25: ='Analisis Financiero'!F25 -> 0.014 | G25: ='Analisis Financiero'!G25 -> 0.026 | H25: ='Analisis Financiero'!H25 -> 0.032 | I25: ='Analisis Financiero'!I25 -> -0.07 | J25: ='Analisis Financiero'!J25 -> 0.106 | K25: Tasas proyectadas con Tratamiento
A26: PIB | F26: ='Analisis Financiero'!F26 -> 0.0409 | G26: ='Analisis Financiero'!G26 -> 0.0318 | H26: ='Analisis Financiero'!H26 -> 0.038 | I26: ='Analisis Financiero'!I26 -> 0.0161 | J26: ='Analisis Financiero'!J26 -> 0.0562
A27: Crecimiento Historico | G27: ='Analisis Financiero'!G27 -> 0.059 | H27: ='Analisis Financiero'!H27 -> 0.06 | I27: ='Analisis Financiero'!I27 -> 0.06 | J27: ='Analisis Financiero'!J27 -> 0.035
A28: Crecimiento Real Empresa -Incremento del SMMLV | G28: ='Analisis Financiero'!G28 -> 0.059 | H28: ='Analisis Financiero'!H28 -> 0.06 | I28: ='Analisis Financiero'!I28 -> 0.06 | J28: ='Analisis Financiero'!J28 -> 0.035
A29: Tasa de Crecimiento | G29: =G28 -> 0.059 | H29: 0.06 | I29: 0.06 | J29: 0.035 | K29: =+'Estrategias Operativas EM'!E35 -> 0.10235105 | L29: =+'Estrategias Operativas EM'!F35 -> 0.090605453 | M29: =+'Estrategias Operativas EM'!G35 -> 0.0726767 | N29: =+'Estrategias Operativas EM'!H35 -> 0.0694584684 | O29: =+'Estrategias Operativas EM'!I35 -> 0.069172724
G30: Crecimiento Historico | K30: Crecimiento Proyectado Con Estrategia
A33: ESTADOS FINANCIEROS PROYECTADOS
A35: =+A11 -> COMPAÑÍA VS LTDA
A36: PROYECCIÓN DE ESTADOS FINANCIERO
F38: =F24 -> 2017 | G38: 2018 | H38: 2019 | I38: 2020 | J38: 2021 | K38: 2022 | L38: 2023 | M38: 2024 | N38: 2025 | O38: 2026
A39: Activo Corriente
A40: Efectivo y equivalentes de efectivo | F40: ='Cifras Historicas'!F17 -> 4355275642 | G40: ='Cifras Historicas'!G17 -> 5822986465 | H40: ='Cifras Historicas'!H17 -> 546039649 | I40: ='Cifras Historicas'!I17 -> 1167076873 | J40: ='Cifras Historicas'!J17 -> 220921225 | K40: =J40*(1+K$29) -> 243532744.3 | L40: =K40*(1+L$29) -> 265598139 | M40: =L40*(1+M$29) -> 284900935.2 | N40: =M40*(1+N$29) -> 304689717.8 | O40: =N40*(1+O$29) -> 325765935.6
A41: Activos financieros | F41: ='Cifras Historicas'!F18 -> 0 | G41: ='Cifras Historicas'!G18 -> 0 | H41: ='Cifras Historicas'!H18 -> 0 | I41: ='Cifras Historicas'!I18 -> 0 | J41: ='Cifras Historicas'!J18 -> 0 | K41: 0 | L41: 0 | M41: 0 | N41: 0 | O41: 0
A42: Deudores comerciales y otros | F42: ='Cifras Historicas'!F19 -> 5725064714 | G42: ='Cifras Historicas'!G19 -> 7731045570 | H42: ='Cifras Historicas'!H19 -> 10234154333 | I42: ='Cifras Historicas'!I19 -> 15486728698 | J42: ='Cifras Historicas'!J19 -> 12452754179 | K42: 1.372730664e+10 | L42: 1.497107548e+10 | M42: 1.605912384e+10 | N42: 1.717456599e+10 | O42: 1.83625775e+10
A43: Inventarios | F43: ='Cifras Historicas'!F20 -> 0 | G43: ='Cifras Historicas'!G20 -> 0 | H43: ='Cifras Historicas'!H20 -> 164290700 | I43: ='Cifras Historicas'!I20 -> 0 | J43: ='Cifras Historicas'!J20 -> 0 | K43: 0 | L43: 0 | M43: 0 | N43: 0 | O43: 0
A44: Pagos anticipados y otras cuentas por cobrar | F44: ='Cifras Historicas'!F21 -> 926175054 | G44: ='Cifras Historicas'!G21 -> 656692693 | H44: ='Cifras Historicas'!H21 -> 11576196451 | I44: ='Cifras Historicas'!I21 -> 8669863369 | J44: ='Cifras Historicas'!J21 -> 9394045296 | K44: 1.03555357e+10 | L44: 1.12938037e+10 | M44: 1.211460008e+10 | N44: 1.295606165e+10 | O44: 1.385226773e+10
A45: TOTAL ACTIVO CORRIENTE | F45: ='Cifras Historicas'!F22 -> 11006515410 | G45: ='Cifras Historicas'!G22 -> 14210724728 | H45: ='Cifras Historicas'!H22 -> 22520681133 | I45: ='Cifras Historicas'!I22 -> 25323668940 | J45: ='Cifras Historicas'!J22 -> 22067720700 | K45: =SUM(K40:K44) -> 2.432637508e+10 | L45: 2.653047732e+10 | M45: 2.845862486e+10 | N45: 3.043531736e+10 | O45: 3.254061116e+10
A46: Activo No Corriente
A47: Activos financieros | F47: ='Cifras Historicas'!F24 -> 0 | G47: ='Cifras Historicas'!G24 -> 0 | H47: ='Cifras Historicas'!H24 -> 0 | I47: ='Cifras Historicas'!I24 -> 0 | J47: ='Cifras Historicas'!J24 -> 0 | K47: =J47*(1+K$29) -> 0 | L47: =K47*(1+L$29) -> 0 | M47: =L47*(1+M$29) -> 0 | N47: =M47*(1+N$29) -> 0 | O47: =N47*(1+O$29) -> 0
A48: Deudores | F48: ='Cifras Historicas'!F25 -> 0 | G48: ='Cifras Historicas'!G25 -> 0 | H48: ='Cifras Historicas'!H25 -> 0 | I48: ='Cifras Historicas'!I25 -> 0 | J48: ='Cifras Historicas'!J25 -> 0 | K48: 0 | L48: 0 | M48: 0 | N48: 0 | O48: 0
A49: Propiedades, planta y equipo | F49: ='Cifras Historicas'!F26 -> 11910370479 | G49: ='Cifras Historicas'!G26 -> 9288165263 | H49: ='Cifras Historicas'!H26 -> 9594493348 | I49: ='Cifras Historicas'!I26 -> 9719576747 | J49: ='Cifras Historicas'!J26 -> 10551295268 | K49: =+'Analisis Financiero'!K49 -> 1.16138107e+10 | L49: =+'Analisis Financiero'!L49 -> 1.263512921e+10 | M49: =+'Analisis Financiero'!M49 -> 1.348597882e+10 | N49: =+'Analisis Financiero'!N49 -> 1.43181716e+10 | O49: =+'Analisis Financiero'!O49 -> 1.517205008e+10
A50: Inventarios | F50: ='Cifras Historicas'!F27 -> 0 | G50: ='Cifras Historicas'!G27 -> 0 | H50: ='Cifras Historicas'!H27 -> 0 | I50: ='Cifras Historicas'!I27 -> 0 | J50: ='Cifras Historicas'!J27 -> 145047130 | K50: 159892856.1 | L50: 174380020.7 | M50: 187053385.2 | N50: 200045826.8 | O50: 213883541.6
A51: Pagos anticipados y otras cuentas por cobrar | F51: ='Cifras Historicas'!F28 -> 0 | G51: ='Cifras Historicas'!G28 -> 0 | H51: ='Cifras Historicas'!H28 -> 0 | I51: ='Cifras Historicas'!I28 -> 0 | J51: ='Cifras Historicas'!J28 -> 109156636 | K51: 120328932.3 | L51: 131231389.7 | M51: 140768854.1 | N51: 150546443.1 | O51: 160960150.6
A52: TOTAL ACTIVO NO CORRIENTE | F52: ='Cifras Historicas'!F29 -> 11910370479 | G52: ='Cifras Historicas'!G29 -> 9288165263 | H52: ='Cifras Historicas'!H29 -> 9594493348 | I52: ='Cifras Historicas'!I29 -> 9719576747 | J52: ='Cifras Historicas'!J29 -> 10805499034 | K52: =SUM(K47:K51) -> 1.189403249e+10 | L52: 1.294074063e+10 | M52: 1.381380106e+10 | N52: 1.466876387e+10 | O52: 1.554689377e+10
A54: TOTAL ACTIVO | F54: =F45+F52 -> 22916885889 | G54: 23498889991 | H54: 32115174481 | I54: 35043245687 | J54: 32873219734 | K54: 3.622040757e+10 | L54: =L45+L52 -> 3.947121794e+10 | M54: 4.227242592e+10 | N54: 4.510408122e+10 | O54: 4.808750493e+10
A56: Pasivo Corriente
A57: Obligaciones financieras | F57: ='Cifras Historicas'!F34 -> 408734110 | G57: ='Cifras Historicas'!G34 -> 526145096 | H57: ='Cifras Historicas'!H34 -> 208868995 | I57: ='Cifras Historicas'!I34 -> 96658002 | J57: ='Cifras Historicas'!J34 -> 365420012 | K57: =+AVERAGE(G57:J57) -> 299273026.2 | L57: =+AVERAGE(H57:K57) -> 242555008.8 | M57: =+AVERAGE(I57:L57) -> 250976512.3 | N57: =+AVERAGE(J57:M57) -> 289556139.8 | O57: =+AVERAGE(K57:N57) -> 270590171.8
A58: Proveedores | F58: ='Cifras Historicas'!F35 -> 580386860 | G58: ='Cifras Historicas'!G35 -> 83953100 | H58: ='Cifras Historicas'!H35 -> 366465683 | I58: ='Cifras Historicas'!I35 -> 671557747 | J58: ='Cifras Historicas'!J35 -> 0 | K58: =J58*(1+K$29) -> 0 | L58: =K58*(1+L$29) -> 0 | M58: =L58*(1+M$29) -> 0 | N58: =M58*(1+N$29) -> 0 | O58: =N58*(1+O$29) -> 0
A59: Cuentas por pagar Varios | F59: ='Cifras Historicas'!F36 -> 22912438 | G59: ='Cifras Historicas'!G36 -> 28112354 | H59: ='Cifras Historicas'!H36 -> 1347336496 | I59: ='Cifras Historicas'!I36 -> 1216784731 | J59: ='Cifras Historicas'!J36 -> 1183288600 | K59: 1304399431 | L59: 1422585132 | M59: 1525973925 | N59: 1631965736 | O59: 1744853252
A60: Impuestos corrientes por pagar | F60: ='Cifras Historicas'!F37 -> 629839083 | G60: ='Cifras Historicas'!G37 -> 936020423 | H60: ='Cifras Historicas'!H37 -> 1955820787 | I60: ='Cifras Historicas'!I37 -> 3034237509 | J60: ='Cifras Historicas'!J37 -> 1988914847 | K60: 2192482370 | L60: 2391133228 | M60: 2564912901 | N60: 2743067822 | O60: 2932813296
A61: Otros pasivos | F61: ='Cifras Historicas'!F38 -> 303559341 | G61: ='Cifras Historicas'!G38 -> 671139768 | H61: ='Cifras Historicas'!H38 -> 1103128844 | I61: ='Cifras Historicas'!I38 -> 206618542 | J61: ='Cifras Historicas'!J38 -> 693847185 | K61: 764863172.9 | L61: 834163947.2 | M61: 894788230.1 | N61: 956938850.1 | O61: 1023132917
A62: TOTAL PASIVO CORRIENTE | F62: ='Cifras Historicas'!F39 -> 1945431832 | G62: ='Cifras Historicas'!G39 -> 2245370741 | H62: ='Cifras Historicas'!H39 -> 4981620805 | I62: ='Cifras Historicas'!I39 -> 5225856531 | J62: ='Cifras Historicas'!J39 -> 4231470644 | K62: =SUM(K57:K61) -> 4561018000 | L62: 4890437316 | M62: 5236651568 | N62: 5621528549 | O62: 5971389636
A63: Pasivo No Corriente
A64: Obligaciones financieras | F64: ='Cifras Historicas'!F41 -> 2750785706 | G64: ='Cifras Historicas'!G41 -> 2500000000 | H64: ='Cifras Historicas'!H41 -> 2855673315 | I64: ='Cifras Historicas'!I41 -> 4029229857 | J64: ='Cifras Historicas'!J41 -> 3155897854 | K64: =+AVERAGE(G64:J64) -> 3135200256 | L64: =+AVERAGE(H64:K64) -> 3294000321 | M64: =+AVERAGE(I64:L64) -> 3403582072 | N64: =+AVERAGE(J64:M64) -> 3247170126 | O64: =+AVERAGE(K64:N64) -> 3269988194
A65: Cuentas por pagar Varios | F65: ='Cifras Historicas'!F42 -> 1446246300 | G65: ='Cifras Historicas'!G42 -> 0 | H65: ='Cifras Historicas'!H42 -> 1540582555 | I65: ='Cifras Historicas'!I42 -> 789272626 | J65: ='Cifras Historicas'!J42 -> 797056878 | K65: =J65*(1+K$29) -> 878636486.4 | L65: =K65*(1+L$29) -> 958245743.2 | M65: =L65*(1+M$29) -> 1027887882 | N65: =M65*(1+N$29) -> 1099283400 | O65: =N65*(1+O$29) -> 1175323827
A66: Otros pasivos | F66: ='Cifras Historicas'!F43 -> 2935347237 | G66: ='Cifras Historicas'!G43 -> 5600000000 | H66: ='Cifras Historicas'!H43 -> 6495683128 | I66: ='Cifras Historicas'!I43 -> 4116193896 | J66: ='Cifras Historicas'!J43 -> 3465640363 | K66: 3820352293 | L66: 4166497043 | M66: 4469304299 | N66: 4779735330 | O66: 5110362643
A67: TOTAL PASIVO NO CORRIENTE | F67: ='Cifras Historicas'!F44 -> 7132379243 | G67: ='Cifras Historicas'!G44 -> 8100000000 | H67: ='Cifras Historicas'!H44 -> 10891938998 | I67: ='Cifras Historicas'!I44 -> 8934696379 | J67: ='Cifras Historicas'!J44 -> 7418595095 | K67: =SUM(K64:K66) -> 7834189036 | L67: 8418743107 | M67: 8900774253 | N67: 9126188856 | O67: 9555674664
A69: TOTAL PASIVO | F69: =F62+F67 -> 9077811075 | G69: 10345370741 | H69: 15873559803 | I69: 14160552910 | J69: 11650065739 | K69: 1.239520704e+10 | L69: =L62+L67 -> 1.330918042e+10 | M69: 1.413742582e+10 | N69: 1.47477174e+10 | O69: 1.55270643e+10
A71: Patrimonio
A72: Capital suscrito y pagado | F72: ='Cifras Historicas'!F49 -> 4000000000 | G72: ='Cifras Historicas'!G49 -> 4000000000 | H72: ='Cifras Historicas'!H49 -> 4000000000 | I72: ='Cifras Historicas'!I49 -> 4000000000 | J72: ='Cifras Historicas'!J49 -> 4000000000 | K72: =J72 -> 4000000000 | L72: =K72 -> 4000000000 | M72: 4000000000 | N72: 4000000000 | O72: 4000000000
A73: Reservas | F73: ='Cifras Historicas'!F50 -> 1110584793 | G73: ='Cifras Historicas'!G50 -> 1510584793 | H73: ='Cifras Historicas'!H50 -> 1510584793 | I73: ='Cifras Historicas'!I50 -> 1510584793 | J73: ='Cifras Historicas'!J50 -> 2400000000 | K73: =+'Analisis Financiero'!K73 -> 2400000000 | L73: =+'Analisis Financiero'!L73 -> 2400000000 | M73: =+'Analisis Financiero'!M73 -> 2400000000 | N73: =+'Analisis Financiero'!N73 -> 2400000000 | O73: =+'Analisis Financiero'!O73 -> 2400000000
A74: Resultados de Ejercicios Anteriores | F74: ='Cifras Historicas'!F51 -> 3976114511 | G74: ='Cifras Historicas'!G51 -> 4292094996 | H74: ='Cifras Historicas'!H51 -> 5937865590 | I74: ='Cifras Historicas'!I51 -> 9530144694 | J74: ='Cifras Historicas'!J51 -> 10821809856 | K74: =+K54-K69-K72-K73-K75-K76 -> 1.328636293e+10 | L74: =+L54-L69-L72-L73-L75-L76 -> 1.509908011e+10 | M74: 1.573675604e+10 | N74: 1.776664679e+10 | O74: 1.892377227e+10
A75: Resultados del Ejercicio | F75: ='Cifras Historicas'!F52 -> 1753585876 | G75: ='Cifras Historicas'!G52 -> 2721325951 | H75: ='Cifras Historicas'!H52 -> 3592279105 | I75: ='Cifras Historicas'!I52 -> 4641078100 | J75: ='Cifras Historicas'!J52 -> 2800458949 | K75: =K99 -> 2937952415 | L75: 3462072221 | M75: 4797358861 | N75: 4988831833 | O75: 6035783168
A76: Ganancias Acumuladas adopción Pymes | F76: ='Cifras Historicas'!F53 -> 2998789634 | G76: ='Cifras Historicas'!G53 -> 629513510 | H76: ='Cifras Historicas'!H53 -> 1200885190 | I76: ='Cifras Historicas'!I53 -> 1200885190 | J76: ='Cifras Historicas'!J53 -> 1200885190 | K76: =+'Analisis Financiero'!K76 -> 1200885190 | L76: =+'Analisis Financiero'!L76 -> 1200885190 | M76: =+'Analisis Financiero'!M76 -> 1200885190 | N76: =+'Analisis Financiero'!N76 -> 1200885190 | O76: =+'Analisis Financiero'!O76 -> 1200885190
A77: 0 TOTAL PATRIMONIO | F77: ='Cifras Historicas'!F54 -> 13839074814 | G77: ='Cifras Historicas'!G54 -> 13153519250 | H77: ='Cifras Historicas'!H54 -> 16241614678 | I77: ='Cifras Historicas'!I54 -> 20882692777 | J77: ='Cifras Historicas'!J54 -> 21223153995 | K77: =SUM(K72:K76) -> 2.382520054e+10 | L77: =SUM(L72:L76) -> 2.616203752e+10 | M77: 2.813500009e+10 | N77: 3.035636382e+10 | O77: 3.256044063e+10
A79: 0 TOTAL PASIVO Y PATRIMONIO | F79: =F69+F77 -> 22916885889 | G79: 23498889991 | H79: 32115174481 | I79: 35043245687 | J79: 32873219734 | K79: 3.622040757e+10 | L79: =L69+L77 -> 3.947121794e+10 | M79: 4.227242592e+10 | N79: 4.510408122e+10 | O79: 4.808750493e+10
A81: CONTROL (Pasivo y Patrimonio - Activo) | F81: =F54-F79 -> 0 | G81: 0 | H81: 0 | I81: 0 | J81: 0 | K81: 0 | L81: =L54-L79 -> 0 | M81: 0 | N81: 0 | O81: 0
A84: CUENTAS DE RESULTADO | F84: ='Cifras Historicas'!F64 -> 2017 | G84: ='Cifras Historicas'!G64 -> 2018 | H84: ='Cifras Historicas'!H64 -> 2019 | I84: ='Cifras Historicas'!I64 -> 2020 | J84: ='Cifras Historicas'!J64 -> 2021 | K84: =K38 -> 2022 | L84: =L38 -> 2023 | M84: =M38 -> 2024 | N84: =N38 -> 2025 | O84: =O38 -> 2026
A85: Operacional
A86: Ventas, Ingresos de actividades ordinarias | F86: =+'Analisis Financiero'!F86 -> 56268982215 | G86: =+'Analisis Financiero'!G86 -> 80131113112 | H86: =+'Analisis Financiero'!H86 -> 92026384100 | I86: =+'Analisis Financiero'!I86 -> 90604040420 | J86: =+'Analisis Financiero'!J86 -> 61578566195 | K86: ='Estrategias Operativas EM'!E36 -> 6.78811971e+10 | L86: ='Estrategias Operativas EM'!F36 -> 7.403160372e+10 | M86: ='Estrategias Operativas EM'!G36 -> 7.941197637e+10 | N86: ='Estrategias Operativas EM'!H36 -> 8.492781062e+10 | O86: ='Estrategias Operativas EM'!I36 -> 9.080249863e+10
A87: Costo de Ventas | F87: =+'Analisis Financiero'!F87 -> 46042758141 | G87: =+'Analisis Financiero'!G87 -> 67750145748 | H87: =+'Analisis Financiero'!H87 -> 76372779650 | I87: =+'Analisis Financiero'!I87 -> 77804621136 | J87: =+'Analisis Financiero'!J87 -> 54413593743 | K87: ='Estrategias Operativas EM'!E26 -> 5.730839263e+10 | L87: ='Estrategias Operativas EM'!F26 -> 6.226063043e+10 | M87: ='Estrategias Operativas EM'!G26 -> 6.573978557e+10 | N87: ='Estrategias Operativas EM'!H26 -> 7.050235726e+10 | O87: ='Estrategias Operativas EM'!I26 -> 7.474971215e+10
A88: UTILIDAD BRUTA | F88: =F86-F87 -> 10226224074 | G88: 12380967364 | H88: 15653604450 | I88: 12799419284 | J88: 7164972452 | K88: 1.057280447e+10 | L88: =L86-L87 -> 1.177097329e+10 | M88: 1.36721908e+10 | N88: 1.442545336e+10 | O88: 1.605278647e+10
A89: Gastos de administración | F89: =+'Analisis Financiero'!F89 -> 0 | G89: =+'Analisis Financiero'!G89 -> 0 | H89: =+'Analisis Financiero'!H89 -> 8851263892 | I89: =+'Analisis Financiero'!I89 -> 5383826386 | J89: =+'Analisis Financiero'!J89 -> 3355500547 | K89: ='Estrategias Operativas EM'!E27 -> 2847738580 | L89: ='Estrategias Operativas EM'!F27 -> 3097703939 | M89: ='Estrategias Operativas EM'!G27 -> 3305311183 | N89: ='Estrategias Operativas EM'!H27 -> 3510328688 | O89: ='Estrategias Operativas EM'!I27 -> 3720228739
A90: Gastos de ventas y distribución | F90: =+'Analisis Financiero'!F90 -> 7098905205 | G90: =+'Analisis Financiero'!G90 -> 7489704766 | H90: =+'Analisis Financiero'!H90 -> 313612789 | I90: =+'Analisis Financiero'!I90 -> 1064657231 | J90: =+'Analisis Financiero'!J90 -> 1048629364 | K90: ='Estrategias Operativas EM'!E28 -> 3413251939 | L90: ='Estrategias Operativas EM'!F28 -> 3712856247 | M90: ='Estrategias Operativas EM'!G28 -> 3962285406 | N90: ='Estrategias Operativas EM'!H28 -> 4207421385 | O90: ='Estrategias Operativas EM'!I28 -> 4459004084
A91: UTILIDAD OPERACIONAL | F91: =F88-F89-F90 -> 3127318869 | G91: 4891262598 | H91: 6488727769 | I91: 6350935667 | J91: 2760842541 | K91: 4311813951 | L91: =L88-L89-L90 -> 4960413104 | M91: 6404594214 | N91: 6707703292 | O91: 7873553648
A92: No Operacional
A93: Otros ingresos | F93: =+'Analisis Financiero'!F93 -> 244288944 | G93: =+'Analisis Financiero'!G93 -> 192784316 | H93: =+'Analisis Financiero'!H93 -> 82383557 | I93: =+'Analisis Financiero'!I93 -> 1658821003 | J93: =+'Analisis Financiero'!J93 -> 2779929418 | K93: =K86*'Cifras Historicas'!$P$73 -> 965208520.2 | L93: =L86*'Cifras Historicas'!$P$73 -> 1052661675 | M93: =M86*'Cifras Historicas'!$P$73 -> 1129165652 | N93: =N86*'Cifras Historicas'!$P$73 -> 1207595769 | O93: =O86*'Cifras Historicas'!$P$73 -> 1291128458
A94: Gasto no operacional | F94: =+'Analisis Financiero'!F94 -> 0 | G94: =+'Analisis Financiero'!G94 -> 0 | H94: =+'Analisis Financiero'!H94 -> 962059833 | I94: =+'Analisis Financiero'!I94 -> 259504531 | J94: =+'Analisis Financiero'!J94 -> 92569034 | K94: =K86*'Cifras Historicas'!$P$74 -> 201221615 | L94: =L86*'Cifras Historicas'!$P$74 -> 219453390.5 | M94: =M86*'Cifras Historicas'!$P$74 -> 235402538.8 | N94: =N86*'Cifras Historicas'!$P$74 -> 251753238.6 | O94: =O86*'Cifras Historicas'!$P$74 -> 269167695.9
A95: Gasto Financiero | F95: =+'Analisis Financiero'!F95 -> 528963937 | G95: =+'Analisis Financiero'!G95 -> 818412963 | H95: =+'Analisis Financiero'!H95 -> 457359388 | I95: =+'Analisis Financiero'!I95 -> 681428611 | J95: =+'Analisis Financiero'!J95 -> 631413481 | K95: =K86*'Cifras Historicas'!$P$75 -> 575071375.7 | L95: =L86*'Cifras Historicas'!$P$75 -> 627175978.2 | M95: =M86*'Cifras Historicas'!$P$75 -> 672757058.6 | N95: =N86*'Cifras Historicas'!$P$75 -> 719485733.5 | O95: =O86*'Cifras Historicas'!$P$75 -> 769254521.6
A96: Resultados Netos
A97: UTILIDAD ANTES DE IMPUESTOS | F97: =F91+F93-F94-F95 -> 2842643876 | G97: 4265633951 | H97: 5151692105 | I97: 7068823528 | J97: 4816789444 | K97: 4500729480 | L97: =L91+L93-L94-L95 -> 5166445410 | M97: 6625600269 | N97: 6944060089 | O97: 8126259889
A98: Gasto por impuesto | F98: =+'Analisis Financiero'!F98 -> 1089058000 | G98: =+'Analisis Financiero'!G98 -> 1544308000 | H98: =+'Analisis Financiero'!H98 -> 1559413000 | I98: =+'Analisis Financiero'!I98 -> 2427745428 | J98: =+'Analisis Financiero'!J98 -> 2016330495 | K98: =K86*'Cifras Historicas'!$P$78 -> 1562777065 | L98: =L86*'Cifras Historicas'!$P$78 -> 1704373189 | M98: =M86*'Cifras Historicas'!$P$78 -> 1828241408 | N98: =N86*'Cifras Historicas'!$P$78 -> 1955228256 | O98: =O86*'Cifras Historicas'!$P$78 -> 2090476720
A99: UTILIDAD NETA | F99: =F97-F98 -> 1753585876 | G99: 2721325951 | H99: 3592279105 | I99: 4641078100 | J99: 2800458949 | K99: 2937952415 | L99: =L97-L98 -> 3462072221 | M99: 4797358861 | N99: 4988831833 | O99: 6035783168
A103: Detalles de Depreciación y Amortización | F103: =F84 -> 2017 | G103: 2018 | H103: 2019 | I103: 2020 | J103: 2021 | K103: 2022 | L103: 2023 | M103: 2024 | N103: 2025 | O103: 2026
A104: Depreciaciones | F104: =+'Analisis Financiero'!F104 -> 589601720 | G104: =+'Analisis Financiero'!G104 -> 827825000 | H104: =+'Analisis Financiero'!H104 -> 527765968 | I104: =+'Analisis Financiero'!I104 -> 546876124 | J104: =+'Analisis Financiero'!J104 -> 136883865 | K104: =+AVERAGE(I104:J104) -> 341879994.5 | L104: =+AVERAGE(J104:K104) -> 239381929.8 | M104: =+AVERAGE(K104:L104) -> 290630962.1 | N104: =+AVERAGE(L104:M104) -> 265006445.9 | O104: =+AVERAGE(M104:N104) -> 277818704
A105: Amortizaciones | F105: =+'Analisis Financiero'!F105 -> 0 | G105: =+'Analisis Financiero'!G105 -> 739260000 | H105: =+'Analisis Financiero'!H105 -> 0 | I105: =+'Analisis Financiero'!I105 -> 0 | J105: =+'Analisis Financiero'!J105 -> 0 | K105: =+'Analisis Financiero'!K105 -> 0 | L105: =+'Analisis Financiero'!L105 -> 0 | M105: =+'Analisis Financiero'!M105 -> 0 | N105: =+'Analisis Financiero'!N105 -> 0 | O105: =+'Analisis Financiero'!O105 -> 0
A109: INDUCTORES DE VALOR Y RAZONES FINANCIERAS
A111: =+A35 -> COMPAÑÍA VS LTDA
A112: PROYECCIÓN DE INDUCTORES DE VALOR
A115: Inductores de Rentabilidad | F115: =F103 -> 2017 | G115: 2018 | H115: 2019 | I115: 2020 | J115: 2021 | K115: 2022 | L115: 2023 | M115: 2024 | N115: 2025 | O115: 2026
A116: ROA | F116: =F99/F54 -> 0.07651937896 | G116: =G99/G54 -> 0.1158065744 | H116: 0.1118561292 | I116: 0.1324385915 | J116: 0.08518967633 | K116: =K99/K54 -> 0.08111317933 | L116: 0.0877113097 | M116: 0.1134867176 | N116: 0.1106071047 | O116: 0.1255166634
A117: UODI | F117: =F91*(1-(F98/F97)) -> 1929197760 | G117: 3120455246 | H117: 4524595164 | I117: 4169744558 | J117: 1605140995 | K117: =K91*(1-(K98/K97)) -> 2814633553 | L117: 3324008491 | M117: 4637336326 | N117: 4819025654 | O117: 5848085495
A118: Activos Netos de Operación | F118: =F45+F49-F58 -> 22336499029 | G118: 23414936891 | H118: 31748708798 | I118: 34371687940 | J118: 32619015968 | K118: =K45+K49-K58 -> 3.594018579e+10 | L118: 3.916560653e+10 | M118: 4.194460368e+10 | N118: 4.475348895e+10 | O118: 4.771266124e+10
A119: RAN | F119: =F117/F118 -> 0.08636974656 | G119: =G117/G118 -> 0.1332677197 | H119: 0.14251273 | I119: 0.1213133485 | J119: 0.04920874978 | K119: =K117/K118 -> 0.07831438519 | L119: 0.08487059911 | M119: 0.110558592 | N119: 0.1076793289 | O119: 0.122568839
A120: Distancia Rentabilidad | F120: =F119-F116 -> 0.009850367595 | G120: =G119-G116 -> 0.01746114534 | H120: 0.03065660079 | I120: -0.01112524297 | J120: -0.03598092654 | K120: =K119-K116 -> -0.002798794144 | L120: -0.002840710589 | M120: -0.002928125552 | N120: -0.002927775832 | O120: -0.002947824328
A122: Inductores de Operativos y Financieros | F122: =F115 -> 2017 | G122: 2018 | H122: 2019 | I122: 2020 | J122: 2021 | K122: 2022 | L122: 2023 | M122: 2024 | N122: 2025 | O122: 2026
A123: EBITDA Modelo General | F123: =F99+F98+F95+F104+F105 -> 3961209533 | G123: =G99+G98+G95+G104+G105 -> 6651131914 | H123: 6136817461 | I123: 8297128263 | J123: 5585086790 | K123: =K99+K98+K95+K104+K105 -> 5417680850 | L123: 6033003318 | M123: 7588988290 | N123: 7928552269 | O123: 9173333114
A124: EBITDA Operacional | F124: =F91+F104+F105 -> 3716920589 | G124: =G91+G104+G105 -> 6458347598 | H124: 7016493737 | I124: 6897811791 | J124: 2897726406 | K124: =K91+K104+K105 -> 4653693945 | L124: 5199795033 | M124: 6695225176 | N124: 6972709738 | O124: 8151372352
A125: Margen EBITDA Modelo General | F125: =F123/F86 -> 0.07039774627 | G125: =G123/G86 -> 0.08300311397 | H125: 0.06668541333 | I125: 0.09157569822 | J125: 0.09069855203 | K125: =K123/K86 -> 0.0798112155 | L125: 0.08149226837 | M125: 0.09556478301 | N125: 0.09335637185 | O125: 0.1010251177
A126: Margen EBITDA Operacional | F126: =F124/F86 -> 0.06605629679 | G126: =G124/G86 -> 0.08059725302 | H126: 0.07624437063 | I126: 0.07613139281 | J126: 0.04705738677 | K126: =K124/K86 -> 0.06855645074 | L126: 0.07023750361 | M126: 0.08431001824 | N126: 0.08210160709 | O126: 0.08977035297
A127: KTNO | F127: =F42+F43-F58-F59 -> 5121765416 | G127: =G42+G43-G58-G59 -> 7618980116 | H127: 8684642854 | I127: 13598386220 | J127: 11269465579 | K127: 1.242290721e+10 | L127: 1.354849035e+10 | M127: 1.453314992e+10 | N127: 1.554260025e+10 | O127: 1.661772425e+10
A128: Variación de KTNO | G128: =G127-F127 -> 2497214700 | H128: =H127-G127 -> 1065662738 | I128: =I127-H127 -> 4913743366 | J128: =J127-I127 -> -2328920641 | K128: =K127-J127 -> 1153441635 | L128: =L127-K127 -> 1125583136 | M128: =M127-L127 -> 984659568.6 | N128: =N127-M127 -> 1009450334 | O128: =O127-N127 -> 1075123998
A129: Productividad del Capital de trabajo PKT | F129: =F127/F86 -> 0.09102289067 | G129: =G127/G86 -> 0.09508142119 | H129: 0.09437122776 | I129: 0.1500858699 | J129: 0.1830095482 | K129: =K127/K86 -> 0.1830095482 | L129: 0.1830095482 | M129: 0.1830095482 | N129: 0.1830095482 | O129: 0.1830095482
A130: Rotación del Activo Fijo | F130: =F86/F49 -> 4.72436876 | G130: 8.62722732 | H130: 9.591583501 | I130: 9.321809249 | J130: 5.836114395 | K130: =K86/K49 -> 5.844868566 | L130: 5.859188494 | M130: 5.888484437 | N130: 5.931470373 | O130: 5.984853606
A131: Palanca de Crecimiento PDC | F131: =F126/F129 -> 0.7257108218 | G131: =G126/G129 -> 0.8476656324 | H131: 0.8079196641 | I131: 0.5072522342 | J131: 0.2571307739 | K131: =K126/K129 -> 0.3746058684 | L131: 0.3837914704 | M131: 0.4606864454 | N131: 0.4486192545 | O131: 0.4905227834
A135: Razones financieras
A137: ANALISIS DE RAZONES FINANCIERAS
A138: R/I | F138: =+F122 -> 2017 | G138: =+G122 -> 2018 | H138: 2019 | I138: 2020 | J138: 2021 | K138: 2022 | L138: 2023 | M138: 2024 | N138: 2025 | O138: 2026
A140: Margen Bruto | F140: =+F88/F86 -> 0.1817382094 | G140: =+G88/G86 -> 0.1545088653 | H140: 0.1700990928 | I140: 0.1412676435 | J140: 0.1163549737 | K140: =+K88/K86 -> 0.1557545376 | L140: 0.1589993016 | M140: 0.1721678697 | N140: 0.1698554721 | O140: 0.1767879377 | P140: Utilidad Bruta / Ventas
A141: Margen Operacional | F141: =+F91/F86 -> 0.05557802444 | G141: =+G91/G86 -> 0.06104074195 | H141: 0.07050942871 | I141: 0.07009550167 | J141: 0.04483447264 | K141: =+K91/K86 -> 0.06352000458 | L141: 0.06700399363 | M141: 0.0806502307 | N141: 0.0789812341 | O141: 0.08671075981 | P141: Utilidad Operacional / Ventas
A142: Margen Neto | F142: =+F99/F86 -> 0.03116434325 | G142: =+G99/G86 -> 0.03396091537 | H142: 0.03903531732 | I142: 0.05122374321 | J142: 0.04547782 | K142: =+K99/K86 -> 0.04328079852 | L142: 0.04676478757 | M142: 0.06041102464 | N142: 0.05874202805 | O142: 0.06647155375 | P142: Utilidad Neta / Ventas
A143: ROE | F143: =+F99/F77 -> 0.1267126524 | G143: =+G99/G77 -> 0.2068895707 | H143: 0.2211774615 | I143: 0.2222451936 | J143: 0.1319530052 | K143: =+K99/K77 -> 0.1233128095 | L143: 0.1323319034 | M143: 0.1705121324 | N143: 0.1643422072 | O143: 0.1853716673 | P143: Utilidad Neta / Patrimonio
A146: ANALISIS DE RAZONES FINANCIERAS
A147: Liquidez | F147: =F138 -> 2017 | G147: =G138 -> 2018 | H147: 2019 | I147: 2020 | J147: 2021 | K147: 2022 | L147: 2023 | M147: 2024 | N147: 2025 | O147: 2026
A148: Capital de Trabajo | F148: =+(F45-F62) -> 9061083578 | G148: =+(G45-G62) -> 11965353987 | H148: 17539060328 | I148: 20097812409 | J148: 17836250056 | K148: =+(K45-K62) -> 1.976535708e+10 | L148: 2.164004e+10 | M148: 2.322197329e+10 | N148: 2.481378881e+10 | O148: 2.656922153e+10 | P148: Activo Corriente - Pasivo Corriente
A149: Razon Corriente | F149: =+(F45/F62) -> 5.657620704 | G149: =+(G45/G62) -> 6.32889904 | H149: 4.52075379 | I149: 4.845840828 | J149: 5.2151421 | K149: =+(K45/K62) -> 5.333540689 | L149: 5.424970325 | M149: 5.434508004 | N149: 5.414064359 | O149: 5.449420176 | P149: Activo Corriente / Pasivo Corriente
A150: Prueba Acida | F150: =+(F45-F43)/F62 -> 5.657620704 | G150: =+(G45-G43)/G62 -> 6.32889904 | H150: 4.487774423 | I150: 4.845840828 | J150: 5.2151421 | K150: =+(K45-K43)/K62 -> 5.333540689 | L150: 5.424970325 | M150: 5.434508004 | N150: 5.414064359 | O150: 5.449420176 | P150: (Activo Corriente - Inventarios) / Pasivo Corriente
A153: ANALISIS DE RAZONES FINANCIERAS
A154: Endeudamiento | F154: =F147 -> 2017 | G154: =G147 -> 2018 | H154: 2019 | I154: 2020 | J154: 2021 | K154: 2022 | L154: 2023 | M154: 2024 | N154: 2025 | O154: 2026
A155: Nivel de Endeudamiento | F155: =+F69/F54 -> 0.3961188758 | G155: =+G69/G54 -> 0.4402493371 | H155: 0.4942697668 | I155: 0.4040879386 | J155: 0.3543938146 | K155: =+K69/K54 -> 0.3422161115 | L155: 0.3371869711 | M155: 0.3344361132 | N155: 0.3269707974 | O155: 0.3228918681 | P155: Total Pasivo / Total Activo
A156: Concentracion de Endeudamiento a Corto Plazo | F156: =+F62/F69 -> 0.2143062701 | G156: =+G62/G69 -> 0.2170411092 | H156: 0.3138313565 | I156: 0.3690432545 | J156: 0.3632143147 | K156: =+K62/K69 -> 0.367966262 | L156: 0.3674484199 | M156: 0.3704105425 | N156: 0.381179568 | O156: 0.3845794363 | P156: Pasivo Corriente / Pasivo Total
A157: Concentracion de Endeudamiento a Largo Plazo | F157: =+F67/F69 -> 0.7856937299 | G157: =+G67/G69 -> 0.7829588908 | H157: 0.6861686435 | I157: 0.6309567455 | J157: 0.6367856853 | K157: =+K67/K69 -> 0.632033738 | L157: 0.6325515801 | M157: 0.6295894575 | N157: 0.618820432 | O157: 0.6154205637 | P157: Pasivo No Corriente / Pasivo Total
A159: RAZONES DE ACTIVIDAD
A160: Actividad | F160: =F154 -> 2017 | G160: =G154 -> 2018 | H160: =H154 -> 2019 | I160: =I154 -> 2020 | J160: =J154 -> 2021 | K160: =K154 -> 2022 | L160: 2023 | M160: 2024 | N160: 2025 | O160: 2026
A161: Rotacion del Patrimonio | F161: =+F86/F77 -> 4.065949709 | G161: =+G86/G77 -> 6.091990409 | H161: 5.666085911 | I161: 4.338714427 | J161: 2.90148044 | K161: =+K86/K77 -> 2.849134344 | L161: 2.829733871 | M161: 2.822533361 | N161: 2.797693793 | O161: 2.788736788 | P161: Ventas / Patrimonio
A162: Rotacion del Activo | F162: =+F86/F54 -> 2.455350281 | G162: =+G86/G54 -> 3.40999567 | H162: 2.865510949 | I162: 2.585492258 | J162: 1.873213719 | K162: =+K86/K54 -> 1.874114668 | L162: 1.875584478 | M162: 1.878576274 | N162: 1.882929622 | O162: 1.888276357 | P162: Ventas / Activo Total
A163: Rotacion de Cartera | F163: =+F86/F42 -> 9.828532082 | G163: =+G86/G42 -> 10.36484812 | H163: 8.992084847 | I163: 5.850431178 | J163: 4.94497565 | K163: =+K86/K42 -> 4.94497565 | L163: 4.94497565 | M163: 4.94497565 | N163: 4.94497565 | O163: 4.94497565 | P163: Ventas / Cuentas Por Cobrar Clientes
A164: Periodo de Cobro | F164: =+(F42/F86)*365 -> 37.13677657 | G164: =+(G42/G86)*365 -> 35.21518076 | H164: 40.591254 | I164: 62.388564 | J164: 73.8122947 | K164: =+(K42/K86)*365 -> 73.8122947 | L164: 73.8122947 | M164: 73.8122947 | N164: 73.8122947 | O164: 73.8122947 | P164: (Cuentas Por Cobrar Clientes / Ventas ) * 365
A165: Rotacion de Inventarios | F165: =+(F43/F87)*365 -> 0 | G165: 0 | H165: 0.7851764172 | I165: 0 | J165: 0 | K165: =+(K43/K87)*365 -> 0 | L165: 0 | M165: 0 | N165: 0 | O165: 0 | P165: (Inventarios / Costo de Ventas) * 365
A166: Ciclo Operacional | F166: =F164+F165 -> 37.13677657 | G166: 35.21518076 | H166: 41.37643042 | I166: 62.388564 | J166: 73.8122947 | K166: =K164+K165 -> 73.8122947 | L166: 73.8122947 | M166: 73.8122947 | N166: 73.8122947 | O166: 73.8122947 | P166: Periodo de Cobro + Rotacion de Inventarios
A167: Periodo de Pago a Proveedores | F167: =+((F58+F59)/F87)*365 -> 4.782603229 | G167: =+((G58+G59)/G87)*365 -> 0.6037461655 | H167: 8.19058568 | I167: 8.858664105 | J167: 7.93736104 | K167: 8.307784782 | L167: 8.339838026 | M167: 8.472502272 | N167: 8.44890181 | O167: 8.520052032 | P167: (Cuentas por pagar Proveedores / Costo de Ventas) * 365
A170: Análisis de Palanca de crecimiento de VS Ltda comparación año 2021 respecto al proyección año 2026
A172: Ventas 2021 | B172: 61578566195
A173: Margen Ebitda General 2021 | B173: 0.0907
A174: Efectivo generado | B174: =+B172*B173 -> 5585175954
A176: Ventas 2021 | B176: =+B172 -> 61578566195
A177: PKT 2021 | B177: 0.18
A178: KTNO Requerido | B178: =+B176*B177 -> 1.108414192e+10
A179: Caja neta para alcanzar crecimiento | B179: =+B178-B174 -> 5498965961
A180: PDC | B180: =+B173/B177 -> 0.5038888889
A182: Ventas 2026 | B182: 9.080249863e+10
A183: Margen Ebitda General 2026 | B183: 0.1010251177
A184: Efectivo generado | B184: =+B182*B183 -> 9173333114
A186: Ventas 2026 | B186: =+B182 -> 9.080249863e+10
A187: PKT 2026 | B187: 0.18
A188: KTNO Requerido | B188: =+B186*B187 -> 1.634444975e+10
A189: Caja neta para alcanzar crecimiento | B189: =+B188-B184 -> 7171116638
A190: PDC | B190: =+B183/B187 -> 0.5612506541
A192: Calculos para llegar a un PCD mayor a 1 en 2026
A194: Ventas 2026 | B194: 9.080249863e+10
A195: Margen Ebitda General 2026 | B195: 0.1010251177
A196: Efectivo generado | B196: =+B194*B195 -> 9173333114
A198: Ventas 2026 | B198: =+B194 -> 9.080249863e+10
A199: PKT 2026 | B199: 0.09
A200: KTNO Requerido | B200: =+B198*B199 -> 8172224876
A201: Caja neta para alcanzar crecimiento | B201: =+B200-B196 -> -1001108238
A202: PDC | B202: =+B195/B199 -> 1.122501308 | C202: Se tendría que reducir el indicador productividad del capital de trabajo a un nivel del 9 %, en este caso disminuyendo las cuentas por cobrar, a través de la estrategía de incursionar más con clientes del sector privado y de esta forma mejorar la rotación de los días de cartera

Sheet Valoración + Estrategia FLC P
A1: MODELOS DE VALORACIÓN CON ESTRATEGIA - FCLD con el Modelo de Anualidad Perpetua
A3: =+'Estados Finan + Estrategia'!A11:P11 -> COMPAÑÍA VS LTDA
A4: VALORACIÓN
A5: Pesos Colombianos
A6: a 31 de Diciembre
A7: COSTO DE CAPITAL
A8: CALCULO DEL COSTO DE LOS RECURSOS PROPIOS | I8: TASAS HISTORICAS
A9: CONCEPTO | F9: ='Valoración Sin Estrategia FLC P'!F9 -> 2021 | I9: Años | J9: Rentabilidad acciones USA S&P | K9: Rentabilidad Bonos del Tesoro USA | L9: Inflación USA | M9: Inflación Colombia | N9: RIESGO PAÍS
A10: Tasa libre de riesgo nominal en dólares KL USA | F10: =+AVERAGE(K10:K19) -> 0.0259186884 | G10: Kl | I10: 2012 | J10: 0.1589058524 | K10: 0.02971571978 | L10: 0.0206934 | M10: 0.0244 | N10: 0.0112
A11: Inflación en USA | F11: =+AVERAGE(L10:L19) -> 0.02140929 | I11: 2013 | J11: 0.3214508586 | K11: -0.09104568794 | L11: 0.0146483 | M11: 0.0194 | N11: 0.0166
A12: Tasa libre de riesgo real en dólares | F12: =+((1+F10)/(1+F11))-1 -> 0.004414878979 | I12: 2014 | J12: 0.1352442165 | K12: 0.1074618045 | L12: 0.0162222 | M12: 0.0366 | N12: 0.0196
I13: 2015 | J13: 0.01378891641 | K13: 0.01284299671 | L13: 0.0011863 | M13: 0.0677 | N13: 0.0321
A14: Inflación COLOMBIA | F14: =+AVERAGE(M10:M19) -> 0.03886 | I14: 2016 | J14: 0.1177308087 | K14: 0.006905504699 | L14: 0.0126158 | M14: 0.0575 | N14: 0.0227
A15: Tasa libre de riesgo nominal en $COL | F15: =+((1+F14)*(1+F12))-1 -> 0.04344644118 | I15: 2017 | J15: 0.2160548143 | K15: 0.02801716271 | L15: 0.0213011 | M15: 0.0409 | N15: 0.0174
I16: 2018 | J16: -0.04226869289 | K16: -0.0001669238571 | L16: 0.0244258 | M16: 0.0318 | N16: 0.0231
A17: Riesgo país Colombia | F17: =+AVERAGE(N10:N19) -> 0.02149 | G17: RP | I17: 2019 | J17: 0.3221 | K17: 0.09635630742 | L17: 0.0229 | M17: 0.038 | N17: 0.0161
I18: 2020 | J18: 0.1801 | K18: 0.1133 | L18: 0.012 | M18: 0.0161 | N18: 0.0209
I19: 2021 | J19: 0.2847 | K19: -0.0442 | L19: 0.0681 | M19: 0.0562 | N19: 0.0352
A20: Rentabilidad Mercado en dólares Km USA | F20: =+AVERAGE(J10:J19) -> 0.1707806774 | G20: Km
A21: Inflación en USA | F21: =+AVERAGE(L10:L19) -> 0.02140929
A22: Rentabilidad del Mercado real en dólares Km USA | F22: =+((1+F20)/(1+F21))-1 -> 0.1462404825
A24: Inflación COLOMBIA | F24: =+F14 -> 0.03886
A25: Rentabilidad del Mercado en $COL | F25: =+((1+F24)*(1+F22))-1 -> 0.1907833877
A27: Prima de riesgo del mercado (Km - KL) | F27: =+F25-F15 -> 0.1473369465
A30: Beta Desapalancada BU Sectorial | F30: ='Valoración Sin Estrategia FLC P'!F30 -> 0.7741172457 | G30: Fuente: Damodaran 2021
F32: ='Estrategias Operativas EM'!E10 -> 2022 | G32: ='Estrategias Operativas EM'!F10 -> 2023 | H32: ='Estrategias Operativas EM'!G10 -> 2024 | I32: ='Estrategias Operativas EM'!H10 -> 2025 | J32: ='Estrategias Operativas EM'!I10 -> 2026
A33: Deuda D | F33: ='Estados Finan + Estrategia'!J57+'Estados Finan + Estrategia'!J64 -> 3521317866 | G33: ='Estados Finan + Estrategia'!K57+'Estados Finan + Estrategia'!K64 -> 3434473283 | H33: ='Estados Finan + Estrategia'!L57+'Estados Finan + Estrategia'!L64 -> 3536555329 | I33: ='Estados Finan + Estrategia'!M57+'Estados Finan + Estrategia'!M64 -> 3654558584 | J33: ='Estados Finan + Estrategia'!N57+'Estados Finan + Estrategia'!N64 -> 3536726266
A34: Patrimonio K | F34: ='Estados Finan + Estrategia'!J77-'Estados Finan + Estrategia'!J76 -> 20022268805 | G34: ='Estados Finan + Estrategia'!K77-'Estados Finan + Estrategia'!K76 -> 2.262431535e+10 | H34: ='Estados Finan + Estrategia'!L77-'Estados Finan + Estrategia'!L76 -> 2.496115233e+10 | I34: ='Estados Finan + Estrategia'!M77-'Estados Finan + Estrategia'!M76 -> 2.69341149e+10 | J34: ='Estados Finan + Estrategia'!N77-'Estados Finan + Estrategia'!N76 -> 2.915547863e+10
A35: Beta Apalancada BL = BU * ( 1 + (1-t) * D/P) | F35: =$F$30*(1+(1-('Estados Finan + Estrategia'!K98/'Estados Finan + Estrategia'!K97))*('Valoración + Estrategia FLC P'!F33/'Valoración + Estrategia FLC P'!F34)) -> 0.862988341 | G35: =$F$30*(1+(1-('Estados Finan + Estrategia'!L98/'Estados Finan + Estrategia'!L97))*('Valoración + Estrategia FLC P'!G33/'Valoración + Estrategia FLC P'!G34)) -> 0.852864554 | H35: =$F$30*(1+(1-('Estados Finan + Estrategia'!M98/'Estados Finan + Estrategia'!M97))*('Valoración + Estrategia FLC P'!H33/'Valoración + Estrategia FLC P'!H34)) -> 0.853531698 | I35: =$F$30*(1+(1-('Estados Finan + Estrategia'!N98/'Estados Finan + Estrategia'!N97))*('Valoración + Estrategia FLC P'!I33/'Valoración + Estrategia FLC P'!I34)) -> 0.8495785586 | J35: =$F$30*(1+(1-('Estados Finan + Estrategia'!O98/'Estados Finan + Estrategia'!O97))*('Valoración + Estrategia FLC P'!J33/'Valoración + Estrategia FLC P'!J34)) -> 0.8438651137
A37: Costo del Patrimonio Ke = Kl + (Km - KL)*B + RP | F37: =$F$15+($F$25-$F$15)*F35+$F$17 -> 0.1920865082 | G37: 0.1905949003 | H37: 0.1906931953 | I37: 0.1901107518 | J37: 0.1892689503
A40: Estructura Deuda D/(D+ K) | F40: =F33/(F33+F34) -> 0.1495659058 | G40: =G33/(G33+G34) -> 0.1317971196 | H40: 0.1240996424 | I40: 0.1194742422 | J40: 0.1081825554
A41: Estructura Patrimonio K/(D+ K) | F41: =F34/(F33+F34) -> 0.8504340942 | G41: =G34/(G33+G34) -> 0.8682028804 | H41: 0.8759003576 | I41: 0.8805257578 | J41: 0.8918174446
A42: Total Estructura de Capital D+K | F42: =F40+F41 -> 1 | G42: =G40+G41 -> 1 | H42: 1 | I42: 1 | J42: 1
A44: Costo Despues de Impuestos (Escudo Fiscal) Kd*(1- tx) | F44: ='Estados Finan + Estrategia'!X16*(1-('Estados Finan + Estrategia'!K98/'Estados Finan + Estrategia'!K97)) -> 0.0611256165 | G44: ='Estados Finan + Estrategia'!Y16*(1-('Estados Finan + Estrategia'!L98/'Estados Finan + Estrategia'!L97)) -> 0.06012737803 | H44: ='Estados Finan + Estrategia'!Z16*(1-('Estados Finan + Estrategia'!M98/'Estados Finan + Estrategia'!M97)) -> 0.06322063748 | I44: ='Estados Finan + Estrategia'!AA16*(1-('Estados Finan + Estrategia'!N98/'Estados Finan + Estrategia'!N97)) -> 0.06087724548 | J44: ='Estados Finan + Estrategia'!AB16*(1-('Estados Finan + Estrategia'!O98/'Estados Finan + Estrategia'!O97)) -> 0.06477050103
A46: Aporte Costo de la Deuda Estructura deuda * Costo | F46: =F40*F44 -> 0.009142308198 | G46: =G40*G44 -> 0.007924615236 | H46: 0.007845658502 | I46: 0.007273262769 | J46: 0.007007038314
A47: Aporte Costo Patrimonio Estructura Patromonio * Costo | F47: =F41*F37 -> 0.1633569156 | G47: =G41*G37 -> 0.1654750414 | H47: 0.1670282379 | I47: 0.1673974138 | J47: 0.1687933516
A49: COSTO DE CAPITAL - WACC | F49: =F46+F47 -> 0.1724992238 | G49: =G46+G47 -> 0.1733996567 | H49: 0.1748738964 | I49: 0.1746706766 | J49: 0.1758003899
A51: FLUJO DE CAJA PROYECTADO CON ESTRATEGIA
F54: =F32 -> 2022 | G54: =G32 -> 2023 | H54: =H32 -> 2024 | I54: =I32 -> 2025 | J54: =J32 -> 2026
B55: UTILIDAD DEL EJERCICIO | F55: =+'Estados Finan + Estrategia'!K99 -> 2937952415 | G55: =+'Estados Finan + Estrategia'!L99 -> 3462072221 | H55: =+'Estados Finan + Estrategia'!M99 -> 4797358861 | I55: =+'Estados Finan + Estrategia'!N99 -> 4988831833 | J55: =+'Estados Finan + Estrategia'!O99 -> 6035783168
B56: (+) Impuestos CAUSADOS | F56: =+'Estados Finan + Estrategia'!K98 -> 1562777065 | G56: =+'Estados Finan + Estrategia'!L98 -> 1704373189 | H56: =+'Estados Finan + Estrategia'!M98 -> 1828241408 | I56: =+'Estados Finan + Estrategia'!N98 -> 1955228256 | J56: =+'Estados Finan + Estrategia'!O98 -> 2090476720
B57: (+) Gastos financiero | F57: =+'Estados Finan + Estrategia'!K95 -> 575071375.7 | G57: =+'Estados Finan + Estrategia'!L95 -> 627175978.2 | H57: =+'Estados Finan + Estrategia'!M95 -> 672757058.6 | I57: =+'Estados Finan + Estrategia'!N95 -> 719485733.5 | J57: =+'Estados Finan + Estrategia'!O95 -> 769254521.6
B58: EBIT | F58: =+SUM(F55:F57) -> 5075800856 | G58: =+SUM(G55:G57) -> 5793621388 | H58: 7298357328 | I58: 7663545823 | J58: 8895514410
B60: (-) Impuestos AJUSTADOS Impuestos operacionales | F60: =+F58*('Estados Finan + Estrategia'!K98/'Estados Finan + Estrategia'!K97) -> 1762457664 | G60: =+G58*('Estados Finan + Estrategia'!L98/'Estados Finan + Estrategia'!L97) -> 1911274034 | H60: =+H58*('Estados Finan + Estrategia'!M98/'Estados Finan + Estrategia'!M97) -> 2013879276 | I60: =+I58*('Estados Finan + Estrategia'!N98/'Estados Finan + Estrategia'!N97) -> 2157812741 | J60: =+J58*('Estados Finan + Estrategia'!O98/'Estados Finan + Estrategia'!O97) -> 2288367102
B61: UODI RODI NOPAT NOPLAT EBIT (1 - tx) | F61: =+F58-F60 -> 3313343192 | G61: =+G58-G60 -> 3882347354 | H61: 5284478051 | I61: 5505733082 | J61: 6607147309
B63: (+) Depreciación | F63: =+'Estados Finan + Estrategia'!K104 -> 341879994.5 | G63: =+'Estados Finan + Estrategia'!L104 -> 239381929.8 | H63: =+'Estados Finan + Estrategia'!M104 -> 290630962.1 | I63: =+'Estados Finan + Estrategia'!N104 -> 265006445.9 | J63: =+'Estados Finan + Estrategia'!O104 -> 277818704
B64: (+) Amortizacion | F64: =+'Estados Finan + Estrategia'!K105 -> 0 | G64: =+'Estados Finan + Estrategia'!L105 -> 0 | H64: =+'Estados Finan + Estrategia'!M105 -> 0 | I64: =+'Estados Finan + Estrategia'!N105 -> 0 | J64: =+'Estados Finan + Estrategia'!O105 -> 0
B65: (+) Provisiones | F65: 0 | G65: 0 | H65: 0 | I65: 0 | J65: 0
B66: 1 Flujo operativo o flujo bruto | F66: =+F61+F63+F64+F65 -> 3655223187 | G66: =+G61+G63+G64+G65 -> 4121729284 | H66: 5575109013 | I66: 5770739528 | J66: 6884966013
B68: (-) Variación del capital de trabajo | F68: =+F74-E74 -> 1153441635 | G68: =+G74-F74 -> 1125583136 | H68: 984659568.6 | I68: 1009450334 | J68: 1075123998
B69: (-) Inversión en activos (1) | F69: =+'Estados Finan + Estrategia'!K49-'Estados Finan + Estrategia'!J49 -> 1062515433 | G69: =+'Estados Finan + Estrategia'!L49-'Estados Finan + Estrategia'!K49 -> 1021318513 | H69: =+'Estados Finan + Estrategia'!M49-'Estados Finan + Estrategia'!L49 -> 850849601.3 | I69: =+'Estados Finan + Estrategia'!N49-'Estados Finan + Estrategia'!M49 -> 832192780.8 | J69: =+'Estados Finan + Estrategia'!O49-'Estados Finan + Estrategia'!N49 -> 853878481.3
B70: 2 Financiación de inversiones | F70: =+SUM(F68:F69) -> 2215957068 | G70: =+SUM(G68:G69) -> 2146901649 | H70: 1835509170 | I70: 1841643115 | J70: 1929002479
B72: (1 - 2) FCLO | F72: =+F66-F70 -> 1439266118 | G72: =+G66-G70 -> 1974827635 | H72: 3739599844 | I72: 3929096413 | J72: 4955963534
A73: Anexo KTNO
A74: Calculo KTNO | E74: =+'Estados Finan + Estrategia'!J127 -> 11269465579 | F74: =+'Estados Finan + Estrategia'!K127 -> 1.242290721e+10 | G74: =+'Estados Finan + Estrategia'!L127 -> 1.354849035e+10 | H74: =+'Estados Finan + Estrategia'!M127 -> 1.453314992e+10 | I74: =+'Estados Finan + Estrategia'!N127 -> 1.554260025e+10 | J74: =+'Estados Finan + Estrategia'!O127 -> 1.661772425e+10
A75: MÉTODO FLUJO DE CAJA DESCONTADO FCLD CON ESTRATEGIA
J79: =J54 -> 2026
E80: FCLOn | F80: Ultimo FCLO conocido | J80: =+J72 -> 4955963534
E81: WACC n | F81: Ultimo costo de capital conocido | J81: =+J49 -> 0.1758003899
E82: g | F82: Gradiente a perpetuidad | H82: ='Valoración Sin Estrategia FLC P'!H82 ->  | I82: ='Valoración Sin Estrategia FLC P'!I82 ->  | J82: =+H82+I82 -> 
E84: M1 | F84: MODELO ANUALIDAD PERPETUA
F85: FCLO (último valor conocido) | J85: =+J80 -> 4955963534 | K85: Representa una serie de pagos Futuros Constantes y perpetuos
F86: WACC (último valor conocido) | J86: =+J81 -> 0.1758003899
F87: VALOR TERMINAL (FCLO / WACC) | J87: =+J85/J86 -> 2.819085633e+10
E89: M2 | F89: MODELO CRECIMIENTO CONSTANTE
F90: FCLO (último valor conocido) | J90: =+J80 -> 4955963534 | K90: Representa pagos perpetuos con un grado de crecimiento constante
F91: WACC (último valor conocido) | J91: =+J81 -> 0.1758003899
F92: Tasa de crecimiento - perpetuidad g | J92: =+J82 -> 
F93: VALOR TERMINAL FCLO*(1+g)/(WACC - g) | J93: =+J90*(1+J92)/(J91-J92) -> 
A96: VALOR PRESENTE FLUJOS DE CAJA PROYECTADOS | F96: =F54 -> 2022 | G96: =G54 -> 2023 | H96: =H54 -> 2024 | I96: =I54 -> 2025 | J96: =J54 -> 2026 | K96: MÉTODO FLUJO DE CAJA LIBRE DESCONTADO
A97: Costo de Capital | F97: =+F49 -> 0.1724992238 | G97: =+G49 -> 0.1733996567 | H97: 0.1748738964 | I97: 0.1746706766 | J97: 0.1758003899
A98: Tasa Acumulada | F98: =+F97 -> 0.1724992238 | G98: =+((1+F98)*(1+G97))-1 -> 0.3758101867 | H98: =+((1+G98)*(1+H97))-1 -> 0.6164034748 | I98: =+((1+H98)*(1+I97))-1 -> 0.8987417633 | J98: =+((1+I98)*(1+J97))-1 -> 1.232541306
A100: FCL | F100: =+F72 -> 1439266118 | G100: =+G72 -> 1974827635 | H100: 3739599844 | I100: 3929096413 | J100: 4955963534
A101: Valor Terminal | J101: =+J87 -> 2.819085633e+10
A103: Valor presente Flujos de caja Proyectados | F103: =+F100/(1+F98) -> 1227519890 | G103: =+G100/(1+G98) -> 1435392509 | H103: 2313531183 | I103: 2069315843 | J103: 2219875404
A104: Valor Terminal | J104: =+J101/(1+J98) -> 1.262724961e+10
A106: (+) VALOR PRESENTE DE LOS FLUJOS | F106: =+SUM(F103:J103) -> 9265634830
A107: (+) VALOR PRESENTE DEL VALOR TERMINAL | F107: =+J104 -> 1.262724961e+10
A108: (=)VALOR DE LAS OPERACIONES O DE MERCADO | F108: =+F106+F107 -> 2.189288444e+10
A110: Valor de mercado de la empresa | F110: =+F108 -> 2.189288444e+10
A111: (Menos) Deuda operacional (Pasivo Corriente - Oblig.Finan CP) | F111: =+('Estados Finan + Estrategia'!J62-'Estados Finan + Estrategia'!J57) -> 3866050632
A112: (Más) Activo corriente (Disp. Inver, Clientes, Invet.) | F112: =+'Estados Finan + Estrategia'!J40+'Estados Finan + Estrategia'!J42+'Estados Finan + Estrategia'!J43 -> 12673675404
A113: (Menos) Deuda financiera CP + LP | F113: =+'Estados Finan + Estrategia'!J57+'Estados Finan + Estrategia'!J64 -> 3521317866
A114: VALOR DE MERCADO DEL PATRIMONIO | F114: =+F110-F111+F112-F113 -> 2.717919134e+10
A116: Patrimonio contable | F116: =+'Estados Finan + Estrategia'!J77 -> 21223153995
A118: Numero de Acciones | F118: =+'Valoración Sin Estrategia FLC P'!F118 -> 400000 | G118: Valor
A119: Valor en Libros por acción | F119: =+F116/F118 -> 53057.88499
A120: Valor de Mercado de la Acción | F120: =+F114/F118 -> 67947.97836
A121: P/BV | F121: =+F120/F119 -> 1.280638653
A122: DATO DAMODARAN | C122: Total Market | D122: 1.904612717
A125: MÉTODOS CONTABLES O DE BALANCE CON ESTRATEGIA
A128: VALOR PATRIMONIAL O VALOR EN LIBROS | F128: =F96 -> 2022 | G128: =G96 -> 2023 | H128: =H96 -> 2024 | I128: =I96 -> 2025 | J128: =J96 -> 2026 | K128: MÉTODOS CONTABLES O DEL BALANCE
A129: Activos Totales | F129: =+'Estados Finan + Estrategia'!K54 -> 3.622040757e+10 | G129: =+'Estados Finan + Estrategia'!L54 -> 3.947121794e+10 | H129: =+'Estados Finan + Estrategia'!M54 -> 4.227242592e+10 | I129: =+'Estados Finan + Estrategia'!N54 -> 4.510408122e+10 | J129: =+'Estados Finan + Estrategia'!O54 -> 4.808750493e+10
A130: Pasivos Totales | F130: =+'Estados Finan + Estrategia'!K69 -> 1.239520704e+10 | G130: =+'Estados Finan + Estrategia'!L69 -> 1.330918042e+10 | H130: =+'Estados Finan + Estrategia'!M69 -> 1.413742582e+10 | I130: =+'Estados Finan + Estrategia'!N69 -> 1.47477174e+10 | J130: =+'Estados Finan + Estrategia'!O69 -> 1.55270643e+10
A131: Patrimonio A - P = Pat | F131: =+F129-F130 -> 2.382520054e+10 | G131: =+G129-G130 -> 2.616203752e+10 | H131: 2.813500009e+10 | I131: 3.035636382e+10 | J131: 3.256044063e+10
A132: Valor en Libros Acción | F132: =+F131/$F$118 -> 59563.00135 | G132: =+G131/$F$118 -> 65405.0938 | H132: 70337.50024 | I132: 75890.90954 | J132: 81401.10158
A133: P/BV | F133: =+F132/$F$119 -> 1.12260414 | G133: =+G132/$F$119 -> 1.232712043 | H133: 1.325674784 | I133: 1.430341778 | J133: 1.534194241
A138: VALOR SUSTANCIAL NETO | F138: =F128 -> 2022 | G138: 2023 | H138: 2024 | I138: 2025 | J138: 2026
A139: Activos totales | F139: =+F129 -> 3.622040757e+10 | G139: =+G129 -> 3.947121794e+10 | H139: 4.227242592e+10 | I139: 4.510408122e+10 | J139: 4.808750493e+10
A140: Pasivo Exigible Deudas Financiacion con terceros FIN CP + FIN LP + PROVE | F140: =+'Estados Finan + Estrategia'!K57+'Estados Finan + Estrategia'!K59+'Estados Finan + Estrategia'!K64 -> 4738872713 | G140: =+'Estados Finan + Estrategia'!L57+'Estados Finan + Estrategia'!L59+'Estados Finan + Estrategia'!L64 -> 4959140461 | H140: =+'Estados Finan + Estrategia'!M57+'Estados Finan + Estrategia'!M59+'Estados Finan + Estrategia'!M64 -> 5180532509 | I140: =+'Estados Finan + Estrategia'!N57+'Estados Finan + Estrategia'!N59+'Estados Finan + Estrategia'!N64 -> 5168692002 | J140: =+'Estados Finan + Estrategia'!O57+'Estados Finan + Estrategia'!O59+'Estados Finan + Estrategia'!O64 -> 5285431617
A141: Patrimonio Act - financiacion con terceros = Pat | F141: =+F139-F140 -> 3.148153486e+10 | G141: =+G139-G140 -> 3.451207748e+10 | H141: 3.709189341e+10 | I141: 3.993538922e+10 | J141: 4.280207332e+10
A142: Valor de la Acción | F142: =+F141/$F$118 -> 78703.83715 | G142: =+G141/$F$118 -> 86280.19371 | H142: 92729.73352 | I142: 99838.47305 | J142: 107005.1833
A143: P/BV | F143: =+F142/$F$119 -> 1.483357981 | G143: =+G142/$F$119 -> 1.626152149 | H143: 1.747708819 | I143: 1.88168965 | J143: 2.016763075
A153: RESUMEN RESULTADOS DE VALORACIÓN CON ESTRATEGIA
A155: Método | F155: Valor Empresa Ultimo Conocido | G155: Ultimo Patrimonio Real | H155: Valor Creado Proyectado 5 Años | I155: P/BV | J155: P/BV Sector (Damodaran) | K155: Diferencia
A156: Patrimonial | F156: =+J131 -> 3.256044063e+10 | G156: =+'Estados Finan + Estrategia'!J77 -> 21223153995 | H156: =+F156-G156 -> 1.133728664e+10 | I156: =+F156/G156 -> 1.534194241 | J156: 1.9 | K156: =+I156-J156 -> -0.3658057591
A157: Sustancial Neto | F157: =+J141 -> 4.280207332e+10 | G157: =+G156 -> 21223153995 | H157: =+F157-G157 -> 2.157891932e+10 | I157: =+F157/G157 -> 2.016763075 | J157: 1.9 | K157: =+I157-J157 -> 0.1167630752 | L157: =+AVERAGE(F156:F158) -> 3.418056843e+10 | N157: =+L157/G158 -> 1.61053199
A158: FCLD valor residual perpetuo | F158: =+F114 -> 2.717919134e+10 | G158: =+G157 -> 21223153995 | H158: =+F158-G158 -> 5956037348 | I158: 1.280638653 | J158: 1.9 | K158: =+I158-J158 -> -0.6193613471 | N158: Valor Medio
A161: GESTIÓN DE VALOR POR MÉTODO
A163: Método | F163: P/BV ANTES | G163: P/BV + Tratamiento | H163: Diferencia | I163: P/BV Sector (Damodaran) | J163: Diferencia | K163: Diferencia $
A164: Patrimonial | F164: =+'Valoración Sin Estrategia FLC P'!I156 -> 1.509686129 | G164: =+I156 -> 1.534194241 | H164: =+G164-F164 -> 0.02450811174 | I164: =+J156 -> 1.9 | J164: =+G164-I164 -> -0.3658057591 | K164: =+H156-'Valoración Sin Estrategia FLC P'!H156 -> 520139429.6
A165: Sustancial Neto | F165: =+'Valoración Sin Estrategia FLC P'!I157 -> 1.98026187 | G165: =+I157 -> 2.016763075 | H165: =+G165-F165 -> 0.0365012051 | I165: =+J157 -> 1.9 | J165: =+G165-I165 -> 0.1167630752 | K165: =+H157-'Valoración Sin Estrategia FLC P'!H157 -> 774670696.8
A166: FCLD valor residual perpetuo | F166: =+'Valoración Sin Estrategia FLC P'!I158 -> 0.8362105142 | G166: =+I158 -> 1.280638653 | H166: 0.4444281388 | I166: =+J158 -> 1.9 | J166: -0.6193613471 | K166: =+H158-'Valoración Sin Estrategia FLC P'!H158 -> 9432166829 | L166: Promedio | M166: =+AVERAGE(K164:K166) -> 3575658985

Sheet Valoración + Estrategia FCL C
A1: MODELOS DE VALORACIÓN CON ESTRATEGIA - FCL con el Modelo De Crecimiento Constante
A3: =+'Valoración + Estrategia FLC P'!A3:Q3 -> COMPAÑÍA VS LTDA
A4: VALORACIÓN
A5: Pesos Colombianos
A6: a 31 de Diciembre
A7: COSTO DE CAPITAL
A8: CALCULO DEL COSTO DE LOS RECURSOS PROPIOS | I8: TASAS HISTORICAS
A9: CONCEPTO | F9: ='Valoración Sin Estrategia FLC P'!F9 -> 2021 | I9: Años | J9: Rentabilidad acciones USA S&P | K9: Rentabilidad Bonos del Tesoro USA | L9: Inflación USA | M9: Inflación Colombia | N9: RIESGO PAÍS
A10: Tasa libre de riesgo nominal en dólares KL USA | F10: =+AVERAGE(K10:K19) -> 0.0259186884 | G10: Kl | I10: 2012 | J10: 0.1589058524 | K10: 0.02971571978 | L10: 0.0206934 | M10: 0.0244 | N10: 0.0112
A11: Inflación en USA | F11: =+AVERAGE(L10:L19) -> 0.02140929 | I11: 2013 | J11: 0.3214508586 | K11: -0.09104568794 | L11: 0.0146483 | M11: 0.0194 | N11: 0.0166
A12: Tasa libre de riesgo real en dólares | F12: =+((1+F10)/(1+F11))-1 -> 0.004414878979 | I12: 2014 | J12: 0.1352442165 | K12: 0.1074618045 | L12: 0.0162222 | M12: 0.0366 | N12: 0.0196
I13: 2015 | J13: 0.01378891641 | K13: 0.01284299671 | L13: 0.0011863 | M13: 0.0677 | N13: 0.0321
A14: Inflación COLOMBIA | F14: =+AVERAGE(M10:M19) -> 0.03886 | I14: 2016 | J14: 0.1177308087 | K14: 0.006905504699 | L14: 0.0126158 | M14: 0.0575 | N14: 0.0227
A15: Tasa libre de riesgo nominal en $COL | F15: =+((1+F14)*(1+F12))-1 -> 0.04344644118 | I15: 2017 | J15: 0.2160548143 | K15: 0.02801716271 | L15: 0.0213011 | M15: 0.0409 | N15: 0.0174
I16: 2018 | J16: -0.04226869289 | K16: -0.0001669238571 | L16: 0.0244258 | M16: 0.0318 | N16: 0.0231
A17: Riesgo país Colombia | F17: =+AVERAGE(N10:N19) -> 0.02149 | G17: RP | I17: 2019 | J17: 0.3221 | K17: 0.09635630742 | L17: 0.0229 | M17: 0.038 | N17: 0.0161
I18: 2020 | J18: 0.1801 | K18: 0.1133 | L18: 0.012 | M18: 0.0161 | N18: 0.0209
I19: 2021 | J19: 0.2847 | K19: -0.0442 | L19: 0.0681 | M19: 0.0562 | N19: 0.0352
A20: Rentabilidad Mercado en dólares Km USA | F20: =+AVERAGE(J10:J19) -> 0.1707806774 | G20: Km
A21: Inflación en USA | F21: =+AVERAGE(L10:L19) -> 0.02140929
A22: Rentabilidad del Mercado real en dólares Km USA | F22: =+((1+F20)/(1+F21))-1 -> 0.1462404825
A24: Inflación COLOMBIA | F24: =+F14 -> 0.03886
A25: Rentabilidad del Mercado en $COL | F25: =+((1+F24)*(1+F22))-1 -> 0.1907833877
A27: Prima de riesgo del mercado (Km - KL) | F27: =+F25-F15 -> 0.1473369465
A30: Beta Desapalancada BU Sectorial | F30: ='Valoración Sin Estrategia FLC P'!F30 -> 0.7741172457 | G30: Fuente: Damodaran 2021
F32: ='Estrategias Operativas EM'!E10 -> 2022 | G32: ='Estrategias Operativas EM'!F10 -> 2023 | H32: ='Estrategias Operativas EM'!G10 -> 2024 | I32: ='Estrategias Operativas EM'!H10 -> 2025 | J32: ='Estrategias Operativas EM'!I10 -> 2026
A33: Deuda D | F33: ='Estados Finan + Estrategia'!J57+'Estados Finan + Estrategia'!J64 -> 3521317866 | G33: ='Estados Finan + Estrategia'!K57+'Estados Finan + Estrategia'!K64 -> 3434473283 | H33: ='Estados Finan + Estrategia'!L57+'Estados Finan + Estrategia'!L64 -> 3536555329 | I33: ='Estados Finan + Estrategia'!M57+'Estados Finan + Estrategia'!M64 -> 3654558584 | J33: ='Estados Finan + Estrategia'!N57+'Estados Finan + Estrategia'!N64 -> 3536726266
A34: Patrimonio K | F34: ='Estados Finan + Estrategia'!J77-'Estados Finan + Estrategia'!J76 -> 20022268805 | G34: ='Estados Finan + Estrategia'!K77-'Estados Finan + Estrategia'!K76 -> 2.262431535e+10 | H34: ='Estados Finan + Estrategia'!L77-'Estados Finan + Estrategia'!L76 -> 2.496115233e+10 | I34: ='Estados Finan + Estrategia'!M77-'Estados Finan + Estrategia'!M76 -> 2.69341149e+10 | J34: ='Estados Finan + Estrategia'!N77-'Estados Finan + Estrategia'!N76 -> 2.915547863e+10
A35: Beta Apalancada BL = BU * ( 1 + (1-t) * D/P) | F35: =$F$30*(1+(1-('Estados Finan + Estrategia'!K98/'Estados Finan + Estrategia'!K97))*('Valoración + Estrategia FCL C'!F33/'Valoración + Estrategia FCL C'!F34)) -> 0.862988341 | G35: =$F$30*(1+(1-('Estados Finan + Estrategia'!L98/'Estados Finan + Estrategia'!L97))*('Valoración + Estrategia FCL C'!G33/'Valoración + Estrategia FCL C'!G34)) -> 0.852864554 | H35: =$F$30*(1+(1-('Estados Finan + Estrategia'!M98/'Estados Finan + Estrategia'!M97))*('Valoración + Estrategia FCL C'!H33/'Valoración + Estrategia FCL C'!H34)) -> 0.853531698 | I35: =$F$30*(1+(1-('Estados Finan + Estrategia'!N98/'Estados Finan + Estrategia'!N97))*('Valoración + Estrategia FCL C'!I33/'Valoración + Estrategia FCL C'!I34)) -> 0.8495785586 | J35: =$F$30*(1+(1-('Estados Finan + Estrategia'!O98/'Estados Finan + Estrategia'!O97))*('Valoración + Estrategia FCL C'!J33/'Valoración + Estrategia FCL C'!J34)) -> 0.8438651137
A37: Costo del Patrimonio Ke = Kl + (Km - KL)*B + RP | F37: =$F$15+($F$25-$F$15)*F35+$F$17 -> 0.1920865082 | G37: 0.1905949003 | H37: 0.1906931953 | I37: 0.1901107518 | J37: 0.1892689503
A40: Estructura Deuda D/(D+ K) | F40: =F33/(F33+F34) -> 0.1495659058 | G40: =G33/(G33+G34) -> 0.1317971196 | H40: 0.1240996424 | I40: 0.1194742422 | J40: 0.1081825554
A41: Estructura Patrimonio K/(D+ K) | F41: =F34/(F33+F34) -> 0.8504340942 | G41: =G34/(G33+G34) -> 0.8682028804 | H41: 0.8759003576 | I41: 0.8805257578 | J41: 0.8918174446
A42: Total Estructura de Capital D+K | F42: =F40+F41 -> 1 | G42: =G40+G41 -> 1 | H42: 1 | I42: 1 | J42: 1
A44: Costo Despues de Impuestos (Escudo Fiscal) Kd*(1- tx) | F44: ='Estados Finan + Estrategia'!X16*(1-('Estados Finan + Estrategia'!K98/'Estados Finan + Estrategia'!K97)) -> 0.0611256165 | G44: ='Estados Finan + Estrategia'!Y16*(1-('Estados Finan + Estrategia'!L98/'Estados Finan + Estrategia'!L97)) -> 0.06012737803 | H44: ='Estados Finan + Estrategia'!Z16*(1-('Estados Finan + Estrategia'!M98/'Estados Finan + Estrategia'!M97)) -> 0.06322063748 | I44: ='Estados Finan + Estrategia'!AA16*(1-('Estados Finan + Estrategia'!N98/'Estados Finan + Estrategia'!N97)) -> 0.06087724548 | J44: ='Estados Finan + Estrategia'!AB16*(1-('Estados Finan + Estrategia'!O98/'Estados Finan + Estrategia'!O97)) -> 0.06477050103
A46: Aporte Costo de la Deuda Estructura deuda * Costo | F46: =F40*F44 -> 0.009142308198 | G46: =G40*G44 -> 0.007924615236 | H46: 0.007845658502 | I46: 0.007273262769 | J46: 0.007007038314
A47: Aporte Costo Patrimonio Estructura Patromonio * Costo | F47: =F41*F37 -> 0.1633569156 | G47: =G41*G37 -> 0.1654750414 | H47: 0.1670282379 | I47: 0.1673974138 | J47: 0.1687933516
A49: COSTO DE CAPITAL - WACC | F49: =F46+F47 -> 0.1724992238 | G49: =G46+G47 -> 0.1733996567 | H49: 0.1748738964 | I49: 0.1746706766 | J49: 0.1758003899
A51: FLUJO DE CAJA PROYECTADO CON ESTRATEGIA
F54: =F32 -> 2022 | G54: =G32 -> 2023 | H54: =H32 -> 2024 | I54: =I32 -> 2025 | J54: =J32 -> 2026
B55: UTILIDAD DEL EJERCICIO | F55: =+'Estados Finan + Estrategia'!K99 -> 2937952415 | G55: =+'Estados Finan + Estrategia'!L99 -> 3462072221 | H55: =+'Estados Finan + Estrategia'!M99 -> 4797358861 | I55: =+'Estados Finan + Estrategia'!N99 -> 4988831833 | J55: =+'Estados Finan + Estrategia'!O99 -> 6035783168
B56: (+) Impuestos CAUSADOS | F56: =+'Estados Finan + Estrategia'!K98 -> 1562777065 | G56: =+'Estados Finan + Estrategia'!L98 -> 1704373189 | H56: =+'Estados Finan + Estrategia'!M98 -> 1828241408 | I56: =+'Estados Finan + Estrategia'!N98 -> 1955228256 | J56: =+'Estados Finan + Estrategia'!O98 -> 2090476720
B57: (+) Gastos financiero | F57: =+'Estados Finan + Estrategia'!K95 -> 575071375.7 | G57: =+'Estados Finan + Estrategia'!L95 -> 627175978.2 | H57: =+'Estados Finan + Estrategia'!M95 -> 672757058.6 | I57: =+'Estados Finan + Estrategia'!N95 -> 719485733.5 | J57: =+'Estados Finan + Estrategia'!O95 -> 769254521.6
B58: EBIT | F58: =+SUM(F55:F57) -> 5075800856 | G58: =+SUM(G55:G57) -> 5793621388 | H58: 7298357328 | I58: 7663545823 | J58: 8895514410
B60: (-) Impuestos AJUSTADOS Impuestos operacionales | F60: =+F58*('Estados Finan + Estrategia'!K98/'Estados Finan + Estrategia'!K97) -> 1762457664 | G60: =+G58*('Estados Finan + Estrategia'!L98/'Estados Finan + Estrategia'!L97) -> 1911274034 | H60: =+H58*('Estados Finan + Estrategia'!M98/'Estados Finan + Estrategia'!M97) -> 2013879276 | I60: =+I58*('Estados Finan + Estrategia'!N98/'Estados Finan + Estrategia'!N97) -> 2157812741 | J60: =+J58*('Estados Finan + Estrategia'!O98/'Estados Finan + Estrategia'!O97) -> 2288367102
B61: UODI RODI NOPAT NOPLAT EBIT (1 - tx) | F61: =+F58-F60 -> 3313343192 | G61: =+G58-G60 -> 3882347354 | H61: 5284478051 | I61: 5505733082 | J61: 6607147309
B63: (+) Depreciación | F63: =+'Estados Finan + Estrategia'!K104 -> 341879994.5 | G63: =+'Estados Finan + Estrategia'!L104 -> 239381929.8 | H63: =+'Estados Finan + Estrategia'!M104 -> 290630962.1 | I63: =+'Estados Finan + Estrategia'!N104 -> 265006445.9 | J63: =+'Estados Finan + Estrategia'!O104 -> 277818704
B64: (+) Amortizacion | F64: =+'Estados Finan + Estrategia'!K105 -> 0 | G64: =+'Estados Finan + Estrategia'!L105 -> 0 | H64: =+'Estados Finan + Estrategia'!M105 -> 0 | I64: =+'Estados Finan + Estrategia'!N105 -> 0 | J64: =+'Estados Finan + Estrategia'!O105 -> 0
B65: (+) Provisiones | F65: 0 | G65: 0 | H65: 0 | I65: 0 | J65: 0
B66: 1 Flujo operativo o flujo bruto | F66: =+F61+F63+F64+F65 -> 3655223187 | G66: =+G61+G63+G64+G65 -> 4121729284 | H66: 5575109013 | I66: 5770739528 | J66: 6884966013
B68: (-) Variación del capital de trabajo | F68: =+F74-E74 -> 1153441635 | G68: =+G74-F74 -> 1125583136 | H68: 984659568.6 | I68: 1009450334 | J68: 1075123998
B69: (-) Inversión en activos (1) | F69: =+'Estados Finan + Estrategia'!K49-'Estados Finan + Estrategia'!J49 -> 1062515433 | G69: =+'Estados Finan + Estrategia'!L49-'Estados Finan + Estrategia'!K49 -> 1021318513 | H69: =+'Estados Finan + Estrategia'!M49-'Estados Finan + Estrategia'!L49 -> 850849601.3 | I69: =+'Estados Finan + Estrategia'!N49-'Estados Finan + Estrategia'!M49 -> 832192780.8 | J69: =+'Estados Finan + Estrategia'!O49-'Estados Finan + Estrategia'!N49 -> 853878481.3
B70: 2 Financiación de inversiones | F70: =+SUM(F68:F69) -> 2215957068 | G70: =+SUM(G68:G69) -> 2146901649 | H70: 1835509170 | I70: 1841643115 | J70: 1929002479
B72: (1 - 2) FCLO | F72: =+F66-F70 -> 1439266118 | G72: =+G66-G70 -> 1974827635 | H72: 3739599844 | I72: 3929096413 | J72: 4955963534
A73: Anexo KTNO
A74: Calculo KTNO | E74: =+'Estados Finan + Estrategia'!J127 -> 11269465579 | F74: =+'Estados Finan + Estrategia'!K127 -> 1.242290721e+10 | G74: =+'Estados Finan + Estrategia'!L127 -> 1.354849035e+10 | H74: =+'Estados Finan + Estrategia'!M127 -> 1.453314992e+10 | I74: =+'Estados Finan + Estrategia'!N127 -> 1.554260025e+10 | J74: =+'Estados Finan + Estrategia'!O127 -> 1.661772425e+10
A75: MÉTODO FLUJO DE CAJA DESCONTADO FCLD CON ESTRATEGIA
J79: =J54 -> 2026
E80: FCLOn | F80: Ultimo FCLO conocido | J80: =+J72 -> 4955963534
E81: WACC n | F81: Ultimo costo de capital conocido | J81: =+J49 -> 0.1758003899
E82: g | F82: Gradiente a perpetuidad | H82: =+'Valoración Sin Estrategia FLC C'!H82 -> 0.0312 | I82: =+'Valoración Sin Estrategia FLC C'!I82 -> 0.04212 | J82: =+H82+I82 -> 0.07332
E84: M1 | F84: MODELO ANUALIDAD PERPETUA
F85: FCLO (último valor conocido) | J85: =+J80 -> 4955963534 | K85: Representa una serie de pagos Futuros Constantes y perpetuos
F86: WACC (último valor conocido) | J86: =+J81 -> 0.1758003899
F87: VALOR TERMINAL (FCLO / WACC) | J87: =+J85/J86 -> 2.819085633e+10
E89: M2 | F89: MODELO CRECIMIENTO CONSTANTE
F90: FCLO (último valor conocido) | J90: =+J80 -> 4955963534 | K90: Representa pagos perpetuos con un grado de crecimiento constante
F91: WACC (último valor conocido) | J91: =+J81 -> 0.1758003899
F92: Tasa de crecimiento - perpetuidad g | J92: =+J82 -> 0.07332
F93: VALOR TERMINAL FCLO*(1+g)/(WACC - g) | J93: =+J90*(1+J92)/(J91-J92) -> 5.19058796e+10
A96: VALOR PRESENTE FLUJOS DE CAJA PROYECTADOS | F96: =F54 -> 2022 | G96: =G54 -> 2023 | H96: =H54 -> 2024 | I96: =I54 -> 2025 | J96: =J54 -> 2026 | K96: MÉTODO FLUJO DE CAJA LIBRE DESCONTADO
A97: Costo de Capital | F97: =+F49 -> 0.1724992238 | G97: =+G49 -> 0.1733996567 | H97: 0.1748738964 | I97: 0.1746706766 | J97: 0.1758003899
A98: Tasa Acumulada | F98: =+F97 -> 0.1724992238 | G98: =+((1+F98)*(1+G97))-1 -> 0.3758101867 | H98: =+((1+G98)*(1+H97))-1 -> 0.6164034748 | I98: =+((1+H98)*(1+I97))-1 -> 0.8987417633 | J98: =+((1+I98)*(1+J97))-1 -> 1.232541306
A100: FCL | F100: =+F72 -> 1439266118 | G100: =+G72 -> 1974827635 | H100: 3739599844 | I100: 3929096413 | J100: 4955963534
A101: Valor Terminal | J101: =+J93 -> 5.19058796e+10
A103: Valor presente Flujos de caja Proyectados | F103: =+F100/(1+F98) -> 1227519890 | G103: =+G100/(1+G98) -> 1435392509 | H103: 2313531183 | I103: 2069315843 | J103: 2219875404
A104: Valor Terminal | J104: =+J101/(1+J98) -> 2.324968388e+10
A106: (+) VALOR PRESENTE DE LOS FLUJOS | F106: =+SUM(F103:J103) -> 9265634830
A107: (+) VALOR PRESENTE DEL VALOR TERMINAL | F107: =+J104 -> 2.324968388e+10
A108: (=)VALOR DE LAS OPERACIONES O DE MERCADO | F108: =+F106+F107 -> 3.251531871e+10
A110: Valor de mercado de la empresa | F110: =+F108 -> 3.251531871e+10
A111: (Menos) Deuda operacional (Pasivo Corriente - Oblig.Finan CP) | F111: =+('Estados Finan + Estrategia'!J62-'Estados Finan + Estrategia'!J57) -> 3866050632
A112: (Más) Activo corriente (Disp. Inver, Clientes, Invet.) | F112: =+'Estados Finan + Estrategia'!J40+'Estados Finan + Estrategia'!J42+'Estados Finan + Estrategia'!J43 -> 12673675404
A113: (Menos) Deuda financiera CP + LP | F113: =+'Estados Finan + Estrategia'!J57+'Estados Finan + Estrategia'!J64 -> 3521317866
A114: VALOR DE MERCADO DEL PATRIMONIO | F114: =+F110-F111+F112-F113 -> 3.780162562e+10
A116: Patrimonio contable | F116: =+'Estados Finan + Estrategia'!J77 -> 21223153995
A118: Numero de Acciones | F118: =+'Valoración Sin Estrategia FLC P'!F118 -> 400000 | G118: Valor
A119: Valor en Libros por acción | F119: =+F116/F118 -> 53057.88499
A120: Valor de Mercado de la Acción | F120: =+F114/F118 -> 94504.06404
A121: P/BV | F121: =+F120/F119 -> 1.78115023
A122: DATO DAMODARAN | C122: Total Market | D122: 1.904612717
A125: MÉTODOS CONTABLES O DE BALANCE CON ESTRATEGIA
A128: VALOR PATRIMONIAL O VALOR EN LIBROS | F128: =F96 -> 2022 | G128: =G96 -> 2023 | H128: =H96 -> 2024 | I128: =I96 -> 2025 | J128: =J96 -> 2026 | K128: MÉTODOS CONTABLES O DEL BALANCE
A129: Activos Totales | F129: =+'Estados Finan + Estrategia'!K54 -> 3.622040757e+10 | G129: =+'Estados Finan + Estrategia'!L54 -> 3.947121794e+10 | H129: =+'Estados Finan + Estrategia'!M54 -> 4.227242592e+10 | I129: =+'Estados Finan + Estrategia'!N54 -> 4.510408122e+10 | J129: =+'Estados Finan + Estrategia'!O54 -> 4.808750493e+10
A130: Pasivos Totales | F130: =+'Estados Finan + Estrategia'!K69 -> 1.239520704e+10 | G130: =+'Estados Finan + Estrategia'!L69 -> 1.330918042e+10 | H130: =+'Estados Finan + Estrategia'!M69 -> 1.413742582e+10 | I130: =+'Estados Finan + Estrategia'!N69 -> 1.47477174e+10 | J130: =+'Estados Finan + Estrategia'!O69 -> 1.55270643e+10
A131: Patrimonio A - P = Pat | F131: =+F129-F130 -> 2.382520054e+10 | G131: =+G129-G130 -> 2.616203752e+10 | H131: 2.813500009e+10 | I131: 3.035636382e+10 | J131: 3.256044063e+10
A132: Valor en Libros Acción | F132: =+F131/$F$118 -> 59563.00135 | G132: =+G131/$F$118 -> 65405.0938 | H132: 70337.50024 | I132: 75890.90954 | J132: 81401.10158
A133: P/BV | F133: =+F132/$F$119 -> 1.12260414 | G133: =+G132/$F$119 -> 1.232712043 | H133: 1.325674784 | I133: 1.430341778 | J133: 1.534194241
A138: VALOR SUSTANCIAL NETO | F138: =F128 -> 2022 | G138: 2023 | H138: 2024 | I138: 2025 | J138: 2026
A139: Activos totales | F139: =+F129 -> 3.622040757e+10 | G139: =+G129 -> 3.947121794e+10 | H139: 4.227242592e+10 | I139: 4.510408122e+10 | J139: 4.808750493e+10
A140: Pasivo Exigible Deudas Financiacion con terceros FIN CP + FIN LP + PROVE | F140: =+'Estados Finan + Estrategia'!K57+'Estados Finan + Estrategia'!K59+'Estados Finan + Estrategia'!K64 -> 4738872713 | G140: =+'Estados Finan + Estrategia'!L57+'Estados Finan + Estrategia'!L59+'Estados Finan + Estrategia'!L64 -> 4959140461 | H140: =+'Estados Finan + Estrategia'!M57+'Estados Finan + Estrategia'!M59+'Estados Finan + Estrategia'!M64 -> 5180532509 | I140: =+'Estados Finan + Estrategia'!N57+'Estados Finan + Estrategia'!N59+'Estados Finan + Estrategia'!N64 -> 5168692002 | J140: =+'Estados Finan + Estrategia'!O57+'Estados Finan + Estrategia'!O59+'Estados Finan + Estrategia'!O64 -> 5285431617
A141: Patrimonio Act - financiacion con terceros = Pat | F141: =+F139-F140 -> 3.148153486e+10 | G141: =+G139-G140 -> 3.451207748e+10 | H141: 3.709189341e+10 | I141: 3.993538922e+10 | J141: 4.280207332e+10
A142: Valor de la Acción | F142: =+F141/$F$118 -> 78703.83715 | G142: =+G141/$F$118 -> 86280.19371 | H142: 92729.73352 | I142: 99838.47305 | J142: 107005.1833
A143: P/BV | F143: =+F142/$F$119 -> 1.483357981 | G143: =+G142/$F$119 -> 1.626152149 | H143: 1.747708819 | I143: 1.88168965 | J143: 2.016763075
A153: RESUMEN RESULTADOS DE VALORACIÓN CON ESTRATEGIA
A155: Método | F155: Valor Empresa Ultimo Conocido | G155: Ultimo Patrimonio Real | H155: Valor Creado Proyectado 5 Años | I155: P/BV | J155: P/BV Sector (Damodaran) | K155: Diferencia
A156: Patrimonial | F156: =+J131 -> 3.256044063e+10 | G156: =+'Estados Finan + Estrategia'!J77 -> 21223153995 | H156: =+F156-G156 -> 1.133728664e+10 | I156: =+F156/G156 -> 1.534194241 | J156: 1.9 | K156: =+I156-J156 -> -0.3658057591
A157: Sustancial Neto | F157: =+J141 -> 4.280207332e+10 | G157: =+G156 -> 21223153995 | H157: =+F157-G157 -> 2.157891932e+10 | I157: =+F157/G157 -> 2.016763075 | J157: 1.9 | K157: =+I157-J157 -> 0.1167630752 | L157: =+AVERAGE(F156:F158) -> 3.772137985e+10 | N157: =+L157/G158 -> 1.777369182
A158: FCLD valor residual Crecimiento Constante | F158: =+F114 -> 3.780162562e+10 | G158: =+G157 -> 21223153995 | H158: =+F158-G158 -> 1.657847162e+10 | I158: 1.78115023 | J158: 1.9 | K158: =+I158-J158 -> -0.1188497702 | N158: Valor Medio
A161: GESTIÓN DE VALOR POR MÉTODO
A163: Método | F163: P/BV ANTES | G163: P/BV + Tratamiento | H163: Diferencia | I163: P/BV Sector (Damodaran) | J163: Diferencia | K163: Diferencia $
A164: Patrimonial | F164: =+'Valoración Sin Estrategia FLC P'!I156 -> 1.509686129 | G164: =+I156 -> 1.534194241 | H164: =+G164-F164 -> 0.02450811174 | I164: =+J156 -> 1.9 | J164: =+G164-I164 -> -0.3658057591 | K164: =+H156-'Valoración Sin Estrategia FLC P'!H156 -> 520139429.6
A165: Sustancial Neto | F165: =+'Valoración Sin Estrategia FLC P'!I157 -> 1.98026187 | G165: =+I157 -> 2.016763075 | H165: =+G165-F165 -> 0.0365012051 | I165: =+J157 -> 1.9 | J165: =+G165-I165 -> 0.1167630752 | K165: =+H157-'Valoración Sin Estrategia FLC P'!H157 -> 774670696.8
A166: FCLD valor residual Crecimiento Constante | F166: =+'Valoración Sin Estrategia FLC P'!I158 -> 0.8362105142 | G166: =+I158 -> 1.78115023 | H166: 0.9449397157 | I166: =+J158 -> 1.9 | J166: -0.1188497702 | K166: =+H158-'Valoración Sin Estrategia FLC P'!H158 -> 2.00546011e+10 | L166: Promedio | M166: =+AVERAGE(K164:K166) -> 7116470409

Sheet Gráficos
N34: ROA | O34: =+'Analisis Financiero'!F116 -> 0.07651937896 | P34: =+'Analisis Financiero'!G116 -> 0.1158065744 | Q34: =+'Analisis Financiero'!H116 -> 0.1118561292 | R34: =+'Analisis Financiero'!I116 -> 0.1324385915 | S34: =+'Analisis Financiero'!J116 -> 0.08518967633
N35: RAN | O35: =+'Analisis Financiero'!F119 -> 0.08636974656 | P35: =+'Analisis Financiero'!G119 -> 0.1332677197 | Q35: =+'Analisis Financiero'!H119 -> 0.14251273 | R35: =+'Analisis Financiero'!I119 -> 0.1213133485 | S35: =+'Analisis Financiero'!J119 -> 0.04920874978
N36: DISTANCIA | O36: =+'Analisis Financiero'!F120 -> 0.009850367595 | P36: =+'Analisis Financiero'!G120 -> 0.01746114534 | Q36: =+'Analisis Financiero'!H120 -> 0.03065660079 | R36: =+'Analisis Financiero'!I120 -> -0.01112524297 | S36: =+'Analisis Financiero'!J120 -> -0.03598092654

Sheet MATRIZ CTAS EF (hidden)
A1: CUENTAS DEL BALANCE | F1: 2016 | G1: 2017 | H1: 2018 | I1: 2019 | J1: 2020 | K1: 2016 | L1: 2017 | M1: 2018 | N1: 2019 | O1: 2020
A2: Activo Corriente | K2: ANÁLISIS VERTICAL
A3: Deudores comerciales y otros | F3: 2498931745 | G3: 5725064714 | H3: 7731045570 | I3: 10234154333 | J3: 15486728698 | K3: 0.129872621 | L3: 0.2498186159 | M3: 0.3289962025 | N3: 0.3186703637 | O3: 0.4419319157
A4: Pagos anticipados | F4: 3368962877 | G4: 926175054 | H4: 656692693 | I4: 11576196451 | J4: 8669863369 | K4: 0.1750892315 | L4: 0.04041452484 | M4: 0.02794568991 | N4: 0.360458775 | O4: 0.2474046909
A5: Activo No Corriente
A6: Propiedades, planta y equipo | F6: 11730108401 | G6: 11910370479 | H6: 9288165263 | I6: 9594493348 | J6: 9719576747 | K6: 0.6096284645 | L6: 0.5197202856 | M6: 0.3952597449 | N6: 0.2987526458 | O6: 0.2773594899
A7: Pasivo Corriente
A8: Impuestos corrientes por pagar | F8: 898109760 | G8: 629839083 | H8: 936020423 | I8: 1955820787 | J8: 3034237509 | K8: 0.118862562 | L8: 0.06938226383 | M8: 0.09047722372 | N8: 0.1232124874 | O8: 0.2142739431
A9: Pasivo No Corriente
A10: Obligaciones financieras | F10: 1350000000 | G10: 2750785706 | H10: 2500000000 | I10: 2855673315 | J10: 4029229857 | K10: 0.1786690957 | L10: 0.3030230177 | M10: 0.2416539786 | N10: 0.1799012541 | O10: 0.2845390207
A11: Otros pasivos | F11: 0 | G11: 2935347237 | H11: 5600000000 | I11: 6495683128 | J11: 4116193896 | K11: 0 | L11: 0.3233540787 | M11: 0.5413049121 | N11: 0.4092140143 | O11: 0.290680309
A12: Patrimonio
A13: Capital suscrito y pagado | F13: 4000000000 | G13: 4000000000 | H13: 4000000000 | I13: 4000000000 | J13: 4000000000 | K13: 0.3423034544 | L13: 0.2890366628 | M13: 0.3041011249 | N13: 0.246280932 | O13: 0.1915461786
A14: Resultados de Ejercicios Anteriores | F14: 2580851372 | G14: 3976114511 | H14: 4292094996 | I14: 5937865590 | J14: 9530144694 | K14: 0.220858585 | L14: 0.2873107173 | M14: 0.3263077291 | N14: 0.3655957679 | O14: 0.4563656994
A15: Resultados del Ejercicio | F15: 1105896925 | G15: 1753585876 | H15: 2721325951 | I15: 3592279105 | J15: 4641078100 | K15: 0.0946380844 | L15: 0.1267126524 | M15: 0.2068895707 | N15: 0.2211774615 | O15: 0.2222451936
A17: CUENTAS DE RESULTADO | F17: 2016 | G17: 2017 | H17: 2018 | I17: 2019 | J17: 2020 | K17: 2016 | L17: 2017 | M17: 2018 | N17: 2019 | O17: 2020 | P17: Promedio Estructural
K18: ANÁLISIS VERTICAL - BASE EN VENTAS
A19: Ventas, Ingresos de actividades ordinarias | F19: 34965292276 | G19: 56268982215 | H19: 80131113112 | I19: 92026384100 | J19: 90604040420 | K19: 1 | L19: 1 | M19: 1 | N19: 1 | O19: 1 | P19: 1
A20: Costo de Ventas | F20: 27589188017 | G20: 46042758141 | H20: 67750145748 | I20: 76372779650 | J20: 77804621136 | K20: 0.7890449706 | L20: 0.8182617906 | M20: 0.8454911347 | N20: 0.8299009072 | O20: 0.8587323565 | P20: 0.8282862319
A21: UTILIDAD BRUTA | F21: 7376104259 | G21: 10226224074 | H21: 12380967364 | I21: 15653604450 | J21: 12799419284 | K21: 0.2109550294 | L21: 0.1817382094 | M21: 0.1545088653 | N21: 0.1700990928 | O21: 0.1412676435 | P21: 0.1717137681
A22: Gastos de administración | F22: 0 | G22: 0 | H22: 0 | I22: 8851263892 | J22: 5383826386 | K22: 0 | L22: 0 | M22: 0 | N22: 0.09618180676 | O22: 0.05942148232 | P22: 0.03112065782
A23: Gastos de ventas y distribución | F23: 5534303402 | G23: 7098905205 | H23: 7489704766 | I23: 313612789 | J23: 1064657231 | K23: 0.1582799125 | L23: 0.126160185 | M23: 0.09346812337 | N23: 0.003407857345 | O23: 0.01175065953 | P23: 0.07861334755
A24: UTILIDAD OPERACIONAL | F24: 1841800857 | G24: 3127318869 | H24: 4891262598 | I24: 6488727769 | J24: 6350935667 | K24: 0.05267511687 | L24: 0.05557802444 | M24: 0.06104074195 | N24: 0.07050942871 | O24: 0.07009550167 | P24: 0.06197976273
A25: UTILIDAD NETA | F25: 1105896925 | G25: 1753585876 | H25: 2721325951 | I25: 3592279105 | J25: 4641078100 | K25: 0.0316284193 | L25: 0.03116434325 | M25: 0.03396091537 | N25: 0.03903531732 | O25: 0.05122374321 | P25: 0.03740254769
A29: Endeudamiento | F29: 2016 | G29: 2017 | H29: 2018 | I29: 2019 | J29: 2020
A30: Nivel de Endeudamiento | F30: 0.3926879188 | G30: 0.3961188758 | H30: 0.4402493371 | I30: 0.4942697668 | J30: 0.4040879386
A31: Concentracion de Endeudamiento a Corto Plazo | F31: 0.2384727398 | G31: 0.2143062701 | H31: 0.2170411092 | I31: 0.3138313565 | J31: 0.3690432545
A32: Concentracion de Endeudamiento a Largo Plazo | F32: 0.7615272602 | G32: 0.7856937299 | H32: 0.7829588908 | I32: 0.6861686435 | J32: 0.6309567455
A35: R/I | F35: 2016 | G35: 2017 | H35: 2018 | I35: 2019 | J35: 2020
A36: Rentabilidad
A37: Rentabilidad Bruta | F37: 0.2109550294 | G37: 0.1817382094 | H37: 0.1545088653 | I37: 0.1700990928 | J37: 0.1412676435
A38: Rentabilidad Operacional | F38: 0.05267511687 | G38: 0.05557802444 | H38: 0.06104074195 | I38: 0.07050942871 | J38: 0.07009550167
A39: Rentabilidad Neta | F39: 0.0316284193 | G39: 0.03116434325 | H39: 0.03396091537 | I39: 0.03903531732 | J39: 0.05122374321

Sheet Estrategias Operativas EO
A1: ESCENARIO OPTIMISTA - ESTRATEGÍAS Y TRATAMIENTOS OPERATIVOS
A3: =+'Valoración + Estrategia FCL C'!A3:Q3 -> COMPAÑÍA VS LTDA
A4: VALORACIÓN
A5: Pesos Colombianos
A6: a 31 de Diciembre
A7: PROYECCIONES MEJORARAS, TRATAMIENTOS Y ESTRATEGIAS
A9: ESTRATEGIA 1 MEJORAMIENTO MARGEN EBITDA
A10: COSTOS | E10: ='Analisis Financiero'!K84 -> 2022 | F10: ='Valoración Sin Estrategia FLC P'!G54 -> 2023 | G10: ='Valoración Sin Estrategia FLC P'!H54 -> 2024 | H10: ='Valoración Sin Estrategia FLC P'!I54 -> 2025 | I10: ='Valoración Sin Estrategia FLC P'!J54 -> 2026 | J10: Objetivo
A11: REDUCCIÓN DE COSTOS | E11: 0.0006015607592 | F11: 0.0087 | G11: 0.01860312152 | H11: 0.0087 | I11: 0.0006015607592 | J11: =+SUM(E11:I11) -> 0.03720624304
A12: REDUCCIÓN DE COSTOS $ Proyección | E12: =+E11*'Analisis Financiero'!K87 -> 34543567.32 | F12: =+F11*'Analisis Financiero'!L87 -> 543515437.2 | G12: =+G11*'Analisis Financiero'!M87 -> 1240455644 | H12: =+H11*'Analisis Financiero'!N87 -> 615913550.5 | I12: =+I11*'Analisis Financiero'!O87 -> 45127025.63 | J12: =+SUM(E12:I12) -> 2479555225
A15: GASTOS ADMINISTRATIVOS | E15: =E10 -> 2022 | F15: =F10 -> 2023 | G15: =G10 -> 2024 | H15: =H10 -> 2025 | I15: =I10 -> 2026 | J15: Objetivo
A16: REDUCCIÓN DE GASTOS ADMINISTRATIVOS | E16: 0.0002 | F16: 0.00125 | G16: 0.00329106154 | H16: 0.00125 | I16: 0.0002 | J16: =+SUM(E16:I16) -> 0.00619106154
A17: REDUCCIÓN DE GASTOS ADMON $ Proyección | E17: =+E16*'Analisis Financiero'!K89 -> 569604.6765 | F17: =+F16*'Analisis Financiero'!L89 -> 3873098.198 | G17: =+G16*'Analisis Financiero'!M89 -> 10883968.69 | H17: =+H16*'Analisis Financiero'!N89 -> 4389008.111 | I17: =+I16*'Analisis Financiero'!O89 -> 744120.1599 | J17: =+SUM(E17:I17) -> 20459799.84
A20: GASTOS DE VENTAS | E20: =E15 -> 2022 | F20: =F15 -> 2023 | G20: =G15 -> 2024 | H20: =H15 -> 2025 | I20: =I15 -> 2026 | J20: Objetivo
A21: REDUCCIÓN DE GASTOS DE VENTAS | E21: 0.0001 | F21: 0.00025 | G21: 0.0004 | H21: 0.00025 | I21: 0.0001 | J21: =+SUM(E21:I21) -> 0.0011
A22: REDUCCIÓN GASTOS DE VENTAS $ Proyección | E22: =+E21*'Analisis Financiero'!K90 -> 341359.3298 | F22: =+F21*'Analisis Financiero'!L90 -> 928446.1732 | G22: =+G21*'Analisis Financiero'!M90 -> 1585548.382 | H22: =+H21*'Analisis Financiero'!N90 -> 1052118.376 | I22: =+I21*'Analisis Financiero'!O90 -> 445945.0029 | J22: =+SUM(E22:I22) -> 4353417.263
A25: PLAN DE REDUCCIÓN EN PESOS | E25: =E20 -> 2022 | F25: =F20 -> 2023 | G25: =G20 -> 2024 | H25: =H20 -> 2025 | I25: =I20 -> 2026
A26: COSTO DE VENTAS | E26: =+'Analisis Financiero'!K87-'Estrategias Operativas EO'!E12 -> 5.738869554e+10 | F26: =+'Analisis Financiero'!L87-'Estrategias Operativas EO'!F12 -> 6.192952332e+10 | G26: =+'Analisis Financiero'!M87-'Estrategias Operativas EO'!G12 -> 6.543951754e+10 | H26: =+'Analisis Financiero'!N87-'Estrategias Operativas EO'!H12 -> 7.017874742e+10 | I26: =+'Analisis Financiero'!O87-'Estrategias Operativas EO'!I12 -> 7.497144435e+10
A27: GASTOS OPERACIONALES DE ADMINISTRACIÓN | E27: =+'Analisis Financiero'!K89-'Estrategias Operativas EO'!E17 -> 2847453778 | F27: =+'Analisis Financiero'!L89-'Estrategias Operativas EO'!F17 -> 3094605460 | G27: =+'Analisis Financiero'!M89-'Estrategias Operativas EO'!G17 -> 3296246136 | H27: =+'Analisis Financiero'!N89-'Estrategias Operativas EO'!H17 -> 3506817481 | I27: =+'Analisis Financiero'!O89-'Estrategias Operativas EO'!I17 -> 3719856679
A28: GASTOS OPERACIONALES DE VENTAS | E28: =+'Analisis Financiero'!K90-'Estrategias Operativas EO'!E22 -> 3413251939 | F28: =+'Analisis Financiero'!L90-'Estrategias Operativas EO'!F22 -> 3712856247 | G28: =+'Analisis Financiero'!M90-'Estrategias Operativas EO'!G22 -> 3962285406 | H28: =+'Analisis Financiero'!N90-'Estrategias Operativas EO'!H22 -> 4207421385 | I28: =+'Analisis Financiero'!O90-'Estrategias Operativas EO'!I22 -> 4459004084
A31: ESTRATEGIA 2 INCREMENTO EN INGRESOS | E31: =E25 -> 2022 | F31: =F25 -> 2023 | G31: =G25 -> 2024 | H31: =H25 -> 2025 | I31: =I25 -> 2026
A32: Crecimiento Valoración Natural | E32: =+'Analisis Financiero'!K29 -> 0.1007 | F32: =+'Analisis Financiero'!L29 -> 0.08794 | G32: =+'Analisis Financiero'!M29 -> 0.06734 | H32: =+'Analisis Financiero'!N29 -> 0.061708 | I32: =+'Analisis Financiero'!O29 -> 0.059636
A33: INCREMENTO EN INGRESOS | E33: =E25 -> 2022 | F33: =F25 -> 2023 | G33: =G25 -> 2024 | H33: =H25 -> 2025 | I33: =I25 -> 2026 | J33: Objetivo
A34: CRECIMIENTO ADICIONAL DE INGRESOS | E34: 0.01 | F34: 0.01 | G34: 0.01 | H34: 0.01 | I34: 0.01 | J34: =+SUM(E34:I34) -> 0.05
A35: INCREMENTO DE CRECIMIENTO | E35: =+((1+E32)*(1+E34))-1 -> 0.111707 | F35: =+((1+F32)*(1+F34))-1 -> 0.0988194 | G35: 0.0780134 | H35: 0.07232508 | I35: 0.07023236 | J35: =+SUM(E35:I35) -> 0.43109724
A36: INGRESOS CON TRATAMIENTO | E36: =+'Analisis Financiero'!J86*(1+'Estrategias Operativas EO'!E35) -> 6.845732309e+10 | F36: =E36*(1+'Estrategias Operativas EO'!F35) -> 7.522223468e+10 | G36: =F36*(1+'Estrategias Operativas EO'!G35) -> 8.109057697e+10 | H36: =G36*(1+'Estrategias Operativas EO'!H35) -> 8.695545943e+10 | I36: =H36*(1+'Estrategias Operativas EO'!I35) -> 9.306254656e+10
B39: Gestión Costos y Gastos
B40: Promedio 2021 | C40: Rango Objetivo | D40: Gestión
A41: Costos | B41: 0.847206243 | C41: 0.81 | D41: =+B41-C41 -> 0.03720624304 | E41: =+J11 -> 0.03720624304 | F41: =+D41-E41 -> 0
A42: Gastos | B42: 0.09238212308 | C42: 0.0851 | D42: =+B42-C42 -> 0.00728212308 | E42: =+J16+J21 -> 0.00729106154 | F42: =+D42-E42 -> -8.938460207e-06
A44: Aumento en ingresos 5%

Sheet Estados Finan + Estrategia EO
A1: MODELO DE VALORACIÓN DE EMPRESAS
A6: ='Cifras Historicas'!A6 -> Última actualización Mayo 2022
A9: ESTADOS FINANCIEROS PROYECTADOS ESCENARIO OPTIMISTA
A11: =+'Valoración + Estrategia FCL C'!A3:Q3 -> COMPAÑÍA VS LTDA
A12: ANÁLISIS FINANCIERO
A13: Pesos Colombianos
A14: a 31 de Diciembre | R14: TASAS DE DEUDA
R15: TASAS DE DEUDA | S15: =F24 -> 2017 | T15: =G24 -> 2018 | U15: 2019 | V15: 2020 | W15: 2021 | X15: 2022 | Y15: 2023 | Z15: 2024 | AA15: 2025 | AB15: 2026
R16: TASA Kd E.A. | S16: =+'Analisis Financiero'!S16 -> 0.1132 | T16: =+'Analisis Financiero'!T16 -> 0.1018 | U16: =+'Analisis Financiero'!U16 -> 0.1002 | V16: =+'Analisis Financiero'!V16 -> 0.0724 | W16: =+'Analisis Financiero'!W16 -> 0.0806 | X16: =+'Analisis Financiero'!X16 -> 0.09364 | Y16: =+'Analisis Financiero'!Y16 -> 0.089728 | Z16: =+'Analisis Financiero'!Z16 -> 0.0873136 | AA16: =+'Analisis Financiero'!AA16 -> 0.08473632 | AB16: =+'Analisis Financiero'!AB16 -> 0.087203584
A17: CIFRAS FUNDAMENTALES DE PROYECCIÓN
A19: =+A11 -> COMPAÑÍA VS LTDA
A20: CIFRAS DE PROYECCIÓN
A22: PLANES, POLITICAS Y EXPECTATIVAS
F23: CIFRAS HISTÓRICAS | K23: CIFRAS PROYECTADAS
A24: VARIABLE MACROECONÓMICA | F24: ='Analisis Financiero'!F24 -> 2017 | G24: ='Analisis Financiero'!G24 -> 2018 | H24: ='Analisis Financiero'!H24 -> 2019 | I24: ='Analisis Financiero'!I24 -> 2020 | J24: ='Analisis Financiero'!J24 -> 2021 | K24: ='Analisis Financiero'!K24 -> 2022 | L24: ='Analisis Financiero'!L24 -> 2023 | M24: ='Analisis Financiero'!M24 -> 2024 | N24: ='Analisis Financiero'!N24 -> 2025 | O24: ='Analisis Financiero'!O24 -> 2026
A25: Inflación en Colombia | F25: ='Analisis Financiero'!F25 -> 0.014 | G25: ='Analisis Financiero'!G25 -> 0.026 | H25: ='Analisis Financiero'!H25 -> 0.032 | I25: ='Analisis Financiero'!I25 -> -0.07 | J25: ='Analisis Financiero'!J25 -> 0.106 | K25: Tasas proyectadas con Tratamiento
A26: PIB | F26: ='Analisis Financiero'!F26 -> 0.0409 | G26: ='Analisis Financiero'!G26 -> 0.0318 | H26: ='Analisis Financiero'!H26 -> 0.038 | I26: ='Analisis Financiero'!I26 -> 0.0161 | J26: ='Analisis Financiero'!J26 -> 0.0562
A27: Crecimiento Historico | G27: ='Analisis Financiero'!G27 -> 0.059 | H27: ='Analisis Financiero'!H27 -> 0.06 | I27: ='Analisis Financiero'!I27 -> 0.06 | J27: ='Analisis Financiero'!J27 -> 0.035
A28: Crecimiento Real Empresa -Incremento del SMMLV | G28: ='Analisis Financiero'!G28 -> 0.059 | H28: ='Analisis Financiero'!H28 -> 0.06 | I28: ='Analisis Financiero'!I28 -> 0.06 | J28: ='Analisis Financiero'!J28 -> 0.035
A29: Tasa de Crecimiento | G29: =G28 -> 0.059 | H29: 0.06 | I29: 0.06 | J29: 0.035 | K29: =+'Estrategias Operativas EO'!E35 -> 0.111707 | L29: =+'Estrategias Operativas EO'!F35 -> 0.0988194 | M29: =+'Estrategias Operativas EO'!G35 -> 0.0780134 | N29: =+'Estrategias Operativas EO'!H35 -> 0.07232508 | O29: =+'Estrategias Operativas EO'!I35 -> 0.07023236
G30: Crecimiento Historico | K30: Crecimiento Proyectado Con Estrategia
A33: ESTADOS FINANCIEROS PROYECTADOS
A35: =+A11 -> COMPAÑÍA VS LTDA
A36: PROYECCIÓN DE ESTADOS FINANCIERO
A38: ACTIVO | F38: =F24 -> 2017 | G38: 2018 | H38: 2019 | I38: 2020 | J38: 2021 | K38: 2022 | L38: 2023 | M38: 2024 | N38: 2025 | O38: 2026
A39: Activo Corriente
A40: Efectivo y equivalentes de efectivo | F40: ='Cifras Historicas'!F17 -> 4355275642 | G40: ='Cifras Historicas'!G17 -> 5822986465 | H40: ='Cifras Historicas'!H17 -> 546039649 | I40: ='Cifras Historicas'!I17 -> 1167076873 | J40: ='Cifras Historicas'!J17 -> 220921225 | K40: =J40*(1+K$29) -> 245599672.3 | L40: 269869684.5 | M40: 290923136.2 | N40: 311964175.3 | O40: 333874155.5
A41: Activos financieros | F41: ='Cifras Historicas'!F18 -> 0 | G41: ='Cifras Historicas'!G18 -> 0 | H41: ='Cifras Historicas'!H18 -> 0 | I41: ='Cifras Historicas'!I18 -> 0 | J41: ='Cifras Historicas'!J18 -> 0 | K41: 0 | L41: 0 | M41: 0 | N41: 0 | O41: 0
A42: Deudores comerciales y otros | F42: ='Cifras Historicas'!F19 -> 5725064714 | G42: ='Cifras Historicas'!G19 -> 7731045570 | H42: ='Cifras Historicas'!H19 -> 10234154333 | I42: ='Cifras Historicas'!I19 -> 15486728698 | J42: ='Cifras Historicas'!J19 -> 12452754179 | K42: 1.384381399e+10 | L42: 1.521185138e+10 | M42: 1.639857963e+10 | N42: 1.758460821e+10 | O42: 1.881961675e+10
A43: Inventarios | F43: ='Cifras Historicas'!F20 -> 0 | G43: ='Cifras Historicas'!G20 -> 0 | H43: ='Cifras Historicas'!H20 -> 164290700 | I43: ='Cifras Historicas'!I20 -> 0 | J43: ='Cifras Historicas'!J20 -> 0 | K43: 0 | L43: 0 | M43: 0 | N43: 0 | O43: 0
A44: Pagos anticipados y otras cuentas por cobrar | F44: ='Cifras Historicas'!F21 -> 926175054 | G44: ='Cifras Historicas'!G21 -> 656692693 | H44: ='Cifras Historicas'!H21 -> 11576196451 | I44: ='Cifras Historicas'!I21 -> 8669863369 | J44: ='Cifras Historicas'!J21 -> 9394045296 | K44: 1.044342591e+10 | L44: 1.1475439e+10 | M44: 1.237067701e+10 | N44: 1.326538721e+10 | O44: 1.419704666e+10
A45: TOTAL ACTIVO CORRIENTE | F45: ='Cifras Historicas'!F22 -> 11006515410 | G45: ='Cifras Historicas'!G22 -> 14210724728 | H45: ='Cifras Historicas'!H22 -> 22520681133 | I45: ='Cifras Historicas'!I22 -> 25323668940 | J45: ='Cifras Historicas'!J22 -> 22067720700 | K45: =SUM(K40:K44) -> 2.453283958e+10 | L45: 2.695716006e+10 | M45: 2.906017977e+10 | N45: 3.11619596e+10 | O45: 3.335053757e+10
A46: Activo No Corriente
A47: Activos financieros | F47: ='Cifras Historicas'!F24 -> 0 | G47: ='Cifras Historicas'!G24 -> 0 | H47: ='Cifras Historicas'!H24 -> 0 | I47: ='Cifras Historicas'!I24 -> 0 | J47: ='Cifras Historicas'!J24 -> 0 | K47: =J47*(1+K$29) -> 0 | L47: 0 | M47: 0 | N47: 0 | O47: 0
A48: Deudores | F48: ='Cifras Historicas'!F25 -> 0 | G48: ='Cifras Historicas'!G25 -> 0 | H48: ='Cifras Historicas'!H25 -> 0 | I48: ='Cifras Historicas'!I25 -> 0 | J48: ='Cifras Historicas'!J25 -> 0 | K48: 0 | L48: 0 | M48: 0 | N48: 0 | O48: 0
A49: Propiedades, planta y equipo | F49: ='Cifras Historicas'!F26 -> 11910370479 | G49: ='Cifras Historicas'!G26 -> 9288165263 | H49: ='Cifras Historicas'!H26 -> 9594493348 | I49: ='Cifras Historicas'!I26 -> 9719576747 | J49: ='Cifras Historicas'!J26 -> 10551295268 | K49: =+'Analisis Financiero'!K49 -> 1.16138107e+10 | L49: =+'Analisis Financiero'!L49 -> 1.263512921e+10 | M49: =+'Analisis Financiero'!M49 -> 1.348597882e+10 | N49: =+'Analisis Financiero'!N49 -> 1.43181716e+10 | O49: =+'Analisis Financiero'!O49 -> 1.517205008e+10
A50: Inventarios | F50: ='Cifras Historicas'!F27 -> 0 | G50: ='Cifras Historicas'!G27 -> 0 | H50: ='Cifras Historicas'!H27 -> 0 | I50: ='Cifras Historicas'!I27 -> 0 | J50: ='Cifras Historicas'!J27 -> 145047130 | K50: 161249909.8 | L50: 177184529.1 | M50: 191007296.6 | N50: 204821914.6 | O50: 219207041.1
A51: Pagos anticipados y otras cuentas por cobrar | F51: ='Cifras Historicas'!F28 -> 0 | G51: ='Cifras Historicas'!G28 -> 0 | H51: ='Cifras Historicas'!H28 -> 0 | I51: ='Cifras Historicas'!I28 -> 0 | J51: ='Cifras Historicas'!J28 -> 109156636 | K51: 121350196.3 | L51: 133341949.9 | M51: 143744408.8 | N51: 154140734.7 | O51: 164966402.2
A52: TOTAL ACTIVO NO CORRIENTE | F52: ='Cifras Historicas'!F29 -> 11910370479 | G52: ='Cifras Historicas'!G29 -> 9288165263 | H52: ='Cifras Historicas'!H29 -> 9594493348 | I52: ='Cifras Historicas'!I29 -> 9719576747 | J52: ='Cifras Historicas'!J29 -> 10805499034 | K52: =SUM(K47:K51) -> 1.189641081e+10 | L52: 1.294565569e+10 | M52: 1.382073052e+10 | N52: 1.467713425e+10 | O52: 1.555622352e+10
A54: 0 TOTAL ACTIVO | F54: =F45+F52 -> 22916885889 | G54: 23498889991 | H54: 32115174481 | I54: 35043245687 | J54: 32873219734 | K54: 3.642925038e+10 | L54: 3.990281576e+10 | M54: 4.28809103e+10 | N54: 4.583909385e+10 | O54: 4.890676109e+10
A56: Pasivo Corriente
A57: Obligaciones financieras | F57: ='Cifras Historicas'!F34 -> 408734110 | G57: ='Cifras Historicas'!G34 -> 526145096 | H57: ='Cifras Historicas'!H34 -> 208868995 | I57: ='Cifras Historicas'!I34 -> 96658002 | J57: ='Cifras Historicas'!J34 -> 365420012 | K57: =+AVERAGE(G57:J57) -> 299273026.2 | L57: =+AVERAGE(H57:K57) -> 242555008.8 | M57: =+AVERAGE(I57:L57) -> 250976512.3 | N57: =+AVERAGE(J57:M57) -> 289556139.8 | O57: =+AVERAGE(K57:N57) -> 270590171.8
A58: Proveedores | F58: ='Cifras Historicas'!F35 -> 580386860 | G58: ='Cifras Historicas'!G35 -> 83953100 | H58: ='Cifras Historicas'!H35 -> 366465683 | I58: ='Cifras Historicas'!I35 -> 671557747 | J58: ='Cifras Historicas'!J35 -> 0 | K58: =J58*(1+K$29) -> 0 | L58: 0 | M58: 0 | N58: 0 | O58: 0
A59: Cuentas por pagar Varios | F59: ='Cifras Historicas'!F36 -> 22912438 | G59: ='Cifras Historicas'!G36 -> 28112354 | H59: ='Cifras Historicas'!H36 -> 1347336496 | I59: ='Cifras Historicas'!I36 -> 1216784731 | J59: ='Cifras Historicas'!J36 -> 1183288600 | K59: 1315470220 | L59: 1445464197 | M59: 1558229774 | N59: 1670928867 | O59: 1788282145
A60: Impuestos corrientes por pagar | F60: ='Cifras Historicas'!F37 -> 629839083 | G60: ='Cifras Historicas'!G37 -> 936020423 | H60: ='Cifras Historicas'!H37 -> 1955820787 | I60: ='Cifras Historicas'!I37 -> 3034237509 | J60: ='Cifras Historicas'!J37 -> 1988914847 | K60: 2211090558 | L60: 2429589200 | M60: 2619129714 | N60: 2808558480 | O60: 3005810171
A61: Otros pasivos | F61: ='Cifras Historicas'!F38 -> 303559341 | G61: ='Cifras Historicas'!G38 -> 671139768 | H61: ='Cifras Historicas'!H38 -> 1103128844 | I61: ='Cifras Historicas'!I38 -> 206618542 | J61: ='Cifras Historicas'!J38 -> 693847185 | K61: 771354772.5 | L61: 847579588.3 | M61: 913702153.8 | N61: 979785735.1 | O61: 1048598400
A62: TOTAL PASIVO CORRIENTE | F62: ='Cifras Historicas'!F39 -> 1945431832 | G62: ='Cifras Historicas'!G39 -> 2245370741 | H62: ='Cifras Historicas'!H39 -> 4981620805 | I62: ='Cifras Historicas'!I39 -> 5225856531 | J62: ='Cifras Historicas'!J39 -> 4231470644 | K62: =SUM(K57:K61) -> 4597188576 | L62: 4965187995 | M62: 5342038154 | N62: 5748829222 | O62: 6113280887
A63: Pasivo No Corriente
A64: Obligaciones financieras | F64: ='Cifras Historicas'!F41 -> 2750785706 | G64: ='Cifras Historicas'!G41 -> 2500000000 | H64: ='Cifras Historicas'!H41 -> 2855673315 | I64: ='Cifras Historicas'!I41 -> 4029229857 | J64: ='Cifras Historicas'!J41 -> 3155897854 | K64: =+AVERAGE(G64:J64) -> 3135200256 | L64: =+AVERAGE(H64:K64) -> 3294000321 | M64: =+AVERAGE(I64:L64) -> 3403582072 | N64: =+AVERAGE(J64:M64) -> 3247170126 | O64: =+AVERAGE(K64:N64) -> 3269988194
A65: Cuentas por pagar Varios | F65: ='Cifras Historicas'!F42 -> 1446246300 | G65: ='Cifras Historicas'!G42 -> 0 | H65: ='Cifras Historicas'!H42 -> 1540582555 | I65: ='Cifras Historicas'!I42 -> 789272626 | J65: ='Cifras Historicas'!J42 -> 797056878 | K65: =J65*(1+K$29) -> 886093710.7 | L65: 973656959.5 | M65: 1049615249 | N65: 1125528756 | O65: 1204577297
A66: Otros pasivos | F66: ='Cifras Historicas'!F43 -> 2935347237 | G66: ='Cifras Historicas'!G43 -> 5600000000 | H66: ='Cifras Historicas'!H43 -> 6495683128 | I66: ='Cifras Historicas'!I43 -> 4116193896 | J66: ='Cifras Historicas'!J43 -> 3465640363 | K66: 3852776651 | L66: 4233505728 | M66: 4563775904 | N66: 4893851361 | O66: 5237558092
A67: TOTAL PASIVO NO CORRIENTE | F67: ='Cifras Historicas'!F44 -> 7132379243 | G67: ='Cifras Historicas'!G44 -> 8100000000 | H67: ='Cifras Historicas'!H44 -> 10891938998 | I67: ='Cifras Historicas'!I44 -> 8934696379 | J67: ='Cifras Historicas'!J44 -> 7418595095 | K67: =SUM(K64:K66) -> 7874070618 | L67: 8501163008 | M67: 9016973225 | N67: 9266550243 | O67: 9712123582
A69: 0 TOTAL PASIVO | F69: =F62+F67 -> 9077811075 | G69: 10345370741 | H69: 15873559803 | I69: 14160552910 | J69: 11650065739 | K69: 1.247125919e+10 | L69: 1.3466351e+10 | M69: 1.435901138e+10 | N69: 1.501537947e+10 | O69: 1.582540447e+10
A71: Patrimonio
A72: Capital suscrito y pagado | F72: ='Cifras Historicas'!F49 -> 4000000000 | G72: ='Cifras Historicas'!G49 -> 4000000000 | H72: ='Cifras Historicas'!H49 -> 4000000000 | I72: ='Cifras Historicas'!I49 -> 4000000000 | J72: ='Cifras Historicas'!J49 -> 4000000000 | K72: =J72 -> 4000000000 | L72: =K72 -> 4000000000 | M72: 4000000000 | N72: 4000000000 | O72: 4000000000
A73: Reservas | F73: ='Cifras Historicas'!F50 -> 1110584793 | G73: ='Cifras Historicas'!G50 -> 1510584793 | H73: ='Cifras Historicas'!H50 -> 1510584793 | I73: ='Cifras Historicas'!I50 -> 1510584793 | J73: ='Cifras Historicas'!J50 -> 2400000000 | K73: =+'Analisis Financiero'!K73 -> 2400000000 | L73: =+'Analisis Financiero'!L73 -> 2400000000 | M73: =+'Analisis Financiero'!M73 -> 2400000000 | N73: =+'Analisis Financiero'!N73 -> 2400000000 | O73: =+'Analisis Financiero'!O73 -> 2400000000
A74: Resultados de Ejercicios Anteriores | F74: ='Cifras Historicas'!F51 -> 3976114511 | G74: ='Cifras Historicas'!G51 -> 4292094996 | H74: ='Cifras Historicas'!H51 -> 5937865590 | I74: ='Cifras Historicas'!I51 -> 9530144694 | J74: ='Cifras Historicas'!J51 -> 10821809856 | K74: =+K54-K69-K72-K73-K75-K76 -> 1.293470604e+10 | L74: =+L54-L69-L72-L73-L75-L76 -> 1.387276822e+10 | M74: 1.416969474e+10 | N74: 1.592026551e+10 | O74: 1.745174204e+10
A75: Resultados del Ejercicio | F75: ='Cifras Historicas'!F52 -> 1753585876 | G75: ='Cifras Historicas'!G52 -> 2721325951 | H75: ='Cifras Historicas'!H52 -> 3592279105 | I75: ='Cifras Historicas'!I52 -> 4641078100 | J75: ='Cifras Historicas'!J52 -> 2800458949 | K75: =K99 -> 3422399960 | L75: 4962811346 | M75: 6751318983 | N75: 7302563681 | O75: 8028729393
A76: Ganancias Acumuladas adopción Pymes | F76: ='Cifras Historicas'!F53 -> 2998789634 | G76: ='Cifras Historicas'!G53 -> 629513510 | H76: ='Cifras Historicas'!H53 -> 1200885190 | I76: ='Cifras Historicas'!I53 -> 1200885190 | J76: ='Cifras Historicas'!J53 -> 1200885190 | K76: =+'Analisis Financiero'!K76 -> 1200885190 | L76: =+'Analisis Financiero'!L76 -> 1200885190 | M76: =+'Analisis Financiero'!M76 -> 1200885190 | N76: =+'Analisis Financiero'!N76 -> 1200885190 | O76: =+'Analisis Financiero'!O76 -> 1200885190
A77: 0 TOTAL PATRIMONIO | F77: ='Cifras Historicas'!F54 -> 13839074814 | G77: ='Cifras Historicas'!G54 -> 13153519250 | H77: ='Cifras Historicas'!H54 -> 16241614678 | I77: ='Cifras Historicas'!I54 -> 20882692777 | J77: ='Cifras Historicas'!J54 -> 21223153995 | K77: =SUM(K72:K76) -> 2.395799119e+10 | L77: =SUM(L72:L76) -> 2.643646475e+10 | M77: 2.852189892e+10 | N77: 3.082371438e+10 | O77: 3.308135662e+10
A79: 0 TOTAL PASIVO Y PATRIMONIO | F79: =F69+F77 -> 22916885889 | G79: 23498889991 | H79: 32115174481 | I79: 35043245687 | J79: 32873219734 | K79: 3.642925038e+10 | L79: 3.990281576e+10 | M79: 4.28809103e+10 | N79: 4.583909385e+10 | O79: 4.890676109e+10
A81: CONTROL (Pasivo y Patrimonio - Activo) | F81: =F54-F79 -> 0 | G81: 0 | H81: 0 | I81: 0 | J81: 0 | K81: 0 | L81: 0 | M81: 0 | N81: 0 | O81: 0
A84: CUENTAS DE RESULTADO | F84: ='Cifras Historicas'!F64 -> 2017 | G84: ='Cifras Historicas'!G64 -> 2018 | H84: ='Cifras Historicas'!H64 -> 2019 | I84: ='Cifras Historicas'!I64 -> 2020 | J84: ='Cifras Historicas'!J64 -> 2021 | K84: =K38 -> 2022 | L84: =L38 -> 2023 | M84: =M38 -> 2024 | N84: =N38 -> 2025 | O84: =O38 -> 2026
A85: Operacional
A86: Ventas, Ingresos de actividades ordinarias | F86: =+'Analisis Financiero'!F86 -> 56268982215 | G86: =+'Analisis Financiero'!G86 -> 80131113112 | H86: =+'Analisis Financiero'!H86 -> 92026384100 | I86: =+'Analisis Financiero'!I86 -> 90604040420 | J86: =+'Analisis Financiero'!J86 -> 61578566195 | K86: ='Estrategias Operativas EO'!E36 -> 6.845732309e+10 | L86: ='Estrategias Operativas EO'!F36 -> 7.522223468e+10 | M86: ='Estrategias Operativas EO'!G36 -> 8.109057697e+10 | N86: ='Estrategias Operativas EO'!H36 -> 8.695545943e+10 | O86: ='Estrategias Operativas EO'!I36 -> 9.306254656e+10
A87: Costo de Ventas | F87: =+'Analisis Financiero'!F87 -> 46042758141 | G87: =+'Analisis Financiero'!G87 -> 67750145748 | H87: =+'Analisis Financiero'!H87 -> 76372779650 | I87: =+'Analisis Financiero'!I87 -> 77804621136 | J87: =+'Analisis Financiero'!J87 -> 54413593743 | K87: ='Estrategias Operativas EO'!E26 -> 5.738869554e+10 | L87: ='Estrategias Operativas EO'!F26 -> 6.192952332e+10 | M87: ='Estrategias Operativas EO'!G26 -> 6.543951754e+10 | N87: ='Estrategias Operativas EO'!H26 -> 7.017874742e+10 | O87: ='Estrategias Operativas EO'!I26 -> 7.497144435e+10
A88: UTILIDAD BRUTA | F88: =F86-F87 -> 10226224074 | G88: 12380967364 | H88: 15653604450 | I88: 12799419284 | J88: 7164972452 | K88: 1.106862754e+10 | L88: 1.329271136e+10 | M88: 1.565105942e+10 | N88: 1.677671201e+10 | O88: 1.809110221e+10
A89: Gastos de administración | F89: =+'Analisis Financiero'!F89 -> 0 | G89: =+'Analisis Financiero'!G89 -> 0 | H89: =+'Analisis Financiero'!H89 -> 8851263892 | I89: =+'Analisis Financiero'!I89 -> 5383826386 | J89: =+'Analisis Financiero'!J89 -> 3355500547 | K89: ='Estrategias Operativas EO'!E27 -> 2847453778 | L89: ='Estrategias Operativas EO'!F27 -> 3094605460 | M89: ='Estrategias Operativas EO'!G27 -> 3296246136 | N89: ='Estrategias Operativas EO'!H27 -> 3506817481 | O89: ='Estrategias Operativas EO'!I27 -> 3719856679
A90: Gastos de ventas y distribución | F90: =+'Analisis Financiero'!F90 -> 7098905205 | G90: =+'Analisis Financiero'!G90 -> 7489704766 | H90: =+'Analisis Financiero'!H90 -> 313612789 | I90: =+'Analisis Financiero'!I90 -> 1064657231 | J90: =+'Analisis Financiero'!J90 -> 1048629364 | K90: ='Estrategias Operativas EO'!E28 -> 3413251939 | L90: ='Estrategias Operativas EO'!F28 -> 3712856247 | M90: ='Estrategias Operativas EO'!G28 -> 3962285406 | N90: ='Estrategias Operativas EO'!H28 -> 4207421385 | O90: ='Estrategias Operativas EO'!I28 -> 4459004084
A91: UTILIDAD OPERACIONAL | F91: =F88-F89-F90 -> 3127318869 | G91: 4891262598 | H91: 6488727769 | I91: 6350935667 | J91: 2760842541 | K91: 4807921828 | L91: 6485249654 | M91: 8392527879 | N91: 9062473142 | O91: 9912241449
A92: No Operacional
A93: Otros ingresos | F93: =+'Analisis Financiero'!F93 -> 244288944 | G93: =+'Analisis Financiero'!G93 -> 192784316 | H93: =+'Analisis Financiero'!H93 -> 82383557 | I93: =+'Analisis Financiero'!I93 -> 1658821003 | J93: =+'Analisis Financiero'!J93 -> 2779929418 | K93: =K86*'Cifras Historicas'!$P$73 -> 973400504.7 | L93: =L86*'Cifras Historicas'!$P$73 -> 1069591358 | M93: =M86*'Cifras Historicas'!$P$73 -> 1153033817 | N93: =N86*'Cifras Historicas'!$P$73 -> 1236427080 | O93: =O86*'Cifras Historicas'!$P$73 -> 1323264272
A94: Gasto no operacional | F94: =+'Analisis Financiero'!F94 -> 0 | G94: =+'Analisis Financiero'!G94 -> 0 | H94: =+'Analisis Financiero'!H94 -> 962059833 | I94: =+'Analisis Financiero'!I94 -> 259504531 | J94: =+'Analisis Financiero'!J94 -> 92569034 | K94: =K86*'Cifras Historicas'!$P$74 -> 202929437 | L94: =L86*'Cifras Historicas'!$P$74 -> 222982802.2 | M94: =M86*'Cifras Historicas'!$P$74 -> 240378448.7 | N94: =N86*'Cifras Historicas'!$P$74 -> 257763839.2 | O94: =O86*'Cifras Historicas'!$P$74 -> 275867202
A95: Gasto Financiero | F95: =+'Analisis Financiero'!F95 -> 528963937 | G95: =+'Analisis Financiero'!G95 -> 818412963 | H95: =+'Analisis Financiero'!H95 -> 457359388 | I95: =+'Analisis Financiero'!I95 -> 681428611 | J95: =+'Analisis Financiero'!J95 -> 631413481 | K95: =K86*'Cifras Historicas'!$P$75 -> 579952161.2 | L95: =L86*'Cifras Historicas'!$P$75 -> 637262685.8 | M95: =M86*'Cifras Historicas'!$P$75 -> 686977714.7 | N95: =N86*'Cifras Historicas'!$P$75 -> 736663432.8 | O95: =O86*'Cifras Historicas'!$P$75 -> 788401044.2
A96: Resultados Netos
A97: UTILIDAD ANTES DE IMPUESTOS | F97: =F91+F93-F94-F95 -> 2842643876 | G97: 4265633951 | H97: 5151692105 | I97: 7068823528 | J97: 4816789444 | K97: 4998440735 | L97: 6694595524 | M97: 8618205532 | N97: 9304472950 | O97: 1.017123747e+10
A98: Gasto por impuesto | F98: =+'Analisis Financiero'!F98 -> 1089058000 | G98: =+'Analisis Financiero'!G98 -> 1544308000 | H98: =+'Analisis Financiero'!H98 -> 1559413000 | I98: =+'Analisis Financiero'!I98 -> 2427745428 | J98: =+'Analisis Financiero'!J98 -> 2016330495 | K98: =K86*'Cifras Historicas'!$P$78 -> 1576040774 | L98: =L86*'Cifras Historicas'!$P$78 -> 1731784178 | M98: =M86*'Cifras Historicas'!$P$78 -> 1866886550 | N98: =N86*'Cifras Historicas'!$P$78 -> 2001909269 | O98: =O86*'Cifras Historicas'!$P$78 -> 2142508082
A99: UTILIDAD NETA | F99: =F97-F98 -> 1753585876 | G99: 2721325951 | H99: 3592279105 | I99: 4641078100 | J99: 2800458949 | K99: 3422399960 | L99: 4962811346 | M99: 6751318983 | N99: 7302563681 | O99: 8028729393
A103: Detalles de Depreciación y Amortización | F103: =F84 -> 2017 | G103: 2018 | H103: 2019 | I103: 2020 | J103: 2021 | K103: 2022 | L103: 2023 | M103: 2024 | N103: 2025 | O103: 2026
A104: Depreciaciones | F104: =+'Analisis Financiero'!F104 -> 589601720 | G104: =+'Analisis Financiero'!G104 -> 827825000 | H104: =+'Analisis Financiero'!H104 -> 527765968 | I104: =+'Analisis Financiero'!I104 -> 546876124 | J104: =+'Analisis Financiero'!J104 -> 136883865 | K104: =+AVERAGE(I104:J104) -> 341879994.5 | L104: =+AVERAGE(J104:K104) -> 239381929.8 | M104: =+AVERAGE(K104:L104) -> 290630962.1 | N104: =+AVERAGE(L104:M104) -> 265006445.9 | O104: =+AVERAGE(M104:N104) -> 277818704
A105: Amortizaciones | F105: =+'Analisis Financiero'!F105 -> 0 | G105: =+'Analisis Financiero'!G105 -> 739260000 | H105: =+'Analisis Financiero'!H105 -> 0 | I105: =+'Analisis Financiero'!I105 -> 0 | J105: =+'Analisis Financiero'!J105 -> 0 | K105: =+'Analisis Financiero'!K105 -> 0 | L105: =+'Analisis Financiero'!L105 -> 0 | M105: =+'Analisis Financiero'!M105 -> 0 | N105: =+'Analisis Financiero'!N105 -> 0 | O105: =+'Analisis Financiero'!O105 -> 0
A109: INDUCTORES DE VALOR Y RAZONES FINANCIERAS
A111: =+A11 -> COMPAÑÍA VS LTDA
A112: PROYECCIÓN DE INDUCTORES DE VALOR
A115: Inductores de Rentabilidad | F115: =F103 -> 2017 | G115: 2018 | H115: 2019 | I115: 2020 | J115: 2021 | K115: 2022 | L115: 2023 | M115: 2024 | N115: 2025 | O115: 2026
A116: ROA | F116: =F99/F54 -> 0.07651937896 | G116: =G99/G54 -> 0.1158065744 | H116: 0.1118561292 | I116: 0.1324385915 | J116: 0.08518967633 | K116: 0.09394648323 | L116: 0.1243724597 | M116: 0.1574434623 | N116: 0.1593086396 | O116: 0.1641639973
A117: UODI | F117: =F91*(1-(F98/F97)) -> 1929197760 | G117: 3120455246 | H117: 4524595164 | I117: 4169744558 | J117: 1605140995 | K117: 3291952900 | L117: 4807619885 | M117: 6574527907 | N117: 7112631482 | O117: 7824289274
A118: Activos Netos de Operación | F118: =F45+F49-F58 -> 22336499029 | G118: 23414936891 | H118: 31748708798 | I118: 34371687940 | J118: 32619015968 | K118: 3.614665028e+10 | L118: 3.959228928e+10 | M118: 4.254615859e+10 | N118: 4.54801312e+10 | O118: 4.852258764e+10
A119: RAN | F119: =F117/F118 -> 0.08636974656 | G119: =G117/G118 -> 0.1332677197 | H119: 0.14251273 | I119: 0.1213133485 | J119: 0.04920874978 | K119: 0.09107214293 | L119: 0.1214281865 | M119: 0.154526945 | N119: 0.1563898629 | O119: 0.1612504537
A120: Distancia Rentabilidad | F120: =F119-F116 -> 0.009850367595 | G120: =G119-G116 -> 0.01746114534 | H120: 0.03065660079 | I120: -0.01112524297 | J120: -0.03598092654 | K120: -0.002874340305 | L120: -0.002944273273 | M120: -0.002916517315 | N120: -0.002918776711 | O120: -0.00291354353
A122: Inductores de Operativos y Financieros | F122: =F115 -> 2017 | G122: 2018 | H122: 2019 | I122: 2020 | J122: 2021 | K122: 2022 | L122: 2023 | M122: 2024 | N122: 2025 | O122: 2026
A123: EBITDA Modelo General | F123: =F99+F98+F95+F104+F105 -> 3961209533 | G123: =G99+G98+G95+G104+G105 -> 6651131914 | H123: 6136817461 | I123: 8297128263 | J123: 5585086790 | K123: 5920272891 | L123: 7571240140 | M123: 9595814209 | N123: 1.030614283e+10 | O123: 1.123745722e+10
A124: EBITDA Operacional | F124: =F91+F104+F105 -> 3716920589 | G124: =G91+G104+G105 -> 6458347598 | H124: 7016493737 | I124: 6897811791 | J124: 2897726406 | K124: 5149801823 | L124: 6724631583 | M124: 8683158841 | N124: 9327479588 | O124: 1.019006015e+10
A125: Margen EBITDA Modelo General | F125: =F123/F86 -> 0.07039774627 | G125: =G123/G86 -> 0.08300311397 | H125: 0.06668541333 | I125: 0.09157569822 | J125: 0.09069855203 | K125: 0.08648122105 | L125: 0.1006516248 | M125: 0.1183345164 | N125: 0.1185220905 | O125: 0.1207516626
A126: Margen EBITDA Operacional | F126: =F124/F86 -> 0.06605629679 | G126: =G124/G86 -> 0.08059725302 | H126: 0.07624437063 | I126: 0.07613139281 | J126: 0.04705738677 | K126: 0.07522645629 | L126: 0.08939686001 | M126: 0.1070797516 | N126: 0.1072673257 | O126: 0.1094968978
A127: KTNO | F127: =F42+F43-F58-F59 -> 5121765416 | G127: =G42+G43-G58-G59 -> 7618980116 | H127: 8684642854 | I127: 13598386220 | J127: 11269465579 | K127: 1.252834377e+10 | L127: 1.376638718e+10 | M127: 1.484034985e+10 | N127: 1.591367935e+10 | O127: 1.70313346e+10
A128: Variación de KTNO | G128: =G127-F127 -> 2497214700 | H128: 1065662738 | I128: 4913743366 | J128: -2328920641 | K128: 1258878191 | L128: 1238043414 | M128: 1073962670 | N128: 1073329490 | O128: 1117655257
A129: Productividad del Capital de trabajo PKT | F129: =F127/F86 -> 0.09102289067 | G129: =G127/G86 -> 0.09508142119 | H129: 0.09437122776 | I129: 0.1500858699 | J129: 0.1830095482 | K129: 0.1830095482 | L129: 0.1830095482 | M129: 0.1830095482 | N129: 0.1830095482 | O129: 0.1830095482
A130: Rotación del Activo Fijo | F130: =F86/F49 -> 4.72436876 | G130: 8.62722732 | H130: 9.591583501 | I130: 9.321809249 | J130: 5.836114395 | K130: 5.894475539 | L130: 5.953420294 | M130: 6.012954497 | N130: 6.073084042 | O130: 6.133814882
A131: Palanca de Crecimiento PDC | F131: =F126/F129 -> 0.7257108218 | G131: =G126/G129 -> 0.8476656324 | H131: 0.8079196641 | I131: 0.5072522342 | J131: 0.2571307739 | K131: 0.4110520846 | L131: 0.4884819447 | M131: 0.5851047264 | N131: 0.5861296678 | O131: 0.5983124864
A135: Razones financieras
A137: ANALISIS DE RAZONES FINANCIERAS
A138: R/I | F138: =+F122 -> 2017 | G138: =+G122 -> 2018 | H138: 2019 | I138: 2020 | J138: 2021 | K138: 2022 | L138: 2023 | M138: 2024 | N138: 2025 | O138: 2026
A140: Margen Bruto | F140: =+F88/F86 -> 0.1817382094 | G140: =+G88/G86 -> 0.1545088653 | H140: 0.1700990928 | I140: 0.1412676435 | J140: 0.1163549737 | K140: 0.1616865376 | L140: 0.1767125294 | M140: 0.1930071286 | N140: 0.1929345451 | O140: 0.1943972401 | P140: Utilidad Bruta / Ventas
A141: Margen Operacional | F141: =+F91/F86 -> 0.05557802444 | G141: =+G91/G86 -> 0.06104074195 | H141: 0.07050942871 | I141: 0.07009550167 | J141: 0.04483447264 | K141: 0.07023239606 | L141: 0.0862145306 | M141: 0.1034957228 | N141: 0.1042197143 | O141: 0.1065116077 | P141: Utilidad Operacional / Ventas
A142: Margen Neto | F142: =+F99/F86 -> 0.03116434325 | G142: =+G99/G86 -> 0.03396091537 | H142: 0.03903531732 | I142: 0.05122374321 | J142: 0.04547782 | K142: 0.04999319 | L142: 0.06597532454 | M142: 0.08325651679 | N142: 0.08398050828 | O142: 0.08627240162 | P142: Utilidad Neta / Ventas
A143: ROE | F143: =+F99/F77 -> 0.1267126524 | G143: =+G99/G77 -> 0.2068895707 | H143: 0.2211774615 | I143: 0.2222451936 | J143: 0.1319530052 | K143: 0.1428500384 | L143: 0.1877259835 | M143: 0.2367065041 | N143: 0.2369138122 | O143: 0.2426964978 | P143: Utilidad Neta / Patrimonio
A146: ANALISIS DE RAZONES FINANCIERAS
A147: Liquidez | F147: =F138 -> 2017 | G147: =G138 -> 2018 | H147: 2019 | I147: 2020 | J147: 2021 | K147: 2022 | L147: 2023 | M147: 2024 | N147: 2025 | O147: 2026
A148: Capital de Trabajo | F148: =+(F45-F62) -> 9061083578 | G148: =+(G45-G62) -> 11965353987 | H148: 17539060328 | I148: 20097812409 | J148: 17836250056 | K148: 1.9935651e+10 | L148: 2.199197207e+10 | M148: 2.371814162e+10 | N148: 2.541313038e+10 | O148: 2.723725668e+10 | P148: Activo Corriente - Pasivo Corriente
A149: Razon Corriente | F149: =+(F45/F62) -> 5.657620704 | G149: =+(G45/G62) -> 6.32889904 | H149: 4.52075379 | I149: 4.845840828 | J149: 5.2151421 | K149: 5.336487544 | L149: 5.429232507 | M149: 5.439904945 | N149: 5.420574937 | O149: 5.455423722 | P149: Activo Corriente / Pasivo Corriente
A150: Prueba Acida | F150: =+(F45-F43)/F62 -> 5.657620704 | G150: =+(G45-G43)/G62 -> 6.32889904 | H150: 4.487774423 | I150: 4.845840828 | J150: 5.2151421 | K150: 5.336487544 | L150: 5.429232507 | M150: 5.439904945 | N150: 5.420574937 | O150: 5.455423722 | P150: (Activo Corriente - Inventarios) / Pasivo Corriente
A153: ANALISIS DE RAZONES FINANCIERAS
A154: Endeudamiento | F154: =F147 -> 2017 | G154: =G147 -> 2018 | H154: 2019 | I154: 2020 | J154: 2021 | K154: 2022 | L154: 2023 | M154: 2024 | N154: 2025 | O154: 2026
A155: Nivel de Endeudamiento | F155: =+F69/F54 -> 0.3961188758 | G155: =+G69/G54 -> 0.4402493371 | H155: 0.4942697668 | I155: 0.4040879386 | J155: 0.3543938146 | K155: 0.342341911 | L155: 0.3374787154 | M155: 0.3348578955 | N155: 0.3275671093 | O155: 0.3235831635 | P155: Total Pasivo / Total Activo
A156: Concentracion de Endeudamiento a Corto Plazo | F156: =+F62/F69 -> 0.2143062701 | G156: =+G62/G69 -> 0.2170411092 | H156: 0.3138313565 | I156: 0.3690432545 | J156: 0.3632143147 | K156: 0.368622647 | L156: 0.3687107215 | M156: 0.3720338408 | N156: 0.3828627332 | O156: 0.386295396 | P156: Pasivo Corriente / Pasivo Total
A157: Concentracion de Endeudamiento a Largo Plazo | F157: =+F67/F69 -> 0.7856937299 | G157: =+G67/G69 -> 0.7829588908 | H157: 0.6861686435 | I157: 0.6309567455 | J157: 0.6367856853 | K157: 0.631377353 | L157: 0.6312892785 | M157: 0.6279661592 | N157: 0.6171372668 | O157: 0.613704604 | P157: Pasivo No Corriente / Pasivo Total
A159: RAZONES DE ACTIVIDAD
A160: Actividad | F160: =F154 -> 2017 | G160: =G154 -> 2018 | H160: =H154 -> 2019 | I160: =I154 -> 2020 | J160: =J154 -> 2021 | K160: =K154 -> 2022 | L160: 2023 | M160: 2024 | N160: 2025 | O160: 2026
A161: Rotacion del Patrimonio | F161: =+F86/F77 -> 4.065949709 | G161: =+G86/G77 -> 6.091990409 | H161: 5.666085911 | I161: 4.338714427 | J161: 2.90148044 | K161: 2.857389943 | L161: 2.845396893 | M161: 2.843098813 | N161: 2.821057137 | O161: 2.813141784 | P161: Ventas / Patrimonio
A162: Rotacion del Activo | F162: =+F86/F54 -> 2.455350281 | G162: =+G86/G54 -> 3.40999567 | H162: 2.865510949 | I162: 2.585492258 | J162: 1.873213719 | K162: 1.87918561 | L162: 1.885136005 | M162: 1.891064728 | N162: 1.896971605 | O162: 1.902856466 | P162: Ventas / Activo Total
A163: Rotacion de Cartera | F163: =+F86/F42 -> 9.828532082 | G163: =+G86/G42 -> 10.36484812 | H163: 8.992084847 | I163: 5.850431178 | J163: 4.94497565 | K163: 4.94497565 | L163: 4.94497565 | M163: 4.94497565 | N163: 4.94497565 | O163: 4.94497565 | P163: Ventas / Cuentas Por Cobrar Clientes
A164: Periodo de Cobro | F164: =+(F42/F86)*365 -> 37.13677657 | G164: =+(G42/G86)*365 -> 35.21518076 | H164: 40.591254 | I164: 62.388564 | J164: 73.8122947 | K164: 73.8122947 | L164: 73.8122947 | M164: 73.8122947 | N164: 73.8122947 | O164: 73.8122947 | P164: (Cuentas Por Cobrar Clientes / Ventas ) * 365
A165: Rotacion de Inventarios | F165: =+(F43/F87)*365 -> 0 | G165: 0 | H165: 0.7851764172 | I165: 0 | J165: 0 | K165: 0 | L165: 0 | M165: 0 | N165: 0 | O165: 0 | P165: (Inventarios / Costo de Ventas) * 365
A166: Ciclo Operacional | F166: =F164+F165 -> 37.13677657 | G166: 35.21518076 | H166: 41.37643042 | I166: 62.388564 | J166: 73.8122947 | K166: 73.8122947 | L166: 73.8122947 | M166: 73.8122947 | N166: 73.8122947 | O166: 73.8122947 | P166: Periodo de Cobro + Rotacion de Inventarios
A167: Periodo de Pago a Proveedores | F167: =+((F58+F59)/F87)*365 -> 4.782603229 | G167: =+((G58+G59)/G87)*365 -> 0.6037461655 | H167: 8.19058568 | I167: 8.858664105 | J167: 7.93736104 | K167: 8.366571598 | L167: 8.519271646 | M167: 8.691290659 | N167: 8.690509006 | O167: 8.706287955 | P167: (Cuentas por pagar Proveedores / Costo de Ventas) * 365

Sheet Estrategias Operativas EP
A1: ESCENARIO PESIMISTA - ESTRATEGIAS Y TRATAMIENTOS OPERATIVOS
A3: =+'Valoración + Estrategia FCL C'!A3:Q3 -> COMPAÑÍA VS LTDA
A4: VALORACIÓN
A5: Pesos Colombianos
A6: a 31 de Diciembre
A7: PROYECCIONES MEJORARAS, TRATAMIENTOS Y ESTRATEGIAS
A9: ESTRATEGIA 1 MEJORAMIENTO MARGEN EBITDA
A10: COSTOS | E10: ='Analisis Financiero'!K84 -> 2022 | F10: ='Valoración Sin Estrategia FLC P'!G54 -> 2023 | G10: ='Valoración Sin Estrategia FLC P'!H54 -> 2024 | H10: ='Valoración Sin Estrategia FLC P'!I54 -> 2025 | I10: ='Valoración Sin Estrategia FLC P'!J54 -> 2026 | J10: Objetivo
A11: REDUCCIÓN DE COSTOS | E11: 0.0004015607592 | F11: 0.0014 | G11: 0.003603121518 | H11: 0.0014 | I11: 0.0004015607592 | J11: =+SUM(E11:I11) -> 0.007206243037
A12: REDUCCIÓN DE COSTOS $ Proyección | E12: =+E11*'Analisis Financiero'!K87 -> 23058919.49 | F12: =+F11*'Analisis Financiero'!L87 -> 87462254.26 | G12: =+G11*'Analisis Financiero'!M87 -> 240256046.2 | H12: =+H11*'Analisis Financiero'!N87 -> 99112525.36 | I12: =+I11*'Analisis Financiero'!O87 -> 30123711.36 | J12: =+SUM(E12:I12) -> 480013456.7
A15: GASTOS ADMINISTRATIVOS | E15: =E10 -> 2022 | F15: =F10 -> 2023 | G15: =G10 -> 2024 | H15: =H10 -> 2025 | I15: =I10 -> 2026 | J15: Objetivo
A16: REDUCCIÓN DE GASTOS ADMINISTRATIVOS | E16: 4.55307699e-05 | F16: 5e-05 | G16: 0.0001910615398 | H16: 5e-05 | I16: 4.55307699e-05 | J16: =+SUM(E16:I16) -> 0.0003821230796
A17: REDUCCIÓN DE GASTOS ADMON $ Proyección | E17: =+E16*'Analisis Financiero'!K89 -> 129672.6973 | F17: =+F16*'Analisis Financiero'!L89 -> 154923.9279 | G17: =+G16*'Analisis Financiero'!M89 -> 631865.3701 | H17: =+H16*'Analisis Financiero'!N89 -> 175560.3245 | I17: =+I16*'Analisis Financiero'!O89 -> 169401.8189 | J17: =+SUM(E17:I17) -> 1261424.139
A20: GASTOS DE VENTAS | E20: =E15 -> 2022 | F20: =F15 -> 2023 | G20: =G15 -> 2024 | H20: =H15 -> 2025 | I20: =I15 -> 2026 | J20: Objetivo
A21: REDUCCIÓN DE GASTOS DE VENTAS | E21: 0 | F21: 0 | G21: 0 | H21: 0 | I21: 0 | J21: =+SUM(E21:I21) -> 0
A22: REDUCCIÓN GASTOS DE VENTAS $ Proyección | E22: =+E21*'Analisis Financiero'!K90 -> 0 | F22: =+F21*'Analisis Financiero'!L90 -> 0 | G22: =+G21*'Analisis Financiero'!M90 -> 0 | H22: =+H21*'Analisis Financiero'!N90 -> 0 | I22: =+I21*'Analisis Financiero'!O90 -> 0 | J22: =+SUM(E22:I22) -> 0
A25: PLAN DE REDUCCIÓN EN PESOS | E25: =E20 -> 2022 | F25: =F20 -> 2023 | G25: =G20 -> 2024 | H25: =H20 -> 2025 | I25: =I20 -> 2026
A26: COSTO DE VENTAS | E26: =+'Analisis Financiero'!K87-'Estrategias Operativas EP'!E12 -> 5.740018019e+10 | F26: =+'Analisis Financiero'!L87-'Estrategias Operativas EP'!F12 -> 6.23855765e+10 | G26: =+'Analisis Financiero'!M87-'Estrategias Operativas EP'!G12 -> 6.643971714e+10 | H26: =+'Analisis Financiero'!N87-'Estrategias Operativas EP'!H12 -> 7.069554845e+10 | I26: =+'Analisis Financiero'!O87-'Estrategias Operativas EP'!I12 -> 7.498644766e+10
A27: GASTOS OPERACIONALES DE ADMINISTRACIÓN | E27: =+'Analisis Financiero'!K89-'Estrategias Operativas EP'!E17 -> 2847893710 | F27: =+'Analisis Financiero'!L89-'Estrategias Operativas EP'!F17 -> 3098323635 | G27: =+'Analisis Financiero'!M89-'Estrategias Operativas EP'!G17 -> 3306498239 | H27: =+'Analisis Financiero'!N89-'Estrategias Operativas EP'!H17 -> 3511030929 | I27: =+'Analisis Financiero'!O89-'Estrategias Operativas EP'!I17 -> 3720431398
A28: GASTOS OPERACIONALES DE VENTAS | E28: =+'Analisis Financiero'!K90-'Estrategias Operativas EP'!E22 -> 3413593298 | F28: =+'Analisis Financiero'!L90-'Estrategias Operativas EP'!F22 -> 3713784693 | G28: =+'Analisis Financiero'!M90-'Estrategias Operativas EP'!G22 -> 3963870954 | H28: =+'Analisis Financiero'!N90-'Estrategias Operativas EP'!H22 -> 4208473503 | I28: =+'Analisis Financiero'!O90-'Estrategias Operativas EP'!I22 -> 4459450029
A31: ESTRATEGIA 2 INCREMENTO EN INGRESOS | E31: =E25 -> 2022 | F31: =F25 -> 2023 | G31: =G25 -> 2024 | H31: =H25 -> 2025 | I31: =I25 -> 2026
A32: Crecimiento Valoración Natural | E32: =+'Analisis Financiero'!K29 -> 0.1007 | F32: =+'Analisis Financiero'!L29 -> 0.08794 | G32: =+'Analisis Financiero'!M29 -> 0.06734 | H32: =+'Analisis Financiero'!N29 -> 0.061708 | I32: =+'Analisis Financiero'!O29 -> 0.059636
A33: INCREMENTO EN INGRESOS | E33: =E25 -> 2022 | F33: =F25 -> 2023 | G33: =G25 -> 2024 | H33: =H25 -> 2025 | I33: =I25 -> 2026 | J33: Objetivo
A34: CRECIMIENTO ADICIONAL DE INGRESOS | E34: 0.002 | F34: 0.002 | G34: 0.002 | H34: 0.002 | I34: 0.002 | J34: =+SUM(E34:I34) -> 0.01
A35: INCREMENTO DE CRECIMIENTO | E35: =+((1+E32)*(1+E34))-1 -> 0.1029014 | F35: =+((1+F32)*(1+F34))-1 -> 0.09011588 | G35: 0.06947468 | H35: 0.063831416 | I35: 0.061755272 | J35: =+SUM(E35:I35) -> 0.388078648
A36: INGRESOS CON TRATAMIENTO | E36: =+'Analisis Financiero'!J86*(1+'Estrategias Operativas EP'!E35) -> 6.791508687e+10 | F36: =E36*(1+'Estrategias Operativas EP'!F35) -> 7.403531468e+10 | G36: =F36*(1+'Estrategias Operativas EP'!G35) -> 7.917889448e+10 | H36: =G36*(1+'Estrategias Operativas EP'!H35) -> 8.423299543e+10 | I36: =H36*(1+'Estrategias Operativas EP'!I35) -> 8.943482698e+10
B39: Gestión Costos y Gastos
B40: Promedio 2021 | C40: Rango Objetivo | D40: Gestión
A41: Costos | B41: 0.847206243 | C41: 0.84 | D41: =+B41-C41 -> 0.007206243037 | E41: =+J11 -> 0.007206243037 | F41: =+D41-E41 -> 0
A42: Gastos | B42: 0.09238212308 | C42: 0.092 | D42: =+B42-C42 -> 0.0003821230796 | E42: =+J16+J21 -> 0.0003821230796 | F42: =+D42-E42 -> 0
A44: Aumento en ingresos 1%

Sheet Estados Finan + Estrategia EP
A1: MODELO DE VALORACIÓN DE EMPRESAS
A6: ='Cifras Historicas'!A6 -> Última actualización Mayo 2022
A9: ESTADOS FINANCIEROS PROYECTADOS ESCENARIO PESIMISTA
A11: =+'Estados Finan + Estrategia EO'!A11:P11 -> COMPAÑÍA VS LTDA
A12: ANÁLISIS FINANCIERO
A13: Pesos Colombianos
A14: a 31 de Diciembre | R14: TASAS DE DEUDA
R15: TASAS DE DEUDA | S15: =F24 -> 2017 | T15: =G24 -> 2018 | U15: 2019 | V15: 2020 | W15: 2021 | X15: 2022 | Y15: 2023 | Z15: 2024 | AA15: 2025 | AB15: 2026
R16: TASA Kd E.A. | S16: =+'Analisis Financiero'!S16 -> 0.1132 | T16: =+'Analisis Financiero'!T16 -> 0.1018 | U16: =+'Analisis Financiero'!U16 -> 0.1002 | V16: =+'Analisis Financiero'!V16 -> 0.0724 | W16: =+'Analisis Financiero'!W16 -> 0.0806 | X16: =+'Analisis Financiero'!X16 -> 0.09364 | Y16: =+'Analisis Financiero'!Y16 -> 0.089728 | Z16: =+'Analisis Financiero'!Z16 -> 0.0873136 | AA16: =+'Analisis Financiero'!AA16 -> 0.08473632 | AB16: =+'Analisis Financiero'!AB16 -> 0.087203584
A17: CIFRAS FUNDAMENTALES DE PROYECCIÓN
A19: =+A11 -> COMPAÑÍA VS LTDA
A20: CIFRAS DE PROYECCIÓN
A22: PLANES, POLITICAS Y EXPECTATIVAS
F23: CIFRAS HISTÓRICAS | K23: CIFRAS PROYECTADAS
A24: VARIABLE MACROECONÓMICA | F24: ='Analisis Financiero'!F24 -> 2017 | G24: ='Analisis Financiero'!G24 -> 2018 | H24: ='Analisis Financiero'!H24 -> 2019 | I24: ='Analisis Financiero'!I24 -> 2020 | J24: ='Analisis Financiero'!J24 -> 2021 | K24: ='Analisis Financiero'!K24 -> 2022 | L24: ='Analisis Financiero'!L24 -> 2023 | M24: ='Analisis Financiero'!M24 -> 2024 | N24: ='Analisis Financiero'!N24 -> 2025 | O24: ='Analisis Financiero'!O24 -> 2026
A25: Inflación en Colombia | F25: ='Analisis Financiero'!F25 -> 0.014 | G25: ='Analisis Financiero'!G25 -> 0.026 | H25: ='Analisis Financiero'!H25 -> 0.032 | I25: ='Analisis Financiero'!I25 -> -0.07 | J25: ='Analisis Financiero'!J25 -> 0.106 | K25: Tasas proyectadas con Tratamiento
A26: PIB | F26: ='Analisis Financiero'!F26 -> 0.0409 | G26: ='Analisis Financiero'!G26 -> 0.0318 | H26: ='Analisis Financiero'!H26 -> 0.038 | I26: ='Analisis Financiero'!I26 -> 0.0161 | J26: ='Analisis Financiero'!J26 -> 0.0562
A27: Crecimiento Historico | G27: ='Analisis Financiero'!G27 -> 0.059 | H27: ='Analisis Financiero'!H27 -> 0.06 | I27: ='Analisis Financiero'!I27 -> 0.06 | J27: ='Analisis Financiero'!J27 -> 0.035
A28: Crecimiento Real Empresa -Incremento del SMMLV | G28: ='Analisis Financiero'!G28 -> 0.059 | H28: ='Analisis Financiero'!H28 -> 0.06 | I28: ='Analisis Financiero'!I28 -> 0.06 | J28: ='Analisis Financiero'!J28 -> 0.035
A29: Tasa de Crecimiento | G29: =G28 -> 0.059 | H29: 0.06 | I29: 0.06 | J29: 0.035 | K29: =+'Estrategias Operativas EP'!E35 -> 0.1029014 | L29: =+'Estrategias Operativas EP'!F35 -> 0.09011588 | M29: =+'Estrategias Operativas EP'!G35 -> 0.06947468 | N29: =+'Estrategias Operativas EP'!H35 -> 0.063831416 | O29: =+'Estrategias Operativas EP'!I35 -> 0.061755272
G30: Crecimiento Historico | K30: Crecimiento Proyectado Con Estrategia
A33: ESTADOS FINANCIEROS PROYECTADOS
A35: =+A19 -> COMPAÑÍA VS LTDA
A36: PROYECCIÓN DE ESTADOS FINANCIERO
A38: ACTIVO | F38: =F24 -> 2017 | G38: 2018 | H38: 2019 | I38: 2020 | J38: 2021 | K38: 2022 | L38: 2023 | M38: 2024 | N38: 2025 | O38: 2026
A39: Activo Corriente
A40: Efectivo y equivalentes de efectivo | F40: ='Cifras Historicas'!F17 -> 4355275642 | G40: ='Cifras Historicas'!G17 -> 5822986465 | H40: ='Cifras Historicas'!H17 -> 546039649 | I40: ='Cifras Historicas'!I17 -> 1167076873 | J40: ='Cifras Historicas'!J17 -> 220921225 | K40: =J40*(1+K$29) -> 243654328.3 | L40: 265611452.6 | M40: 284064723.2 | N40: 302196976.7 | O40: 320859233.2
A41: Activos financieros | F41: ='Cifras Historicas'!F18 -> 0 | G41: ='Cifras Historicas'!G18 -> 0 | H41: ='Cifras Historicas'!H18 -> 0 | I41: ='Cifras Historicas'!I18 -> 0 | J41: ='Cifras Historicas'!J18 -> 0 | K41: 0 | L41: 0 | M41: 0 | N41: 0 | O41: 0
A42: Deudores comerciales y otros | F42: ='Cifras Historicas'!F19 -> 5725064714 | G42: ='Cifras Historicas'!G19 -> 7731045570 | H42: ='Cifras Historicas'!H19 -> 10234154333 | I42: ='Cifras Historicas'!I19 -> 15486728698 | J42: ='Cifras Historicas'!J19 -> 12452754179 | K42: 1.373416002e+10 | L42: 1.497182593e+10 | M42: 1.601198875e+10 | N42: 1.703405666e+10 | O42: 1.808599947e+10
A43: Inventarios | F43: ='Cifras Historicas'!F20 -> 0 | G43: ='Cifras Historicas'!G20 -> 0 | H43: ='Cifras Historicas'!H20 -> 164290700 | I43: ='Cifras Historicas'!I20 -> 0 | J43: ='Cifras Historicas'!J20 -> 0 | K43: 0 | L43: 0 | M43: 0 | N43: 0 | O43: 0
A44: Pagos anticipados y otras cuentas por cobrar | F44: ='Cifras Historicas'!F21 -> 926175054 | G44: ='Cifras Historicas'!G21 -> 656692693 | H44: ='Cifras Historicas'!H21 -> 11576196451 | I44: ='Cifras Historicas'!I21 -> 8669863369 | J44: ='Cifras Historicas'!J21 -> 9394045296 | K44: 1.036070571e+10 | L44: 1.129436982e+10 | M44: 1.207904255e+10 | N44: 1.285006494e+10 | O44: 1.36436242e+10
A45: TOTAL ACTIVO CORRIENTE | F45: ='Cifras Historicas'!F22 -> 11006515410 | G45: ='Cifras Historicas'!G22 -> 14210724728 | H45: ='Cifras Historicas'!H22 -> 22520681133 | I45: ='Cifras Historicas'!I22 -> 25323668940 | J45: ='Cifras Historicas'!J22 -> 22067720700 | K45: =SUM(K40:K44) -> 2.433852005e+10 | L45: 2.653180721e+10 | M45: 2.837509602e+10 | N45: 3.018631858e+10 | O45: 3.20504829e+10
A46: Activo No Corriente
A47: Activos financieros | F47: ='Cifras Historicas'!F24 -> 0 | G47: ='Cifras Historicas'!G24 -> 0 | H47: ='Cifras Historicas'!H24 -> 0 | I47: ='Cifras Historicas'!I24 -> 0 | J47: ='Cifras Historicas'!J24 -> 0 | K47: =J47*(1+K$29) -> 0 | L47: 0 | M47: 0 | N47: 0 | O47: 0
A48: Deudores | F48: ='Cifras Historicas'!F25 -> 0 | G48: ='Cifras Historicas'!G25 -> 0 | H48: ='Cifras Historicas'!H25 -> 0 | I48: ='Cifras Historicas'!I25 -> 0 | J48: ='Cifras Historicas'!J25 -> 0 | K48: 0 | L48: 0 | M48: 0 | N48: 0 | O48: 0
A49: Propiedades, planta y equipo | F49: ='Cifras Historicas'!F26 -> 11910370479 | G49: ='Cifras Historicas'!G26 -> 9288165263 | H49: ='Cifras Historicas'!H26 -> 9594493348 | I49: ='Cifras Historicas'!I26 -> 9719576747 | J49: ='Cifras Historicas'!J26 -> 10551295268 | K49: =+'Analisis Financiero'!K49 -> 1.16138107e+10 | L49: =+'Analisis Financiero'!L49 -> 1.263512921e+10 | M49: =+'Analisis Financiero'!M49 -> 1.348597882e+10 | N49: =+'Analisis Financiero'!N49 -> 1.43181716e+10 | O49: =+'Analisis Financiero'!O49 -> 1.517205008e+10
A50: Inventarios | F50: ='Cifras Historicas'!F27 -> 0 | G50: ='Cifras Historicas'!G27 -> 0 | H50: ='Cifras Historicas'!H27 -> 0 | I50: ='Cifras Historicas'!I27 -> 0 | J50: ='Cifras Historicas'!J27 -> 145047130 | K50: 159972682.7 | L50: 174388761.8 | M50: 186504365.2 | N50: 198409203 | O50: 210662017.3
A51: Pagos anticipados y otras cuentas por cobrar | F51: ='Cifras Historicas'!F28 -> 0 | G51: ='Cifras Historicas'!G28 -> 0 | H51: ='Cifras Historicas'!H28 -> 0 | I51: ='Cifras Historicas'!I28 -> 0 | J51: ='Cifras Historicas'!J28 -> 109156636 | K51: 120389006.7 | L51: 131237967.9 | M51: 140355683.8 | N51: 149314785.8 | O51: 158535761
A52: TOTAL ACTIVO NO CORRIENTE | F52: ='Cifras Historicas'!F29 -> 11910370479 | G52: ='Cifras Historicas'!G29 -> 9288165263 | H52: ='Cifras Historicas'!H29 -> 9594493348 | I52: ='Cifras Historicas'!I29 -> 9719576747 | J52: ='Cifras Historicas'!J29 -> 10805499034 | K52: =SUM(K47:K51) -> 1.189417239e+10 | L52: 1.294075594e+10 | M52: 1.381283886e+10 | N52: 1.466589559e+10 | O52: 1.554124786e+10
A54: TOTAL ACTIVO | F54: =F45+F52 -> 22916885889 | G54: 23498889991 | H54: 32115174481 | I54: 35043245687 | J54: 32873219734 | K54: 3.623269245e+10 | L54: 3.947256315e+10 | M54: 4.218793489e+10 | N54: 4.485221417e+10 | O54: 4.759173075e+10
A56: Pasivo Corriente
A57: Obligaciones financieras | F57: ='Cifras Historicas'!F34 -> 408734110 | G57: ='Cifras Historicas'!G34 -> 526145096 | H57: ='Cifras Historicas'!H34 -> 208868995 | I57: ='Cifras Historicas'!I34 -> 96658002 | J57: ='Cifras Historicas'!J34 -> 365420012 | K57: =+AVERAGE(G57:J57) -> 299273026.2 | L57: =+AVERAGE(H57:K57) -> 242555008.8 | M57: =+AVERAGE(I57:L57) -> 250976512.3 | N57: =+AVERAGE(J57:M57) -> 289556139.8 | O57: =+AVERAGE(K57:N57) -> 270590171.8
A58: Proveedores | F58: ='Cifras Historicas'!F35 -> 580386860 | G58: ='Cifras Historicas'!G35 -> 83953100 | H58: ='Cifras Historicas'!H35 -> 366465683 | I58: ='Cifras Historicas'!I35 -> 671557747 | J58: ='Cifras Historicas'!J35 -> 0 | K58: =J58*(1+K$29) -> 0 | L58: 0 | M58: 0 | N58: 0 | O58: 0
A59: Cuentas por pagar Varios | F59: ='Cifras Historicas'!F36 -> 22912438 | G59: ='Cifras Historicas'!G36 -> 28112354 | H59: ='Cifras Historicas'!H36 -> 1347336496 | I59: ='Cifras Historicas'!I36 -> 1216784731 | J59: ='Cifras Historicas'!J36 -> 1183288600 | K59: 1305050654 | L59: 1422656442 | M59: 1521495043 | N59: 1618614226 | O59: 1718572187
A60: Impuestos corrientes por pagar | F60: ='Cifras Historicas'!F37 -> 629839083 | G60: ='Cifras Historicas'!G37 -> 936020423 | H60: ='Cifras Historicas'!H37 -> 1955820787 | I60: ='Cifras Historicas'!I37 -> 3034237509 | J60: ='Cifras Historicas'!J37 -> 1988914847 | K60: 2193576969 | L60: 2391253088 | M60: 2557384631 | N60: 2720626114 | O60: 2888639119
A61: Otros pasivos | F61: ='Cifras Historicas'!F38 -> 303559341 | G61: ='Cifras Historicas'!G38 -> 671139768 | H61: ='Cifras Historicas'!H38 -> 1103128844 | I61: ='Cifras Historicas'!I38 -> 206618542 | J61: ='Cifras Historicas'!J38 -> 693847185 | K61: 765245031.7 | L61: 834205761.2 | M61: 892161939.5 | N61: 949109899.4 | O61: 1007722439
A62: TOTAL PASIVO CORRIENTE | F62: ='Cifras Historicas'!F39 -> 1945431832 | G62: ='Cifras Historicas'!G39 -> 2245370741 | H62: ='Cifras Historicas'!H39 -> 4981620805 | I62: ='Cifras Historicas'!I39 -> 5225856531 | J62: ='Cifras Historicas'!J39 -> 4231470644 | K62: =SUM(K57:K61) -> 4563145681 | L62: 4890670300 | M62: 5222018126 | N62: 5577906378 | O62: 5885523918
A63: Pasivo No Corriente
A64: Obligaciones financieras | F64: ='Cifras Historicas'!F41 -> 2750785706 | G64: ='Cifras Historicas'!G41 -> 2500000000 | H64: ='Cifras Historicas'!H41 -> 2855673315 | I64: ='Cifras Historicas'!I41 -> 4029229857 | J64: ='Cifras Historicas'!J41 -> 3155897854 | K64: =+AVERAGE(G64:J64) -> 3135200256 | L64: =+AVERAGE(H64:K64) -> 3294000321 | M64: =+AVERAGE(I64:L64) -> 3403582072 | N64: =+AVERAGE(J64:M64) -> 3247170126 | O64: =+AVERAGE(K64:N64) -> 3269988194
A65: Cuentas por pagar Varios | F65: ='Cifras Historicas'!F42 -> 1446246300 | G65: ='Cifras Historicas'!G42 -> 0 | H65: ='Cifras Historicas'!H42 -> 1540582555 | I65: ='Cifras Historicas'!I42 -> 789272626 | J65: ='Cifras Historicas'!J42 -> 797056878 | K65: =J65*(1+K$29) -> 879075146.6 | L65: 958293777.1 | M65: 1024870931 | N65: 1090289893 | O65: 1157621042
A66: Otros pasivos | F66: ='Cifras Historicas'!F43 -> 2935347237 | G66: ='Cifras Historicas'!G43 -> 5600000000 | H66: ='Cifras Historicas'!H43 -> 6495683128 | I66: ='Cifras Historicas'!I43 -> 4116193896 | J66: ='Cifras Historicas'!J43 -> 3465640363 | K66: 3822259608 | L66: 4166705896 | M66: 4456186455 | N66: 4740631147 | O66: 5033390113
A67: TOTAL PASIVO NO CORRIENTE | F67: ='Cifras Historicas'!F44 -> 7132379243 | G67: ='Cifras Historicas'!G44 -> 8100000000 | H67: ='Cifras Historicas'!H44 -> 10891938998 | I67: ='Cifras Historicas'!I44 -> 8934696379 | J67: ='Cifras Historicas'!J44 -> 7418595095 | K67: =SUM(K64:K66) -> 7836535011 | L67: 8418999994 | M67: 8884639458 | N67: 9078091166 | O67: 9460999348
A69: TOTAL PASIVO | F69: =F62+F67 -> 9077811075 | G69: 10345370741 | H69: 15873559803 | I69: 14160552910 | J69: 11650065739 | K69: 1.239968069e+10 | L69: 1.330967029e+10 | M69: 1.410665758e+10 | N69: 1.465599754e+10 | O69: 1.534652327e+10
A71: Patrimonio
A72: Capital suscrito y pagado | F72: ='Cifras Historicas'!F49 -> 4000000000 | G72: ='Cifras Historicas'!G49 -> 4000000000 | H72: ='Cifras Historicas'!H49 -> 4000000000 | I72: ='Cifras Historicas'!I49 -> 4000000000 | J72: ='Cifras Historicas'!J49 -> 4000000000 | K72: =J72 -> 4000000000 | L72: =K72 -> 4000000000 | M72: 4000000000 | N72: 4000000000 | O72: 4000000000
A73: Reservas | F73: ='Cifras Historicas'!F50 -> 1110584793 | G73: ='Cifras Historicas'!G50 -> 1510584793 | H73: ='Cifras Historicas'!H50 -> 1510584793 | I73: ='Cifras Historicas'!I50 -> 1510584793 | J73: ='Cifras Historicas'!J50 -> 2400000000 | K73: =+'Analisis Financiero'!K73 -> 2400000000 | L73: =+'Analisis Financiero'!L73 -> 2400000000 | M73: =+'Analisis Financiero'!M73 -> 2400000000 | N73: =+'Analisis Financiero'!N73 -> 2400000000 | O73: =+'Analisis Financiero'!O73 -> 2400000000
A74: Resultados de Ejercicios Anteriores | F74: ='Cifras Historicas'!F51 -> 3976114511 | G74: ='Cifras Historicas'!G51 -> 4292094996 | H74: ='Cifras Historicas'!H51 -> 5937865590 | I74: ='Cifras Historicas'!I51 -> 9530144694 | K74: =+K54-K69-K72-K73-K75-K76 -> 1.335325433e+10 | L74: =+L54-L69-L72-L73-L75-L76 -> 1.52227938e+10 | M74: 1.661410193e+10 | N74: 1.848219783e+10 | O74: 2.01859143e+10
A75: Resultados del Ejercicio | F75: ='Cifras Historicas'!F52 -> 1753585876 | G75: ='Cifras Historicas'!G52 -> 2721325951 | H75: ='Cifras Historicas'!H52 -> 3592279105 | I75: ='Cifras Historicas'!I52 -> 4641078100 | J75: ='Cifras Historicas'!J52 -> 2800458949 | K75: =K99 -> 2878872229 | L75: 3339213863 | M75: 3866290184 | N75: 4113133601 | O75: 4458407995
A76: Ganancias Acumuladas adopción Pymes | F76: ='Cifras Historicas'!F53 -> 2998789634 | G76: ='Cifras Historicas'!G53 -> 629513510 | H76: ='Cifras Historicas'!H53 -> 1200885190 | I76: ='Cifras Historicas'!I53 -> 1200885190 | J76: ='Cifras Historicas'!J53 -> 1200885190 | K76: =+'Analisis Financiero'!K76 -> 1200885190 | L76: =+'Analisis Financiero'!L76 -> 1200885190 | M76: =+'Analisis Financiero'!M76 -> 1200885190 | N76: =+'Analisis Financiero'!N76 -> 1200885190 | O76: =+'Analisis Financiero'!O76 -> 1200885190
A77: 0 TOTAL PATRIMONIO | F77: ='Cifras Historicas'!F54 -> 13839074814 | G77: ='Cifras Historicas'!G54 -> 13153519250 | H77: ='Cifras Historicas'!H54 -> 16241614678 | I77: ='Cifras Historicas'!I54 -> 20882692777 | J77: ='Cifras Historicas'!J54 -> 21223153995 | K77: =SUM(K72:K76) -> 2.383301175e+10 | L77: =SUM(L72:L76) -> 2.616289286e+10 | M77: 2.80812773e+10 | N77: 3.019621662e+10 | O77: 3.224520749e+10
A79: 0 TOTAL PASIVO Y PATRIMONIO | F79: =F69+F77 -> 22916885889 | G79: 23498889991 | H79: 32115174481 | I79: 35043245687 | J79: 32873219734 | K79: 3.623269245e+10 | L79: 3.947256315e+10 | M79: 4.218793489e+10 | N79: 4.485221417e+10 | O79: 4.759173075e+10
A81: CONTROL (Pasivo y Patrimonio - Activo) | F81: =F54-F79 -> 0 | G81: 0 | H81: 0 | I81: 0 | J81: 0 | K81: 0 | L81: 0 | M81: 0 | N81: 0 | O81: 0
A84: CUENTAS DE RESULTADO | F84: ='Cifras Historicas'!F64 -> 2017 | G84: ='Cifras Historicas'!G64 -> 2018 | H84: ='Cifras Historicas'!H64 -> 2019 | I84: ='Cifras Historicas'!I64 -> 2020 | J84: ='Cifras Historicas'!J64 -> 2021 | K84: =K38 -> 2022 | L84: =L38 -> 2023 | M84: =M38 -> 2024 | N84: =N38 -> 2025 | O84: =O38 -> 2026
A85: Operacional
A86: Ventas, Ingresos de actividades ordinarias | F86: =+'Analisis Financiero'!F86 -> 56268982215 | G86: =+'Analisis Financiero'!G86 -> 80131113112 | H86: =+'Analisis Financiero'!H86 -> 92026384100 | I86: =+'Analisis Financiero'!I86 -> 90604040420 | J86: =+'Analisis Financiero'!J86 -> 61578566195 | K86: ='Estrategias Operativas EP'!E36 -> 6.791508687e+10 | L86: ='Estrategias Operativas EP'!F36 -> 7.403531468e+10 | M86: ='Estrategias Operativas EP'!G36 -> 7.917889448e+10 | N86: ='Estrategias Operativas EP'!H36 -> 8.423299543e+10 | O86: ='Estrategias Operativas EP'!I36 -> 8.943482698e+10
A87: Costo de Ventas | F87: =+'Analisis Financiero'!F87 -> 46042758141 | G87: =+'Analisis Financiero'!G87 -> 67750145748 | H87: =+'Analisis Financiero'!H87 -> 76372779650 | I87: =+'Analisis Financiero'!I87 -> 77804621136 | J87: =+'Analisis Financiero'!J87 -> 54413593743 | K87: ='Estrategias Operativas EP'!E26 -> 5.740018019e+10 | L87: ='Estrategias Operativas EP'!F26 -> 6.23855765e+10 | M87: ='Estrategias Operativas EP'!G26 -> 6.643971714e+10 | N87: ='Estrategias Operativas EP'!H26 -> 7.069554845e+10 | O87: ='Estrategias Operativas EP'!I26 -> 7.498644766e+10
A88: UTILIDAD BRUTA | F88: =F86-F87 -> 10226224074 | G88: 12380967364 | H88: 15653604450 | I88: 12799419284 | J88: 7164972452 | K88: 1.051490667e+10 | L88: 1.164973818e+10 | M88: 1.273917734e+10 | N88: 1.353744698e+10 | O88: 1.444837931e+10
A89: Gastos de administración | F89: =+'Analisis Financiero'!F89 -> 0 | G89: =+'Analisis Financiero'!G89 -> 0 | H89: =+'Analisis Financiero'!H89 -> 8851263892 | I89: =+'Analisis Financiero'!I89 -> 5383826386 | J89: =+'Analisis Financiero'!J89 -> 3355500547 | K89: ='Estrategias Operativas EP'!E27 -> 2847893710 | L89: ='Estrategias Operativas EP'!F27 -> 3098323635 | M89: ='Estrategias Operativas EP'!G27 -> 3306498239 | N89: ='Estrategias Operativas EP'!H27 -> 3511030929 | O89: ='Estrategias Operativas EP'!I27 -> 3720431398
A90: Gastos de ventas y distribución | F90: =+'Analisis Financiero'!F90 -> 7098905205 | G90: =+'Analisis Financiero'!G90 -> 7489704766 | H90: =+'Analisis Financiero'!H90 -> 313612789 | I90: =+'Analisis Financiero'!I90 -> 1064657231 | J90: =+'Analisis Financiero'!J90 -> 1048629364 | K90: ='Estrategias Operativas EP'!E28 -> 3413593298 | L90: ='Estrategias Operativas EP'!F28 -> 3713784693 | M90: ='Estrategias Operativas EP'!G28 -> 3963870954 | N90: ='Estrategias Operativas EP'!H28 -> 4208473503 | O90: ='Estrategias Operativas EP'!I28 -> 4459450029
A91: UTILIDAD OPERACIONAL | F91: =F88-F89-F90 -> 3127318869 | G91: 4891262598 | H91: 6488727769 | I91: 6350935667 | J91: 2760842541 | K91: 4253419667 | L91: 4837629853 | M91: 5468808145 | N91: 5817942552 | O91: 6268497886
A92: No Operacional
A93: Otros ingresos | F93: =+'Analisis Financiero'!F93 -> 244288944 | G93: =+'Analisis Financiero'!G93 -> 192784316 | H93: =+'Analisis Financiero'!H93 -> 82383557 | I93: =+'Analisis Financiero'!I93 -> 1658821003 | J93: =+'Analisis Financiero'!J93 -> 2779929418 | K93: =K86*'Cifras Historicas'!$P$73 -> 965690401.6 | L93: =L86*'Cifras Historicas'!$P$73 -> 1052714442 | M93: =M86*'Cifras Historicas'!$P$73 -> 1125851441 | N93: =N86*'Cifras Historicas'!$P$73 -> 1197716133 | O93: =O86*'Cifras Historicas'!$P$73 -> 1271681418
A94: Gasto no operacional | F94: =+'Analisis Financiero'!F94 -> 0 | G94: =+'Analisis Financiero'!G94 -> 0 | H94: =+'Analisis Financiero'!H94 -> 962059833 | I94: =+'Analisis Financiero'!I94 -> 259504531 | J94: =+'Analisis Financiero'!J94 -> 92569034 | K94: =K86*'Cifras Historicas'!$P$74 -> 201322075.1 | L94: =L86*'Cifras Historicas'!$P$74 -> 219464391 | M94: =M86*'Cifras Historicas'!$P$74 -> 234711609.4 | N94: =N86*'Cifras Historicas'!$P$74 -> 249693583.8 | O94: =O86*'Cifras Historicas'!$P$74 -> 265113478.9
A95: Gasto Financiero | F95: =+'Analisis Financiero'!F95 -> 528963937 | G95: =+'Analisis Financiero'!G95 -> 818412963 | H95: =+'Analisis Financiero'!H95 -> 457359388 | I95: =+'Analisis Financiero'!I95 -> 681428611 | J95: =+'Analisis Financiero'!J95 -> 631413481 | K95: =K86*'Cifras Historicas'!$P$75 -> 575358480.8 | L95: =L86*'Cifras Historicas'!$P$75 -> 627207416.6 | M95: =M86*'Cifras Historicas'!$P$75 -> 670782451.1 | N95: =N86*'Cifras Historicas'!$P$75 -> 713599444.8 | O95: =O86*'Cifras Historicas'!$P$75 -> 757667972.6
A96: Resultados Netos
A97: UTILIDAD ANTES DE IMPUESTOS | F97: =F91+F93-F94-F95 -> 2842643876 | G97: 4265633951 | H97: 5151692105 | I97: 7068823528 | J97: 4816789444 | K97: 4442429513 | L97: 5043672487 | M97: 5689165526 | N97: 6052365656 | O97: 6517397853
A98: Gasto por impuesto | F98: =+'Analisis Financiero'!F98 -> 1089058000 | G98: =+'Analisis Financiero'!G98 -> 1544308000 | H98: =+'Analisis Financiero'!H98 -> 1559413000 | I98: =+'Analisis Financiero'!I98 -> 2427745428 | J98: =+'Analisis Financiero'!J98 -> 2016330495 | K98: =K86*'Cifras Historicas'!$P$78 -> 1563557283 | L98: =L86*'Cifras Historicas'!$P$78 -> 1704458624 | M98: =M86*'Cifras Historicas'!$P$78 -> 1822875341 | N98: =N86*'Cifras Historicas'!$P$78 -> 1939232055 | O98: =O86*'Cifras Historicas'!$P$78 -> 2058989858
A99: UTILIDAD NETA | F99: =F97-F98 -> 1753585876 | G99: 2721325951 | H99: 3592279105 | I99: 4641078100 | J99: 2800458949 | K99: 2878872229 | L99: 3339213863 | M99: 3866290184 | N99: 4113133601 | O99: 4458407995
A103: Detalles de Depreciación y Amortización | F103: =F84 -> 2017 | G103: 2018 | H103: 2019 | I103: 2020 | J103: 2021 | K103: 2022 | L103: 2023 | M103: 2024 | N103: 2025 | O103: 2026
A104: Depreciaciones | F104: =+'Analisis Financiero'!F104 -> 589601720 | G104: =+'Analisis Financiero'!G104 -> 827825000 | H104: =+'Analisis Financiero'!H104 -> 527765968 | I104: =+'Analisis Financiero'!I104 -> 546876124 | J104: =+'Analisis Financiero'!J104 -> 136883865 | K104: =+AVERAGE(I104:J104) -> 341879994.5 | L104: =+AVERAGE(J104:K104) -> 239381929.8 | M104: =+AVERAGE(K104:L104) -> 290630962.1 | N104: =+AVERAGE(L104:M104) -> 265006445.9 | O104: =+AVERAGE(M104:N104) -> 277818704
A105: Amortizaciones | F105: =+'Analisis Financiero'!F105 -> 0 | G105: =+'Analisis Financiero'!G105 -> 739260000 | H105: =+'Analisis Financiero'!H105 -> 0 | I105: =+'Analisis Financiero'!I105 -> 0 | J105: =+'Analisis Financiero'!J105 -> 0 | K105: =+'Analisis Financiero'!K105 -> 0 | L105: =+'Analisis Financiero'!L105 -> 0 | M105: =+'Analisis Financiero'!M105 -> 0 | N105: =+'Analisis Financiero'!N105 -> 0 | O105: =+'Analisis Financiero'!O105 -> 0
A109: INDUCTORES DE VALOR Y RAZONES FINANCIERAS
A111: =+A11 -> COMPAÑÍA VS LTDA
A112: PROYECCIÓN DE INDUCTORES DE VALOR
A115: Inductores de Rentabilidad | F115: =F103 -> 2017 | G115: 2018 | H115: 2019 | I115: 2020 | J115: 2021 | K115: 2022 | L115: 2023 | M115: 2024 | N115: 2025 | O115: 2026
A116: ROA | F116: =F99/F54 -> 0.07651937896 | G116: =G99/G54 -> 0.1158065744 | H116: 0.1118561292 | I116: 0.1324385915 | J116: 0.08518967633 | K116: 0.07945510077 | L116: 0.08459582041 | M116: 0.09164445225 | N116: 0.09170413719 | O116: 0.09368030799
A117: UODI | F117: =F91*(1-(F98/F97)) -> 1929197760 | G117: 3120455246 | H117: 4524595164 | I117: 4169744558 | J117: 1605140995 | K117: 2756386280 | L117: 3202801275 | M117: 3716537892 | N117: 3953821755 | O117: 4288141022
A118: Activos Netos de Operación | F118: =F45+F49-F58 -> 22336499029 | G118: 23414936891 | H118: 31748708798 | I118: 34371687940 | J118: 32619015968 | K118: 3.595233076e+10 | L118: 3.916693642e+10 | M118: 4.186107484e+10 | N118: 4.450449018e+10 | O118: 4.722253297e+10
A119: RAN | F119: =F117/F118 -> 0.08636974656 | G119: =G117/G118 -> 0.1332677197 | H119: 0.14251273 | I119: 0.1213133485 | J119: 0.04920874978 | K119: 0.0766678049 | L119: 0.08177308636 | M119: 0.08878266759 | N119: 0.08884096277 | O119: 0.09080709466
A120: Distancia Rentabilidad | F120: =F119-F116 -> 0.009850367595 | G120: =G119-G116 -> 0.01746114534 | H120: 0.03065660079 | I120: -0.01112524297 | J120: -0.03598092654 | K120: -0.00278729587 | L120: -0.002822734046 | M120: -0.002861784661 | N120: -0.002863174419 | O120: -0.002873213325
A122: Inductores de Operativos y Financieros | F122: =F115 -> 2017 | G122: 2018 | H122: 2019 | I122: 2020 | J122: 2021 | K122: 2022 | L122: 2023 | M122: 2024 | N122: 2025 | O122: 2026
A123: EBITDA Modelo General | F123: =F99+F98+F95+F104+F105 -> 3961209533 | G123: =G99+G98+G95+G104+G105 -> 6651131914 | H123: 6136817461 | I123: 8297128263 | J123: 5585086790 | K123: 5359667988 | L123: 5910261833 | M123: 6650578939 | N123: 7030971547 | O123: 7552884530
A124: EBITDA Operacional | F124: =F91+F104+F105 -> 3716920589 | G124: =G91+G104+G105 -> 6458347598 | H124: 7016493737 | I124: 6897811791 | J124: 2897726406 | K124: 4595299661 | L124: 5077011782 | M124: 5759439107 | N124: 6082948998 | O124: 6546316590
A125: Margen EBITDA Modelo General | F125: =F123/F86 -> 0.07039774627 | G125: =G123/G86 -> 0.08300311397 | H125: 0.06668541333 | I125: 0.09157569822 | J125: 0.09069855203 | K125: 0.07891719256 | L125: 0.0798303061 | M125: 0.08399433943 | N125: 0.08347051546 | O125: 0.08445126787
A126: Margen EBITDA Operacional | F126: =F124/F86 -> 0.06605629679 | G126: =G124/G86 -> 0.08059725302 | H126: 0.07624437063 | I126: 0.07613139281 | J126: 0.04705738677 | K126: 0.06766242779 | L126: 0.06857554133 | M126: 0.07273957467 | N126: 0.07221575069 | O126: 0.0731965031
A127: KTNO | F127: =F42+F43-F58-F59 -> 5121765416 | G127: =G42+G43-G58-G59 -> 7618980116 | H127: 8684642854 | I127: 13598386220 | J127: 11269465579 | K127: 1.242910936e+10 | L127: 1.354916949e+10 | M127: 1.449049371e+10 | N127: 1.541544244e+10 | O127: 1.636742728e+10
A128: Variación de KTNO | G128: =G127-F127 -> 2497214700 | H128: 1065662738 | I128: 4913743366 | J128: -2328920641 | K128: 1159643785 | L128: 1120060128 | M128: 941324214.7 | N128: 924948731.9 | O128: 951984840.8
A129: Productividad del Capital de trabajo PKT | F129: =F127/F86 -> 0.09102289067 | G129: =G127/G86 -> 0.09508142119 | H129: 0.09437122776 | I129: 0.1500858699 | J129: 0.1830095482 | K129: 0.1830095482 | L129: 0.1830095482 | M129: 0.1830095482 | N129: 0.1830095482 | O129: 0.1830095482
A130: Rotación del Activo Fijo | F130: =F86/F49 -> 4.72436876 | G130: 8.62722732 | H130: 9.591583501 | I130: 9.321809249 | J130: 5.836114395 | K130: 5.847786623 | L130: 5.859482197 | M130: 5.871201161 | N130: 5.882943563 | O130: 5.89470945
A131: Palanca de Crecimiento PDC | F131: =F126/F129 -> 0.7257108218 | G131: =G126/G129 -> 0.8476656324 | H131: 0.8079196641 | I131: 0.5072522342 | J131: 0.2571307739 | K131: 0.369720752 | L131: 0.3747101832 | M131: 0.3974632765 | N131: 0.3946009998 | O131: 0.3999600229
A135: Razones financieras
A137: ANALISIS DE RAZONES FINANCIERAS
A138: R/I | F138: =+F122 -> 2017 | G138: =+G122 -> 2018 | H138: 2019 | I138: 2020 | J138: 2021 | K138: 2022 | L138: 2023 | M138: 2024 | N138: 2025 | O138: 2026
A140: Margen Bruto | F140: =+F88/F86 -> 0.1817382094 | G140: =+G88/G86 -> 0.1545088653 | H140: 0.1700990928 | I140: 0.1412676435 | J140: 0.1163549737 | K140: 0.1548243131 | L140: 0.1573538011 | M140: 0.1608910736 | N140: 0.160714301 | O140: 0.1615520463 | P140: Utilidad Bruta / Ventas
A141: Margen Operacional | F141: =+F91/F86 -> 0.05557802444 | G141: =+G91/G86 -> 0.06104074195 | H141: 0.07050942871 | I141: 0.07009550167 | J141: 0.04483447264 | K141: 0.06262849483 | L141: 0.06534219343 | M141: 0.06906901367 | N141: 0.06906963859 | O141: 0.07009012147 | P141: Utilidad Operacional / Ventas
A142: Margen Neto | F142: =+F99/F86 -> 0.03116434325 | G142: =+G99/G86 -> 0.03396091537 | H142: 0.03903531732 | I142: 0.05122374321 | J142: 0.04547782 | K142: 0.04238928878 | L142: 0.04510298737 | M142: 0.04882980761 | N142: 0.04883043254 | O142: 0.04985091541 | P142: Utilidad Neta / Ventas
A143: ROE | F143: =+F99/F77 -> 0.1267126524 | G143: =+G99/G77 -> 0.2068895707 | H143: 0.2211774615 | I143: 0.2222451936 | J143: 0.1319530052 | K143: 0.1207934716 | L143: 0.127631676 | M143: 0.137682134 | N143: 0.1362135413 | O143: 0.1382657561 | P143: Utilidad Neta / Patrimonio
A146: ANALISIS DE RAZONES FINANCIERAS
A147: Liquidez | F147: =F138 -> 2017 | G147: =G138 -> 2018 | H147: 2019 | I147: 2020 | J147: 2021 | K147: 2022 | L147: 2023 | M147: 2024 | N147: 2025 | O147: 2026
A148: Capital de Trabajo | F148: =+(F45-F62) -> 9061083578 | G148: =+(G45-G62) -> 11965353987 | H148: 17539060328 | I148: 20097812409 | J148: 17836250056 | K148: 1.977537437e+10 | L148: 2.164113691e+10 | M148: 2.31530779e+10 | N148: 2.46084122e+10 | O148: 2.616495898e+10 | P148: Activo Corriente - Pasivo Corriente
A149: Razon Corriente | F149: =+(F45/F62) -> 5.657620704 | G149: =+(G45/G62) -> 6.32889904 | H149: 4.52075379 | I149: 4.845840828 | J149: 5.2151421 | K149: 5.333715327 | L149: 5.424983812 | M149: 5.433741389 | N149: 5.411765012 | O149: 5.445646529 | P149: Activo Corriente / Pasivo Corriente
A150: Prueba Acida | F150: =+(F45-F43)/F62 -> 5.657620704 | G150: =+(G45-G43)/G62 -> 6.32889904 | H150: 4.487774423 | I150: 4.845840828 | J150: 5.2151421 | K150: 5.333715327 | L150: 5.424983812 | M150: 5.433741389 | N150: 5.411765012 | O150: 5.445646529 | P150: (Activo Corriente - Inventarios) / Pasivo Corriente
A153: ANALISIS DE RAZONES FINANCIERAS
A154: Endeudamiento | F154: =F147 -> 2017 | G154: =G147 -> 2018 | H154: 2019 | I154: 2020 | J154: 2021 | K154: 2022 | L154: 2023 | M154: 2024 | N154: 2025 | O154: 2026
A155: Nivel de Endeudamiento | F155: =+F69/F54 -> 0.3961188758 | G155: =+G69/G54 -> 0.4402493371 | H155: 0.4942697668 | I155: 0.4040879386 | J155: 0.3543938146 | K155: 0.3422235516 | L155: 0.3371878903 | M155: 0.3343765847 | N155: 0.326761963 | O155: 0.3224619703 | P155: Total Pasivo / Total Activo
A156: Concentracion de Endeudamiento a Corto Plazo | F156: =+F62/F69 -> 0.2143062701 | G156: =+G62/G69 -> 0.2170411092 | H156: 0.3138313565 | I156: 0.3690432545 | J156: 0.3632143147 | K156: 0.3680050958 | L156: 0.3674524005 | M156: 0.3701811074 | N156: 0.380588654 | O156: 0.3835086173 | P156: Pasivo Corriente / Pasivo Total
A157: Concentracion de Endeudamiento a Largo Plazo | F157: =+F67/F69 -> 0.7856937299 | G157: =+G67/G69 -> 0.7829588908 | H157: 0.6861686435 | I157: 0.6309567455 | J157: 0.6367856853 | K157: 0.6319949042 | L157: 0.6325475995 | M157: 0.6298188926 | N157: 0.619411346 | O157: 0.6164913827 | P157: Pasivo No Corriente / Pasivo Total
A159: RAZONES DE ACTIVIDAD
A160: Actividad | F160: =F154 -> 2017 | G160: =G154 -> 2018 | H160: =H154 -> 2019 | I160: =I154 -> 2020 | J160: =J154 -> 2021 | K160: =K154 -> 2022 | L160: 2023 | M160: 2024 | N160: 2025 | O160: 2026
A161: Rotacion del Patrimonio | F161: =+F86/F77 -> 4.065949709 | G161: =+G86/G77 -> 6.091990409 | H161: 5.666085911 | I161: 4.338714427 | J161: 2.90148044 | K161: 2.849622514 | L161: 2.8297832 | M161: 2.81963294 | N161: 2.789521498 | O161: 2.773585098 | P161: Ventas / Patrimonio
A162: Rotacion del Activo | F162: =+F86/F54 -> 2.455350281 | G162: =+G86/G54 -> 3.40999567 | H162: 2.865510949 | I162: 2.585492258 | J162: 1.873213719 | K162: 1.874414577 | L162: 1.875614573 | M162: 1.876813707 | N162: 1.878011978 | O162: 1.879209383 | P162: Ventas / Activo Total
A163: Rotacion de Cartera | F163: =+F86/F42 -> 9.828532082 | G163: =+G86/G42 -> 10.36484812 | H163: 8.992084847 | I163: 5.850431178 | J163: 4.94497565 | K163: 4.94497565 | L163: 4.94497565 | M163: 4.94497565 | N163: 4.94497565 | O163: 4.94497565 | P163: Ventas / Cuentas Por Cobrar Clientes
A164: Periodo de Cobro | F164: =+(F42/F86)*365 -> 37.13677657 | G164: =+(G42/G86)*365 -> 35.21518076 | H164: 40.591254 | I164: 62.388564 | J164: 73.8122947 | K164: 73.8122947 | L164: 73.8122947 | M164: 73.8122947 | N164: 73.8122947 | O164: 73.8122947 | P164: (Cuentas Por Cobrar Clientes / Ventas ) * 365
A165: Rotacion de Inventarios | F165: =+(F43/F87)*365 -> 0 | G165: 0 | H165: 0.7851764172 | I165: 0 | J165: 0 | K165: 0 | L165: 0 | M165: 0 | N165: 0 | O165: 0 | P165: (Inventarios / Costo de Ventas) * 365
A166: Ciclo Operacional | F166: =F164+F165 -> 37.13677657 | G166: 35.21518076 | H166: 41.37643042 | I166: 62.388564 | J166: 73.8122947 | K166: 73.8122947 | L166: 73.8122947 | M166: 73.8122947 | N166: 73.8122947 | O166: 73.8122947 | P166: Periodo de Cobro + Rotacion de Inventarios
A167: Periodo de Pago a Proveedores | F167: =+((F58+F59)/F87)*365 -> 4.782603229 | G167: =+((G58+G59)/G87)*365 -> 0.6037461655 | H167: 8.19058568 | I167: 8.858664105 | J167: 7.93736104 | K167: 8.298640996 | L167: 8.323552178 | M167: 8.3586402 | N167: 8.356879681 | O167: 8.365229557 | P167: (Cuentas por pagar Proveedores / Costo de Ventas) * 365

Sheet RESUMEN ESCENARIOS
A1: ESCENARIOS 2022-2026 | E1: OPTIMISTA | F1: MODERADO | G1: PESIMISTA | H1: RESULTADOS 2021
A2: INCREMENTO OBJETIVO DE INGRESOS CON ESTRATEGÍA | E2: =+'Estrategias Operativas EO'!J34 -> 0.05 | F2: =+'Estrategias Operativas EM'!J34 -> 0.02525 | G2: =+'Estrategias Operativas EP'!J34 -> 0.01
A3: REDUCCIÓN OBJETIVO DE COSTOS CON ESTRATEGÍA | E3: =+'Estrategias Operativas EO'!D41 -> 0.03720624304 | F3: =+'Estrategias Operativas EM'!D41 -> 0.02720624304 | G3: =+'Estrategias Operativas EP'!D41 -> 0.007206243037
A4: REDUCCIÓN OBJETIVO DE GASTOS CON ESTRATEGÍA | E4: =+'Estrategias Operativas EO'!D42 -> 0.00728212308 | F4: =+'Estrategias Operativas EM'!D42 -> 0.00238212308 | G4: =+'Estrategias Operativas EP'!D42 -> 0.0003821230796
A5: MARGEN NETO PROMEDIO | E5: =+AVERAGE('Estados Finan + Estrategia EO'!K142:O142) -> 0.07389558825 | F5: =+AVERAGE('Estados Finan + Estrategia'!K142:O142) -> 0.05513403851 | G5: =+AVERAGE('Estados Finan + Estrategia EP'!K142:O142) -> 0.04700068634 | H5: =+AVERAGE('Analisis Financiero'!J142) -> 0.04547782
A6: EBIDTA OPERACIONAL PROMEDIO | E6: =+AVERAGE('Estados Finan + Estrategia EO'!K126:O126) -> 0.09769345829 | F6: =+AVERAGE('Estados Finan + Estrategia'!K126:O126) -> 0.07899518653 | G6: =+AVERAGE('Estados Finan + Estrategia EP'!K126:O126) -> 0.07087795952 | H6: =+'Analisis Financiero'!J126 -> 0.04705738677
A7: ROA PROMEDIO | E7: =+AVERAGE('Estados Finan + Estrategia EO'!K116:O116) -> 0.1398470084 | F7: =+AVERAGE('Estados Finan + Estrategia'!K116:O116) -> 0.1036869949 | G7: =+AVERAGE('Estados Finan + Estrategia EP'!K116:O116) -> 0.08821596372 | H7: =+'Analisis Financiero'!J116 -> 0.08518967633
A8: PDC PROMEDIO | E8: =+AVERAGE('Estados Finan + Estrategia EO'!K131:O131) -> 0.533816182 | F8: =+AVERAGE('Estados Finan + Estrategia'!K131:O131) -> 0.4316451644 | G8: =+AVERAGE('Estados Finan + Estrategia EP'!K131:O131) -> 0.3872910469 | H8: =+'Analisis Financiero'!J131 -> 0.2571307739

Sheet HISTORICO DE AUMENTO SMMLV
A1: Salario mínimo legal en Colombia
A2: 1.1.1. Serie histórica en pesos colombianos_periodicidad anual
A4: Información disponible desde el 1 de julio de 1984.
A6: Año (aaaa) | B6: Salario mínimo diario (COP) | C6: Salario mínimo mensual (COP) | D6: Variación porcentual anual % | E6: Decretos del Gobierno Nacional
A7: 1984 | B7: 376.6 | C7: 11298 | E7: 3506 de diciembre 27 de 1983
A8: 1985 | B8: 451.92 | C8: 13558 | D8: 20 | E8: 0001 de enero de 1985
A9: 1986 | B9: 560.38 | C9: 16811 | D9: 24 | E9: 3754 de diciembre de 1985
A10: 1987 | B10: 683.66 | C10: 20510 | D10: 22 | E10: 3732 de diciembre de 1986
A11: 1988 | B11: 854.58 | C11: 25637 | D11: 25 | E11: 2545 de diciembre de 1987
A12: 1989 | B12: 1085.32 | C12: 32560 | D12: 27 | E12: 2662 de diciembre de 1988
A13: 1990 | B13: 1367.5 | C13: 41025 | D13: 26 | E13: 3000 de diciembre de 1989
A14: 1991 | B14: 1724 | C14: 51720 | D14: 26.1 | E14: 3074 de diciembre de 1990
A15: 1992 | B15: 2173 | C15: 65190 | D15: 26.044 | E15: 2867 de diciembre de 1991
A16: 1993 | B16: 2717 | C16: 81510 | D16: 25 | E16: 2061 de diciembre de 1992
A17: 1994 | B17: 3290 | C17: 98700 | D17: 21.1 | E17: 2548 de diciembre de 1993
A18: 1995 | B18: 3964.45 | C18: 118934 | D18: 20.5 | E18: 2872 de diciembre de 1994
A19: 1996 | B19: 4737.5 | C19: 142125 | D19: 19.5 | E19: 2310 de diciembre de 1995
A20: 1997 | B20: 5733.5 | C20: 172005 | D20: 21 | E20: 2334 de diciembre de 1996
A21: 1998 | B21: 6794.2 | C21: 203826 | D21: 18.5 | E21: 3106 de diciembre de 1997
A22: 1999 | B22: 7882 | C22: 236460 | D22: 16 | E22: 2560 de diciembre de 1998
A23: 2000 | B23: 8670 | C23: 260100 | D23: 10 | E23: 2647 de diciembre 23 de 1999
A24: 2001 | B24: 9533.33 | C24: 286000 | D24: 10 | E24: 2579 de diciembre 13 de 2000
A25: 2002 | B25: 10300 | C25: 309000 | D25: 8 | E25: 2910 de diciembre 31 de 2001
A26: 2003 | B26: 11066.67 | C26: 332000 | D26: 7.4 | E26: 3232 de diciembre 27 de 2002
A27: 2004 | B27: 11933.33 | C27: 358000 | D27: 7.8 | E27: 3770 de diciembre 26 de 2003
A28: 2005 | B28: 12716.67 | C28: 381500 | D28: 6.6 | E28: 4360 de diciembre 22 de 2004
A29: 2006 | B29: 13600 | C29: 408000 | D29: 6.9 | E29: 4686 de diciembre 21 de 2005
A30: 2007 | B30: 14456.67 | C30: 433700 | D30: 6.3 | E30: 4580 de diciembre 27 de 2006
A31: 2008 | B31: 15383.33 | C31: 461500 | D31: 6.4 | E31: 4965 de diciembre 27 de 2007
A32: 2009 | B32: 16563.33 | C32: 496900 | D32: 7.7 | E32: 4868 de diciembre 30 de 2008
A33: 2010 | B33: 17166.67 | C33: 515000 | D33: 3.6 | E33: 5053 de diciembre 30 de 2009
A34: 2011 | B34: 17853.33 | C34: 535600 | D34: 4 | E34: 033 de enero 11 de 2011
A35: 2012 | B35: 18890 | C35: 566700 | D35: 5.8 | E35: 4919 de diciembre 26 de 2011
A36: 2013 | B36: 19650 | C36: 589500 | D36: 4.02 | E36: 2738 de diciembre 28 de 2012
A37: 2014 | B37: 20533.33 | C37: 616000 | D37: 4.5 | E37: 3068 de diciembre 30 de 2013
A38: 2015 | B38: 21478.33 | C38: 644350 | D38: 4.6 | E38: 2731 de diciembre 30 de 2014
A39: 2016 | B39: 22981.83 | C39: 689455 | D39: 7 | E39: 2552 de diciembre 30 de 2015
A40: 2017 | B40: 24590.57 | C40: 737717 | D40: 7 | E40: 2209 de diciembre 30 de 2016
A41: 2018 | B41: 26041.4 | C41: 781242 | D41: 5.9 | E41: 2269 de diciembre 30 de 2017
A42: 2019 | B42: 27603.87 | C42: 828116 | D42: 6 | E42: 2451 de diciembre 27 de 2018
A43: 2020 | B43: 29260.1 | C43: 877803 | D43: 6 | E43: 2360 de diciembre 26 de 2019
A44: 2021 | B44: 30284.2 | C44: 908526 | D44: 3.5 | E44: 1785 de diciembre 29 de 2020
A45: 2022 | B45: 33333.33 | C45: 1000000 | D45: 10.07 | E45: 1724 de diciembre 15 de 2021
A48: Fuente: Ministerio del Trabajo (www.mintrabajo.gov.co) y decretos del Gobierno Nacional (www.presidencia.gov.co).
A50: Notas:
A52: desde el 1 de julio de 1984 se unificó el salario mínimo para todos los sectores de la economía. En los años en que se decretó el salario mínimo diario, este se multiplica por 30 días y se redondea a la unidad para determinar el valor mensual. Cuando se decretó el salario mínimo mensual, se divide por 30 y se redondea a dos decimales para obtener el salario diario.
A54: Variación porcentual con respecto al dato del año inmediatamente anterior.
A55: (N/A) No aplica
A57: Banco de la República - Gerencia Técnica - información extraída de la bodega de datos -Serankua- el 28/06/2022 23:31:43
